date,department/service,beneficiary,amount,summary of purpose,category,transaction number,SAP vendor number
01.01.2023,CENTRAL FUNCTIONS,BRESLIN CONSTRUCTION LTD,"7,000.00",COMMERCIAL PROPERTIES,BUILDING R&M,2103605849,3000001948
01.01.2023,DSG,BDO LLP,"3,106.00",SCHOOLS AUDIT,PAYMENTS FOR FINANCIAL SERVICES,5902559099,1000057898
01.01.2023,ENVIRONMENT AND LEISURE,BUXTON BUILDING CONTRACTORS LTD,"21,860.00",CAPITAL PS (LEISURE),CONSTRUCTION MAIN CONTRACT -CERTIFICATED,2103606347,3000000830
01.01.2023,ENVIRONMENT AND LEISURE,BUXTON BUILDING CONTRACTORS LTD,"384,825.00",CAPITAL PS (LEISURE),CONSTRUCTION MAIN CONTRACT -CERTIFICATED,2103606346,3000000830
01.01.2023,ENVIRONMENT DIRECTORATE,F M CONWAY LTD,"115,666.17",HIGHWAY MAINTENANCE OVERHEADS,HIGHWAYS TERM CONTRACT,2103606344,4001384
01.01.2023,ENVIRONMENT DIRECTORATE,SAFECOTE LTD,590,WINTER MAINTENANCE TERM,HIGHWAYS TERM CONTRACT,5902559171,1000075174
01.01.2023,F & C S EXCLUDING CORPORATE BUDGETS,BDO LLP,500,INTERNAL AUDIT CONTRACTS,PAYMENTS FOR FINANCIAL SERVICES,5902559099,1000057898
01.01.2023,F & C S EXCLUDING CORPORATE BUDGETS,BDO LLP,"22,849.00",INTERNAL AUDIT CONTRACTS,PAYMENTS FOR FINANCIAL SERVICES,5902559099,1000057898
01.01.2023,F & C S EXCLUDING CORPORATE BUDGETS,INFORMATION AND RECORDS MANAGEMENT,399,LEGAL SVCES MANAGEMENT,SUBSCRIPTIONS,5902559164,1000083625
01.01.2023,HOUSING GENERAL FUND,SALIX MECHANICAL SERVICES LLP,"1,100.00",CAPITAL PS (REGEN),CONSTRUCTION MAIN CONTRACT,5902559186,1000088961
01.01.2023,HOUSING HRA,EQUANS REGENERATION (APOLLO) LTD,"110,630.81",CAPITAL PS (HRA),CONSTRUCTION MAIN CONTRACT -CERTIFICATED,2103605719,4000449
01.01.2023,PLANNING & GROWTH,SOUTHWARK NEWSPAPER LTD,336,DEV MGT ADMIN & INCOME,MARKETING & PUBLICITY SERVICES,5902559052,1556957
01.01.2023,PLANNING & GROWTH,BRESLIN CONSTRUCTION LTD,580,VCS MANAGED MSC BUILDILNGS,BUILDING R&M,5902559038,1000078031
02.01.2023,ENVIRONMENT AND LEISURE,USTIGATE,"40,000.00",CAPITAL PS (LEISURE),CONSTRUCTION FEES,5902559102,1000064223
02.01.2023,LEISURE DIRECTORATE,SMART PLATFORM RENTAL LTD,625,TREES � IN-HOUSE TEAM,HIRED VEHICLES,5902559182,1000082961
03.01.2023,HOUSING HRA,NPOWER,"3,302.58",RESIDENT SERVICES BUSINESS SUPPORT,ELECTRICITY,6102066473,DIRECT DEBIT PAYMENT
03.01.2023,HOUSING HRA,NPOWER,"301,178.09",RESIDENT SERVICES BUSINESS SUPPORT,ELECTRICITY,6102066474,DIRECT DEBIT PAYMENT
04.01.2023,ADULT SOCIAL CARE,3 SPIRIT ENTERPRISE UK LTD,375,ADULTS MULTI-AGENCY SAFEGUARDING TRNG,TRAINING,5902559350,1000085339
04.01.2023,ADULT SOCIAL CARE,REDACTED PERSONAL DATA,279.85,APPOINTEESHIPS,OTHER PAYMENTS FOR CLIENTS,REDACTED,REDACTED
04.01.2023,ADULT SOCIAL CARE,REDACTED PERSONAL DATA,395.2,APPOINTEESHIPS,OTHER PAYMENTS FOR CLIENTS,REDACTED,REDACTED
04.01.2023,ADULT SOCIAL CARE,THE DRIVE CARE HOMES LTD,"14,872.87",DISABILITIES LAC,EXTERNAL AGENCIES AND BODIES,2103606759,1000003889
04.01.2023,ADULT SOCIAL CARE,THE DRIVE CARE HOMES LTD,"2,160.00",DISABILITIES LAC,OTHER PAYMENTS FOR CLIENTS,2103606760,1000003889
04.01.2023,ADULT SOCIAL CARE,THAMES HOMECARE SERVICE LTD,"1,074.64",DISCHARGE TO ACCESS,HOMECARE - SPOT,2103606936,1000079295
04.01.2023,ADULT SOCIAL CARE,THAMES HOMECARE SERVICE LTD,614.08,MEM LTS 65+,HOMECARE - SPOT,2103606892,1000079295
04.01.2023,ADULT SOCIAL CARE,THAMES HOMECARE SERVICE LTD,273.46,PHY LTS 18-64,HOMECARE - SPOT,2103606954,1000079295
04.01.2023,ADULT SOCIAL CARE,THAMES HOMECARE SERVICE LTD,388.6,PHY LTS 18-64,HOMECARE - SPOT,2103606929,1000079295
04.01.2023,ADULT SOCIAL CARE,THAMES HOMECARE SERVICE LTD,575.7,PHY LTS 18-64,HOMECARE - SPOT,2103606912,1000079295
04.01.2023,ADULT SOCIAL CARE,THAMES HOMECARE SERVICE LTD,604.49,PHY LTS 18-64,HOMECARE - SPOT,2103606961,1000079295
04.01.2023,ADULT SOCIAL CARE,THAMES HOMECARE SERVICE LTD,820.37,PHY LTS 18-64,HOMECARE - SPOT,2103606932,1000079295
04.01.2023,ADULT SOCIAL CARE,THAMES HOMECARE SERVICE LTD,988.29,PHY LTS 18-64,HOMECARE - SPOT,2103606947,1000079295
04.01.2023,ADULT SOCIAL CARE,THAMES HOMECARE SERVICE LTD,"1,007.48",PHY LTS 18-64,HOMECARE - SPOT,2103606913,1000079295
04.01.2023,ADULT SOCIAL CARE,THAMES HOMECARE SERVICE LTD,254.27,PHY LTS 65+,HOMECARE - SPOT,2103606905,1000079295
04.01.2023,ADULT SOCIAL CARE,THAMES HOMECARE SERVICE LTD,254.27,PHY LTS 65+,HOMECARE - SPOT,2103606911,1000079295
04.01.2023,ADULT SOCIAL CARE,THAMES HOMECARE SERVICE LTD,254.27,PHY LTS 65+,HOMECARE - SPOT,2103606941,1000079295
04.01.2023,ADULT SOCIAL CARE,THAMES HOMECARE SERVICE LTD,259.07,PHY LTS 65+,HOMECARE - SPOT,2103606903,1000079295
04.01.2023,ADULT SOCIAL CARE,THAMES HOMECARE SERVICE LTD,268.66,PHY LTS 65+,HOMECARE - SPOT,2103606917,1000079295
04.01.2023,ADULT SOCIAL CARE,THAMES HOMECARE SERVICE LTD,302.24,PHY LTS 65+,HOMECARE - SPOT,2103606938,1000079295
04.01.2023,ADULT SOCIAL CARE,THAMES HOMECARE SERVICE LTD,340.62,PHY LTS 65+,HOMECARE - SPOT,2103606904,1000079295
04.01.2023,ADULT SOCIAL CARE,THAMES HOMECARE SERVICE LTD,364.61,PHY LTS 65+,HOMECARE - SPOT,2103606895,1000079295
04.01.2023,ADULT SOCIAL CARE,THAMES HOMECARE SERVICE LTD,369.41,PHY LTS 65+,HOMECARE - SPOT,2103606923,1000079295
04.01.2023,ADULT SOCIAL CARE,THAMES HOMECARE SERVICE LTD,383.8,PHY LTS 65+,HOMECARE - SPOT,2103606885,1000079295
04.01.2023,ADULT SOCIAL CARE,THAMES HOMECARE SERVICE LTD,388.6,PHY LTS 65+,HOMECARE - SPOT,2103606897,1000079295
04.01.2023,ADULT SOCIAL CARE,THAMES HOMECARE SERVICE LTD,470.16,PHY LTS 65+,HOMECARE - SPOT,2103606946,1000079295
04.01.2023,ADULT SOCIAL CARE,THAMES HOMECARE SERVICE LTD,604.49,PHY LTS 65+,HOMECARE - SPOT,2103606906,1000079295
04.01.2023,ADULT SOCIAL CARE,THAMES HOMECARE SERVICE LTD,604.49,PHY LTS 65+,HOMECARE - SPOT,2103606909,1000079295
04.01.2023,ADULT SOCIAL CARE,THAMES HOMECARE SERVICE LTD,604.49,PHY LTS 65+,HOMECARE - SPOT,2103606914,1000079295
04.01.2023,ADULT SOCIAL CARE,THAMES HOMECARE SERVICE LTD,671.65,PHY LTS 65+,HOMECARE - SPOT,2103606894,1000079295
04.01.2023,ADULT SOCIAL CARE,THAMES HOMECARE SERVICE LTD,671.65,PHY LTS 65+,HOMECARE - SPOT,2103606900,1000079295
04.01.2023,ADULT SOCIAL CARE,THAMES HOMECARE SERVICE LTD,671.65,PHY LTS 65+,HOMECARE - SPOT,2103606920,1000079295
04.01.2023,ADULT SOCIAL CARE,THAMES HOMECARE SERVICE LTD,671.65,PHY LTS 65+,HOMECARE - SPOT,2103606944,1000079295
04.01.2023,ADULT SOCIAL CARE,THAMES HOMECARE SERVICE LTD,676.45,PHY LTS 65+,HOMECARE - SPOT,2103606924,1000079295
04.01.2023,ADULT SOCIAL CARE,THAMES HOMECARE SERVICE LTD,700.44,PHY LTS 65+,HOMECARE - SPOT,2103606907,1000079295
04.01.2023,ADULT SOCIAL CARE,THAMES HOMECARE SERVICE LTD,710.03,PHY LTS 65+,HOMECARE - SPOT,2103606887,1000079295
04.01.2023,ADULT SOCIAL CARE,THAMES HOMECARE SERVICE LTD,738.82,PHY LTS 65+,HOMECARE - SPOT,2103606939,1000079295
04.01.2023,ADULT SOCIAL CARE,THAMES HOMECARE SERVICE LTD,738.82,PHY LTS 65+,HOMECARE - SPOT,2103606945,1000079295
04.01.2023,ADULT SOCIAL CARE,THAMES HOMECARE SERVICE LTD,738.82,PHY LTS 65+,HOMECARE - SPOT,2103606951,1000079295
04.01.2023,ADULT SOCIAL CARE,THAMES HOMECARE SERVICE LTD,805.98,PHY LTS 65+,HOMECARE - SPOT,2103606928,1000079295
04.01.2023,ADULT SOCIAL CARE,THAMES HOMECARE SERVICE LTD,805.98,PHY LTS 65+,HOMECARE - SPOT,2103606950,1000079295
04.01.2023,ADULT SOCIAL CARE,THAMES HOMECARE SERVICE LTD,825.17,PHY LTS 65+,HOMECARE - SPOT,2103606935,1000079295
04.01.2023,ADULT SOCIAL CARE,THAMES HOMECARE SERVICE LTD,844.36,PHY LTS 65+,HOMECARE - SPOT,2103606899,1000079295
04.01.2023,ADULT SOCIAL CARE,THAMES HOMECARE SERVICE LTD,882.74,PHY LTS 65+,HOMECARE - SPOT,2103606916,1000079295
04.01.2023,ADULT SOCIAL CARE,THAMES HOMECARE SERVICE LTD,"1,036.26",PHY LTS 65+,HOMECARE - SPOT,2103606959,1000079295
04.01.2023,ADULT SOCIAL CARE,MEDACS HOMECARE,346,SPECIALIST CARE,SECTION 17 PAYMENTS TO AGENCIES/CARERS,2103606773,11287415
04.01.2023,ADULT SOCIAL CARE,CONTACT PROFESSIONALS,252.56,SPECIALIST CARE,SECTION 17 PAYMENTS TO AGENCIES/CARERS,2103606734,1000057263
04.01.2023,ADULT SOCIAL CARE,CONTACT PROFESSIONALS,270.6,SPECIALIST CARE,SECTION 17 PAYMENTS TO AGENCIES/CARERS,2103606664,1000057263
04.01.2023,ADULT SOCIAL CARE,CONTACT PROFESSIONALS,270.6,SPECIALIST CARE,SECTION 17 PAYMENTS TO AGENCIES/CARERS,2103606689,1000057263
04.01.2023,ADULT SOCIAL CARE,CONTACT PROFESSIONALS,270.6,SPECIALIST CARE,SECTION 17 PAYMENTS TO AGENCIES/CARERS,2103606705,1000057263
04.01.2023,ADULT SOCIAL CARE,CONTACT PROFESSIONALS,270.6,SPECIALIST CARE,SECTION 17 PAYMENTS TO AGENCIES/CARERS,2103606708,1000057263
04.01.2023,ADULT SOCIAL CARE,CONTACT PROFESSIONALS,288.64,SPECIALIST CARE,SECTION 17 PAYMENTS TO AGENCIES/CARERS,2103606694,1000057263
04.01.2023,ADULT SOCIAL CARE,CONTACT PROFESSIONALS,306.68,SPECIALIST CARE,SECTION 17 PAYMENTS TO AGENCIES/CARERS,2103606675,1000057263
04.01.2023,ADULT SOCIAL CARE,CONTACT PROFESSIONALS,360.8,SPECIALIST CARE,SECTION 17 PAYMENTS TO AGENCIES/CARERS,2103606668,1000057263
04.01.2023,ADULT SOCIAL CARE,CONTACT PROFESSIONALS,360.8,SPECIALIST CARE,SECTION 17 PAYMENTS TO AGENCIES/CARERS,2103606671,1000057263
04.01.2023,ADULT SOCIAL CARE,CONTACT PROFESSIONALS,432.96,SPECIALIST CARE,SECTION 17 PAYMENTS TO AGENCIES/CARERS,2103606687,1000057263
04.01.2023,ADULT SOCIAL CARE,METRO HOMECARE LTD,792,SPECIALIST CARE,SECTION 17 PAYMENTS TO AGENCIES/CARERS,2103606730,1000070695
04.01.2023,ADULT SOCIAL CARE,METRO HOMECARE LTD,858,SPECIALIST CARE,SECTION 17 PAYMENTS TO AGENCIES/CARERS,2103606754,1000070695
04.01.2023,ADULT SOCIAL CARE,METRO HOMECARE LTD,"1,848.00",SPECIALIST CARE,SECTION 17 PAYMENTS TO AGENCIES/CARERS,2103606753,1000070695
04.01.2023,ADULT SOCIAL CARE,DE VERE CARE PARTNERSHIP LTD,280,SPECIALIST CARE,SECTION 17 PAYMENTS TO AGENCIES/CARERS,2103606666,1000086901
04.01.2023,ADULT SOCIAL CARE,DE VERE CARE PARTNERSHIP LTD,280,SPECIALIST CARE,SECTION 17 PAYMENTS TO AGENCIES/CARERS,2103606699,1000086901
04.01.2023,ADULT SOCIAL CARE,DE VERE CARE PARTNERSHIP LTD,280,SPECIALIST CARE,SECTION 17 PAYMENTS TO AGENCIES/CARERS,2103606719,1000086901
04.01.2023,ADULT SOCIAL CARE,DE VERE CARE PARTNERSHIP LTD,280,SPECIALIST CARE,SECTION 17 PAYMENTS TO AGENCIES/CARERS,2103606732,1000086901
04.01.2023,ADULT SOCIAL CARE,DE VERE CARE PARTNERSHIP LTD,280,SPECIALIST CARE,SECTION 17 PAYMENTS TO AGENCIES/CARERS,2103606733,1000086901
04.01.2023,ADULT SOCIAL CARE,DE VERE CARE PARTNERSHIP LTD,280,SPECIALIST CARE,SECTION 17 PAYMENTS TO AGENCIES/CARERS,2103606750,1000086901
04.01.2023,ADULT SOCIAL CARE,DE VERE CARE PARTNERSHIP LTD,350,SPECIALIST CARE,SECTION 17 PAYMENTS TO AGENCIES/CARERS,2103606718,1000086901
04.01.2023,ADULT SOCIAL CARE,DE VERE CARE PARTNERSHIP LTD,350,SPECIALIST CARE,SECTION 17 PAYMENTS TO AGENCIES/CARERS,2103606747,1000086901
04.01.2023,ADULT SOCIAL CARE,DE VERE CARE PARTNERSHIP LTD,350,SPECIALIST CARE,SECTION 17 PAYMENTS TO AGENCIES/CARERS,2103606749,1000086901
04.01.2023,ADULT SOCIAL CARE,DE VERE CARE PARTNERSHIP LTD,420,SPECIALIST CARE,SECTION 17 PAYMENTS TO AGENCIES/CARERS,2103606717,1000086901
04.01.2023,ADULT SOCIAL CARE,DE VERE CARE PARTNERSHIP LTD,420,SPECIALIST CARE,SECTION 17 PAYMENTS TO AGENCIES/CARERS,2103606720,1000086901
04.01.2023,ADULT SOCIAL CARE,DE VERE CARE PARTNERSHIP LTD,525,SPECIALIST CARE,SECTION 17 PAYMENTS TO AGENCIES/CARERS,2103606748,1000086901
04.01.2023,CHILDREN AND FAMILIES,SOUTH LONDON & MAUDSLEY HOSPITAL,"2,500.00",ADOPTION SUPP FUND 2,EXTERNAL AGENCIES AND BODIES,5902559378,1000013096
04.01.2023,CHILDREN AND FAMILIES,REDACTED PERSONAL DATA,600,ADOPTION SUPP FUND 2,EXTERNAL AGENCIES AND BODIES,REDACTED,REDACTED
04.01.2023,CHILDREN AND FAMILIES,REDACTED PERSONAL DATA,600,ADOPTION SUPP FUND 2,EXTERNAL AGENCIES AND BODIES,REDACTED,REDACTED
04.01.2023,CHILDREN AND FAMILIES,REDACTED PERSONAL DATA,450,CARELEAVER UNIV SUPP,OTHER PAYMENTS FOR CLIENTS,REDACTED,REDACTED
04.01.2023,CHILDREN AND FAMILIES,CONTACT PROFESSIONALS,304,CONTACT SERVICE,OTHER PAYMENTS FOR CLIENTS,2103606762,1000057263
04.01.2023,CHILDREN AND FAMILIES,CONTACT PROFESSIONALS,910,CONTACT SERVICE,OTHER PAYMENTS FOR CLIENTS,2103606768,1000057263
04.01.2023,CHILDREN AND FAMILIES,REDACTED PERSONAL DATA,880,FOSTERING ALLOWANCES,PAYMENTS TO CARERS,REDACTED,REDACTED
04.01.2023,CHILDREN AND FAMILIES,REDACTED PERSONAL DATA,972,FOSTERING ALLOWANCES,PAYMENTS TO CARERS,REDACTED,REDACTED
04.01.2023,CHILDREN AND FAMILIES,FAMILY FOSTERING LTD,"4,601.64",FRIENDS & FAMILY FOSTERING,EXTERNAL AGENCIES AND BODIES,2103606757,1000075179
04.01.2023,CHILDREN AND FAMILIES,DIVERSITY FOSTER CARE LTD,"4,108.69",FRIENDS & FAMILY FOSTERING,EXTERNAL AGENCIES AND BODIES,2103606758,1000081399
04.01.2023,CHILDREN AND FAMILIES,FAMILY WORKS FOSTERING LTD,"6,275.33",FRIENDS & FAMILY FOSTERING,EXTERNAL AGENCIES AND BODIES,2103606756,1000082529
04.01.2023,CHILDREN AND FAMILIES,FAMILY WORKS FOSTERING LTD,"8,347.99",FRIENDS & FAMILY FOSTERING,EXTERNAL AGENCIES AND BODIES,2103606755,1000082529
04.01.2023,CHILDREN AND FAMILIES,THE SALVATION ARMY,644.01,SEMI-IND CARELEAVERS,EXTERNAL AGENCIES AND BODIES,2103606778,1000016253
04.01.2023,CHILDREN AND FAMILIES,THE SALVATION ARMY,"1,288.03",SEMI-IND CARELEAVERS,EXTERNAL AGENCIES AND BODIES,2103606781,1000016253
04.01.2023,CHILDREN AND FAMILIES,THE SALVATION ARMY,"1,330.96",SEMI-IND CARELEAVERS,EXTERNAL AGENCIES AND BODIES,2103606782,1000016253
04.01.2023,CHILDREN AND FAMILIES,CONTACT PROFESSIONALS,265.82,SEMI-IND CARELEAVERS,EXTERNAL AGENCIES AND BODIES,2103606776,1000057263
04.01.2023,CHILDREN AND FAMILIES,MX ESTATES LTD,"1,395.00",SEMI-IND CARELEAVERS,EXTERNAL AGENCIES AND BODIES,2103606777,1000083639
04.01.2023,CHILDREN AND FAMILIES,QUALIFIED CARE RESIDENTS SERVICES LTD,"3,321.34",SEMI-IND CARELEAVERS,EXTERNAL AGENCIES AND BODIES,2103606779,1000085856
04.01.2023,CHILDREN AND FAMILIES,QUALIFIED CARE RESIDENTS SERVICES LTD,365.67,SEMI-IND CARELEAVERS,OTHER PAYMENTS FOR CLIENTS,2103606780,1000085856
04.01.2023,CHILDREN AND FAMILIES,FRESH START CARE SOLUTIONS LTD,"31,442.85",SEMI-IND LAC 16-17,EXTERNAL AGENCIES AND BODIES,2103606795,1000070537
04.01.2023,CHILDREN AND FAMILIES,OPENMINDS SOCIAL CARE,"4,178.78",SEMI-IND LAC 16-17,EXTERNAL AGENCIES AND BODIES,2103606791,1000085800
04.01.2023,CHILDREN AND FAMILIES,OPENMINDS SOCIAL CARE,"4,318.07",SEMI-IND LAC 16-17,EXTERNAL AGENCIES AND BODIES,2103606786,1000085800
04.01.2023,CHILDREN AND FAMILIES,PLACE OF PROGRESS LTD,"3,257.14",SEMI-IND LAC 16-17,EXTERNAL AGENCIES AND BODIES,2103606787,1000086889
04.01.2023,CHILDREN AND FAMILIES,TUTELAGE CARE GROUP LTD,"4,207.14",SEMI-IND LAC 16-17,EXTERNAL AGENCIES AND BODIES,2103606789,1000088232
04.01.2023,CHILDREN AND FAMILIES,OPENMINDS SOCIAL CARE,261.43,SEMI-IND LAC 16-17,OTHER PAYMENTS FOR CLIENTS,2103606790,1000085800
04.01.2023,CHILDREN AND FAMILIES,OPENMINDS SOCIAL CARE,270.15,SEMI-IND LAC 16-17,OTHER PAYMENTS FOR CLIENTS,2103606785,1000085800
04.01.2023,CHILDREN AND FAMILIES,TUTELAGE CARE GROUP LTD,265.7,SEMI-IND LAC 16-17,OTHER PAYMENTS FOR CLIENTS,2103606788,1000088232
04.01.2023,CHILDREN AND FAMILIES,REDACTED PERSONAL DATA,300,SEMI-IND LAC 16-17,OTHER PAYMENTS FOR CLIENTS,REDACTED,REDACTED
04.01.2023,CHILDREN AND FAMILIES,REDACTED PERSONAL DATA,388.04,SPECIAL GUARDIANSHIP,PAYMENTS TO CARERS,REDACTED,REDACTED
04.01.2023,CHILDREN AND FAMILIES,REDACTED PERSONAL DATA,342.45,SPECIAL GUARDIANSHIP,PAYMENTS TO CARERS,REDACTED,REDACTED
04.01.2023,CHILDREN AND FAMILIES,REDACTED PERSONAL DATA,389.34,SPECIAL GUARDIANSHIP,PAYMENTS TO CARERS,REDACTED,REDACTED
04.01.2023,CHILDREN AND FAMILIES,REDACTED PERSONAL DATA,356.15,SPECIAL GUARDIANSHIP,PAYMENTS TO CARERS,REDACTED,REDACTED
04.01.2023,CHILDREN AND FAMILIES,REDACTED PERSONAL DATA,403.04,SPECIAL GUARDIANSHIP,PAYMENTS TO CARERS,REDACTED,REDACTED
04.01.2023,CHILDREN AND FAMILIES,REDACTED PERSONAL DATA,525,SPECIAL GUARDIANSHIP,PAYMENTS TO CARERS,REDACTED,REDACTED
04.01.2023,CHILDREN AND FAMILIES,REDACTED PERSONAL DATA,341.15,SPECIAL GUARDIANSHIP,PAYMENTS TO CARERS,REDACTED,REDACTED
04.01.2023,CHILDREN AND FAMILIES,REDACTED PERSONAL DATA,338,SPECIAL GUARDIANSHIP,PAYMENTS TO CARERS,REDACTED,REDACTED
04.01.2023,CHILDREN AND FAMILIES,REDACTED PERSONAL DATA,338,SPECIAL GUARDIANSHIP,PAYMENTS TO CARERS,REDACTED,REDACTED
04.01.2023,CHILDREN AND FAMILIES,REDACTED PERSONAL DATA,472.71,SPECIAL GUARDIANSHIP,PAYMENTS TO CARERS,REDACTED,REDACTED
04.01.2023,CHILDREN AND FAMILIES,REDACTED PERSONAL DATA,472.71,SPECIAL GUARDIANSHIP,PAYMENTS TO CARERS,REDACTED,REDACTED
04.01.2023,CHILDREN AND FAMILIES,REDACTED PERSONAL DATA,341.22,SPECIAL GUARDIANSHIP,PAYMENTS TO CARERS,REDACTED,REDACTED
04.01.2023,CHILDREN AND FAMILIES,CARE O LINE,760.25,TEAM D,OTHER PAYMENTS FOR CLIENTS,2103606775,11241743
04.01.2023,CHILDREN AND FAMILIES,THE SALVATION ARMY,"-1,772.64",UASC CARELEAVERS,EXTERNAL AGENCIES AND BODIES,2103599055,1000016253
04.01.2023,CHILDREN AND FAMILIES,THE SALVATION ARMY,-648.18,UASC CARELEAVERS,EXTERNAL AGENCIES AND BODIES,2103599053,1000016253
04.01.2023,CHILDREN AND FAMILIES,THE SALVATION ARMY,"1,280.24",UASC CARELEAVERS,EXTERNAL AGENCIES AND BODIES,2103599261,1000016253
04.01.2023,CHILDREN AND FAMILIES,FUTURE FOUNDATIONS LTD,300,UASC LAC 16-17,OTHER PAYMENTS FOR CLIENTS,2103606783,1000063272
04.01.2023,COMMUNITIES,REDACTED PERSONAL DATA,370.45,COMMUNITIES PROJECTS,PROFESSIONAL FEES,REDACTED,REDACTED
04.01.2023,COMMUNITIES,THAMES HOMECARE SERVICE LTD,431.78,NO RECOURSE TO PUBLIC FUNDS,HOMECARE - SPOT,2103606910,1000079295
04.01.2023,COMMUNITIES,THAMES HOMECARE SERVICE LTD,465.36,NO RECOURSE TO PUBLIC FUNDS,HOMECARE - SPOT,2103606948,1000079295
04.01.2023,COMMUNITIES,REDACTED PERSONAL DATA,350,UKRAINIAN PROGRAMME,GRANTS,REDACTED,REDACTED
04.01.2023,COMMUNITIES,REDACTED PERSONAL DATA,350,UKRAINIAN PROGRAMME,GRANTS,REDACTED,REDACTED
04.01.2023,COMMUNITIES,REDACTED PERSONAL DATA,350,UKRAINIAN PROGRAMME,GRANTS,REDACTED,REDACTED
04.01.2023,COMMUNITIES,REDACTED PERSONAL DATA,350,UKRAINIAN PROGRAMME,GRANTS,REDACTED,REDACTED
04.01.2023,COMMUNITIES,REDACTED PERSONAL DATA,350,UKRAINIAN PROGRAMME,GRANTS,REDACTED,REDACTED
04.01.2023,COMMUNITIES,REDACTED PERSONAL DATA,350,UKRAINIAN PROGRAMME,GRANTS,REDACTED,REDACTED
04.01.2023,COMMUNITIES,REDACTED PERSONAL DATA,350,UKRAINIAN PROGRAMME,GRANTS,REDACTED,REDACTED
04.01.2023,COMMUNITIES,REDACTED PERSONAL DATA,350,UKRAINIAN PROGRAMME,GRANTS,REDACTED,REDACTED
04.01.2023,COMMUNITIES,REDACTED PERSONAL DATA,350,UKRAINIAN PROGRAMME,GRANTS,REDACTED,REDACTED
04.01.2023,COMMUNITIES,REDACTED PERSONAL DATA,350,UKRAINIAN PROGRAMME,GRANTS,REDACTED,REDACTED
04.01.2023,COMMUNITIES,REDACTED PERSONAL DATA,350,UKRAINIAN PROGRAMME,GRANTS,REDACTED,REDACTED
04.01.2023,COMMUNITIES,REDACTED PERSONAL DATA,350,UKRAINIAN PROGRAMME,GRANTS,REDACTED,REDACTED
04.01.2023,COMMUNITIES,ST FAITHS COMMUNITY CENTRE,"5,000.00",VCS GRANTS,GRANTS,5902559290,1039446
04.01.2023,COMMUNITIES,TIME & TALENTS ASSOCIATION,"4,500.00",VCS GRANTS,GRANTS,5902559291,1757632
04.01.2023,COMMUNITIES,LONDON WILDLIFE TRUST,"7,500.00",VCS GRANTS,GRANTS,5902559292,1832374
04.01.2023,COMMUNITIES,SOUTHWARK CITIZENS ADVICE,"5,600.00",VCS GRANTS,GRANTS,5902559293,1874379
04.01.2023,COMMUNITIES,SOMALI INTEGRATION & DEVELOPMENT ASSOCIATION,"14,000.00",VCS GRANTS,GRANTS,5902559294,11048946
04.01.2023,COMMUNITIES,GOLDEN OLDIES COMMUNITY CARE PROJECT,"2,500.00",VCS GRANTS,GRANTS,5902559295,11122958
04.01.2023,COMMUNITIES,BEDE HSE,"4,500.00",VCS GRANTS,GRANTS,5902559296,11248731
04.01.2023,COMMUNITIES,CAMBRIDGE HOUSE & TALBOT,"4,500.00",VCS GRANTS,GRANTS,5902559297,11248874
04.01.2023,COMMUNITIES,PECAN LTD,"6,500.00",VCS GRANTS,GRANTS,5902559299,11263114
04.01.2023,COMMUNITIES,PECAN LTD,"7,375.00",VCS GRANTS,GRANTS,5902559298,11263114
04.01.2023,COMMUNITIES,SURREY DOCKS FARM PROVIDENT SOCIETY,"10,000.00",VCS GRANTS,GRANTS,5902559300,1000000958
04.01.2023,COMMUNITIES,AAINA WOMEN GROUP,"8,018.25",VCS GRANTS,GRANTS,5902559301,1000002442
04.01.2023,COMMUNITIES,BANKSIDE OPEN SPACES TRUST,"4,208.00",VCS GRANTS,GRANTS,5902559302,1000018290
04.01.2023,COMMUNITIES,SOUTHWARK PENSIONERS CENTRE,"25,855.25",VCS GRANTS,GRANTS,5902559303,1000027831
04.01.2023,COMMUNITIES,SWK DAY CTR FOR ASYLUM SEEKERS,"11,330.25",VCS GRANTS,GRANTS,5902559304,1000040491
04.01.2023,COMMUNITIES,SOUTHWARK EVERY WOMAN'S CENTRE,"5,500.00",VCS GRANTS,GRANTS,5902559305,1000042216
04.01.2023,COMMUNITIES,FUTURE MEN,"4,125.00",VCS GRANTS,GRANTS,5902559306,1000046010
04.01.2023,COMMUNITIES,THE MANNA CENTRE,"13,750.00",VCS GRANTS,GRANTS,5902559307,1000048508
04.01.2023,COMMUNITIES,MENTAL FIGHT CLUB,"2,500.00",VCS GRANTS,GRANTS,5902559308,1000051170
04.01.2023,COMMUNITIES,LATIN AMERICAN DISABLED PEOPLE PROJECT,"4,625.00",VCS GRANTS,GRANTS,5902559309,1000058588
04.01.2023,COMMUNITIES,LATIN AMERICAN WOMEN'S RIGHTS SERVICES,"4,625.00",VCS GRANTS,GRANTS,5902559310,1000068356
04.01.2023,COMMUNITIES,PAXTON GREEN TIME BANK,"4,250.00",VCS GRANTS,GRANTS,5902559311,1000070648
04.01.2023,COMMUNITIES,BLACKFRIARS SETTLEMENT,"4,500.00",VCS GRANTS,GRANTS,5902559312,1000071456
04.01.2023,COMMUNITIES,PEMBROKE COLLEGE SETTLEMENT,"4,500.00",VCS GRANTS,GRANTS,5902559313,1000073444
04.01.2023,COMMUNITIES,BERMONDSEY COMMUNITY KITCHEN,"3,750.00",VCS GRANTS,GRANTS,5902559314,1000075477
04.01.2023,COMMUNITIES,THE BIKE PROJECT,"3,851.00",VCS GRANTS,GRANTS,5902559315,1000077217
04.01.2023,COMMUNITIES,SOUTHWARK TRAVELLERS' ACTION,"5,750.00",VCS GRANTS,GRANTS,5902559316,1000077795
04.01.2023,COMMUNITIES,GLOBAL GENERATION,"4,250.00",VCS GRANTS,GRANTS,5902559317,1000080135
04.01.2023,COMMUNITIES,SPRING COMMUNITY HUB,"5,250.00",VCS GRANTS,GRANTS,5902559318,1000083089
04.01.2023,COMMUNITIES,OPENING DOORS LONDON,"4,750.00",VCS GRANTS,GRANTS,5902559319,1000086261
04.01.2023,CUSTOMER EXPERIENCE HGF,IMPERIAL COLLEGE PROJECTS LTD,365,CORONER'S,PROFESSIONAL FEES,5902559283,1000080106
04.01.2023,CUSTOMER EXPERIENCE HGF,IMPERIAL COLLEGE PROJECTS LTD,365,CORONER'S,PROFESSIONAL FEES,5902559285,1000080106
04.01.2023,CUSTOMER EXPERIENCE HGF,IMPERIAL COLLEGE PROJECTS LTD,412,CORONER'S,PROFESSIONAL FEES,5902559284,1000080106
04.01.2023,CUSTOMER EXPERIENCE HGF,IMPERIAL COLLEGE PROJECTS LTD,412,CORONER'S,PROFESSIONAL FEES,5902559287,1000080106
04.01.2023,CUSTOMER EXPERIENCE HGF,IMPERIAL COLLEGE PROJECTS LTD,433,CORONER'S,PROFESSIONAL FEES,5902559281,1000080106
04.01.2023,CUSTOMER EXPERIENCE HGF,IMPERIAL COLLEGE PROJECTS LTD,501,CORONER'S,PROFESSIONAL FEES,5902559286,1000080106
04.01.2023,CUSTOMER EXPERIENCE HGF,IMPERIAL COLLEGE PROJECTS LTD,633,CORONER'S,PROFESSIONAL FEES,5902559282,1000080106
04.01.2023,CUSTOMER EXPERIENCE HGF,FORENSIC PATHOLOGY SERVICES,307.5,CORONER'S,PROFESSIONAL FEES,5902559347,1000086871
04.01.2023,CUSTOMER EXPERIENCE HGF,FORENSIC PATHOLOGY SERVICES,531.9,CORONER'S,PROFESSIONAL FEES,5902559349,1000086871
04.01.2023,CUSTOMER EXPERIENCE HGF,FORENSIC PATHOLOGY SERVICES,604.3,CORONER'S,PROFESSIONAL FEES,5902559346,1000086871
04.01.2023,CUSTOMER EXPERIENCE HGF,LONDON FORENSIC PATHOLOGY LIMITED,565,CORONER'S,PROFESSIONAL FEES,5902559338,1000087064
04.01.2023,CUSTOMER EXPERIENCE HGF,P3OD LIMITED,975,IT MANAGEMENT,TRAINING,5902559336,1000085859
04.01.2023,CUSTOMER EXPERIENCE HGF,P3OD LIMITED,"1,300.00",IT MANAGEMENT,TRAINING,5902559336,1000085859
04.01.2023,CUSTOMER EXPERIENCE HGF,P3OD LIMITED,"1,300.00",IT MANAGEMENT,TRAINING,5902559336,1000085859
04.01.2023,CUSTOMER EXPERIENCE HGF,P3OD LIMITED,"1,950.00",IT MANAGEMENT,TRAINING,5902559336,1000085859
04.01.2023,ENVIRONMENT DIRECTORATE,M H COACHWORKS & SONS LTD,541.17,COMMERCIAL VEH CTRL A/C,VEHICLE REPAIRS & MAINTENANCE,5902559370,1000033495
04.01.2023,ENVIRONMENT DIRECTORATE,M H COACHWORKS & SONS LTD,958.37,COMMERCIAL VEH CTRL A/C,VEHICLE REPAIRS & MAINTENANCE,5902559385,1000033495
04.01.2023,ENVIRONMENT DIRECTORATE,BOROUGH SMART LTD,"3,196.70",PUBLIC LIGHTING,MATERIALS,5902559389,1000083884
04.01.2023,ENVIRONMENT DIRECTORATE,NPOWER LTD,"1,014.46",STREET TRADING A/C,ELECTRICITY,5902559392,1000078994
04.01.2023,ENVIRONMENT DIRECTORATE,NPOWER LTD,"1,180.39",STREET TRADING A/C,ELECTRICITY,5902559351,1000078994
04.01.2023,ENVIRONMENT DIRECTORATE,NPOWER LTD,"1,329.93",STREET TRADING A/C,ELECTRICITY,5902559364,1000078994
04.01.2023,HOUSING,OCO LIMITED,"152,061.75",PAYMENTS CONTROL ACCOUNT - OCO,I-WORLD CONTRACTORS HOLDING ACCOUNT,5902559323,1006066
04.01.2023,HOUSING,SMITH & BYFORD LTD,"130,701.25",SMITH AND BYFORD,I-WORLD CONTRACTORS HOLDING ACCOUNT,5902559324,11212119
04.01.2023,HOUSING GENERAL FUND,LEADTEC LIMITED,"5,100.00",CAPITAL PS (STRAT SERV),ICT ACQUISITION,5902559360,1000088992
04.01.2023,HOUSING HRA,BAILY  GARNER LLP,"5,425.00",CAPITAL PS (HRA),CONSTRUCTION FEES  - EXTERNAL,5902558478,1000663
04.01.2023,HOUSING HRA,BAILY  GARNER LLP,"6,180.00",CAPITAL PS (HRA),CONSTRUCTION FEES  - EXTERNAL,5902558859,1000663
04.01.2023,HOUSING HRA,BAILY  GARNER LLP,"10,420.00",CAPITAL PS (HRA),CONSTRUCTION FEES  - EXTERNAL,5902559150,1000663
04.01.2023,HOUSING HRA,OPEN COMMUNITIES LTD,680,CAPITAL PS (HRA),CONSTRUCTION FEES  - EXTERNAL,5902559361,1000065800
04.01.2023,HOUSING HRA,OPEN COMMUNITIES LTD,"1,615.00",CAPITAL PS (HRA),CONSTRUCTION FEES  - EXTERNAL,5902559359,1000065800
04.01.2023,HOUSING HRA,MARTIN ARNOLD LTD,"3,062.50",CAPITAL PS (HRA),CONSTRUCTION FEES  - EXTERNAL,5902559366,1000076993
04.01.2023,HOUSING HRA,SHERGROUP LTD,"3,360.00",CAPITAL PS (HRA),CONSTRUCTION FEES  - EXTERNAL,5902559368,1000087977
04.01.2023,HOUSING HRA,SHERGROUP LTD,"3,360.00",CAPITAL PS (HRA),CONSTRUCTION FEES  - EXTERNAL,5902559369,1000087977
04.01.2023,HOUSING HRA,SHERGROUP LTD,"3,410.00",CAPITAL PS (HRA),CONSTRUCTION FEES  - EXTERNAL,5902559372,1000087977
04.01.2023,HOUSING HRA,SHERGROUP LTD,"3,410.00",CAPITAL PS (HRA),CONSTRUCTION FEES  - EXTERNAL,5902559380,1000087977
04.01.2023,HOUSING HRA,D R M M LIMITED,426.84,CAPITAL PS (HRA),CONSTRUCTION FEES - ARCHITECT,5902559357,1000087290
04.01.2023,HOUSING HRA,D R M M LIMITED,619.96,CAPITAL PS (HRA),CONSTRUCTION FEES - ARCHITECT,5902559357,1000087290
04.01.2023,HOUSING HRA,D R M M LIMITED,847.92,CAPITAL PS (HRA),CONSTRUCTION FEES - ARCHITECT,5902559357,1000087290
04.01.2023,HOUSING HRA,BAILY  GARNER LLP,"2,223.35",CAPITAL PS (HRA),CONSTRUCTION FEES - EMPLOYERS AGENT,5902557894,1000663
04.01.2023,HOUSING HRA,BAILY  GARNER LLP,"3,388.86",CAPITAL PS (HRA),CONSTRUCTION FEES - EMPLOYERS AGENT,5902557905,1000663
04.01.2023,HOUSING HRA,BAILY  GARNER LLP,"5,716.97",CAPITAL PS (HRA),CONSTRUCTION FEES - EMPLOYERS AGENT,5902557894,1000663
04.01.2023,HOUSING HRA,MARTIN ARNOLD LTD,"2,236.88",CAPITAL PS (HRA),CONSTRUCTION FEES - EMPLOYERS AGENT,5902559365,1000076993
04.01.2023,RESIDENT SERVICES HGF,ST MUNGO'S ASSOCIATION,"2,000.00",AFEO,EXTERNAL AGENCIES AND BODIES,5902559339,1000058785
04.01.2023,RESIDENT SERVICES HGF,LIFE SKILLZ CIC,828.75,AFEO,EXTERNAL AGENCIES AND BODIES,5902559337,1000088098
04.01.2023,RESIDENT SERVICES HGF,LIFE SKILLZ CIC,"2,916.83",AFEO,EXTERNAL AGENCIES AND BODIES,5902559337,1000088098
04.01.2023,RESIDENT SERVICES HGF,FRESHVIEW ESTATES,"1,812.33",HOMELESS PROJECTS,GRANTS,5902559363,1000086397
05.01.2023,ADULT SOCIAL CARE,REDACTED PERSONAL DATA,600,APPOINTEESHIPS,OTHER PAYMENTS FOR CLIENTS,REDACTED,REDACTED
05.01.2023,ADULT SOCIAL CARE,BEDE HOUSE ASSOCIATION,"1,460.00",LD LTS 18-64,DAYCARE,2103606990,1553877
05.01.2023,ADULT SOCIAL CARE,MEDACS HOMECARE,"1,730.00",LD LTS 18-64,SUPPORTED LIVING,2103606992,11287415
05.01.2023,ADULT SOCIAL CARE,LAMBETH CHINESE COMMUNITY ASSOCIATION,532,MH LTS 18-64,SUPPORTED LIVING,2103606996,11117038
05.01.2023,ADULT SOCIAL CARE,SUPREME CARE SERVICES LTD,"2,824.40",PHY LTS 18-64,HOMECARE - C&V,2103606973,1000059416
05.01.2023,ADULT SOCIAL CARE,SAGECARE LTD,"2,232.51",PHY LTS 18-64,HOMECARE - C&V,2103606998,1000080924
05.01.2023,ADULT SOCIAL CARE,REALITY FAMILY SUPPORT SERVICES LTD,"1,375.85",PHY LTS 18-64,OTHER PAYMENTS FOR CLIENTS,5902559204,1000087878
05.01.2023,ADULT SOCIAL CARE,SUPREME CARE SERVICES LTD,373.21,PHY LTS 65+,HOMECARE - C&V,2103606981,1000059416
05.01.2023,ADULT SOCIAL CARE,SUPREME CARE SERVICES LTD,597.84,PHY LTS 65+,HOMECARE - C&V,2103607008,1000059416
05.01.2023,ADULT SOCIAL CARE,SUPREME CARE SERVICES LTD,855.05,PHY LTS 65+,HOMECARE - C&V,2103607010,1000059416
05.01.2023,ADULT SOCIAL CARE,SUPREME CARE SERVICES LTD,867.54,PHY LTS 65+,HOMECARE - C&V,2103607000,1000059416
05.01.2023,ADULT SOCIAL CARE,SUPREME CARE SERVICES LTD,876.61,PHY LTS 65+,HOMECARE - C&V,2103607007,1000059416
05.01.2023,ADULT SOCIAL CARE,SUPREME CARE SERVICES LTD,881.02,PHY LTS 65+,HOMECARE - C&V,2103607001,1000059416
05.01.2023,ADULT SOCIAL CARE,SUPREME CARE SERVICES LTD,881.02,PHY LTS 65+,HOMECARE - C&V,2103607002,1000059416
05.01.2023,ADULT SOCIAL CARE,SUPREME CARE SERVICES LTD,881.02,PHY LTS 65+,HOMECARE - C&V,2103607003,1000059416
05.01.2023,ADULT SOCIAL CARE,SUPREME CARE SERVICES LTD,881.02,PHY LTS 65+,HOMECARE - C&V,2103607004,1000059416
05.01.2023,ADULT SOCIAL CARE,SUPREME CARE SERVICES LTD,881.02,PHY LTS 65+,HOMECARE - C&V,2103607005,1000059416
05.01.2023,ADULT SOCIAL CARE,SUPREME CARE SERVICES LTD,881.02,PHY LTS 65+,HOMECARE - C&V,2103607006,1000059416
05.01.2023,ADULT SOCIAL CARE,SUPREME CARE SERVICES LTD,881.02,PHY LTS 65+,HOMECARE - C&V,2103607009,1000059416
05.01.2023,ADULT SOCIAL CARE,SUPREME CARE SERVICES LTD,881.02,PHY LTS 65+,HOMECARE - C&V,2103607011,1000059416
05.01.2023,ADULT SOCIAL CARE,SUPREME CARE SERVICES LTD,921.5,PHY LTS 65+,HOMECARE - C&V,2103606974,1000059416
05.01.2023,ADULT SOCIAL CARE,SUPREME CARE SERVICES LTD,921.5,PHY LTS 65+,HOMECARE - C&V,2103606979,1000059416
05.01.2023,ADULT SOCIAL CARE,SUPREME CARE SERVICES LTD,"2,566.38",PHY LTS 65+,HOMECARE - C&V,2103606976,1000059416
05.01.2023,ADULT SOCIAL CARE,LEWISHAM INDO CHINESE COMMUNITY,352,SEN LTS 65+,DAYCARE,2103606988,1000076593
05.01.2023,ADULT SOCIAL CARE,EDEN SPRINGS (UK) LTD,453.16,TRANSFER OF CARE SERVICES,CATERING MATERIALS & SUPPLIES,5902559500,1000037350
05.01.2023,CENTRAL FUNCTIONS,BLOOM PROCUREMENT SERVICES LTD,"112,526.40",LEDBURY ESTATE,SECURITY SERVICES,5902559510,1000082531
05.01.2023,CHIEF EXECUTIVE,MARTIN ARNOLD LTD,"2,166.67",CAPITAL PS (REGEN),CONSTRUCTION FEES  - EXTERNAL,5902559526,1000076993
05.01.2023,CHILDREN AND FAMILIES,REDACTED PERSONAL DATA,375.54,ADOPTION ALLOWANCES,PAYMENTS TO CARERS,REDACTED,REDACTED
05.01.2023,CHILDREN AND FAMILIES,PLACEMENT SUPPORT LTD,540,ADOPTION SUPP FUND 1,EXTERNAL AGENCIES AND BODIES,5902559527,1000085153
05.01.2023,CHILDREN AND FAMILIES,PLACEMENT SUPPORT LTD,720,ADOPTION SUPP FUND 1,EXTERNAL AGENCIES AND BODIES,5902559531,1000085153
05.01.2023,CHILDREN AND FAMILIES,PLACEMENT SUPPORT LTD,900,ADOPTION SUPP FUND 1,EXTERNAL AGENCIES AND BODIES,5902559528,1000085153
05.01.2023,CHILDREN AND FAMILIES,ALICE MALLORIE THERAPY SERVICE,405,ADOPTION SUPP FUND 1,EXTERNAL AGENCIES AND BODIES,5902559467,1000085491
05.01.2023,CHILDREN AND FAMILIES,PLAY THERAPY SERVICES LTD,650,ADOPTION SUPP FUND 1,EXTERNAL AGENCIES AND BODIES,5902559464,1000085546
05.01.2023,CHILDREN AND FAMILIES,INDEPENDENT BIA LTD,400,ADOPTION SUPP FUND 1,EXTERNAL AGENCIES AND BODIES,5902559485,1000086264
05.01.2023,CHILDREN AND FAMILIES,REDACTED PERSONAL DATA,338,ADOPTION SUPP FUND 1,EXTERNAL AGENCIES AND BODIES,REDACTED,REDACTED
05.01.2023,CHILDREN AND FAMILIES,REDACTED PERSONAL DATA,700,ADOPTION SUPP FUND 1,EXTERNAL AGENCIES AND BODIES,REDACTED,REDACTED
05.01.2023,CHILDREN AND FAMILIES,FAMILY ACTION,"1,974.00",ADOPTION SUPP FUND 2,EXTERNAL AGENCIES AND BODIES,5902559537,1013739
05.01.2023,CHILDREN AND FAMILIES,FAMILY FUTURES CIC,"2,400.00",ADOPTION SUPP FUND 2,EXTERNAL AGENCIES AND BODIES,5902559534,1000027893
05.01.2023,CHILDREN AND FAMILIES,PLACEMENT SUPPORT LTD,480,ADOPTION SUPP FUND 2,EXTERNAL AGENCIES AND BODIES,5902559533,1000085153
05.01.2023,CHILDREN AND FAMILIES,PLACEMENT SUPPORT LTD,720,ADOPTION SUPP FUND 2,EXTERNAL AGENCIES AND BODIES,5902559529,1000085153
05.01.2023,CHILDREN AND FAMILIES,PLACEMENT SUPPORT LTD,"1,005.00",ADOPTION SUPP FUND 2,EXTERNAL AGENCIES AND BODIES,5902559532,1000085153
05.01.2023,CHILDREN AND FAMILIES,ALICE MALLORIE THERAPY SERVICE,320,ADOPTION SUPP FUND 2,EXTERNAL AGENCIES AND BODIES,5902559469,1000085491
05.01.2023,CHILDREN AND FAMILIES,PLAY THERAPY SERVICES LTD,400,ADOPTION SUPP FUND 2,EXTERNAL AGENCIES AND BODIES,5902559460,1000085546
05.01.2023,CHILDREN AND FAMILIES,PLAY TOGETHER LIMITED,840,ADOPTION SUPP FUND 2,EXTERNAL AGENCIES AND BODIES,5902559452,1000085787
05.01.2023,CHILDREN AND FAMILIES,PLAY TOGETHER LIMITED,840,ADOPTION SUPP FUND 2,EXTERNAL AGENCIES AND BODIES,5902559453,1000085787
05.01.2023,CHILDREN AND FAMILIES,PLAY TOGETHER LIMITED,840,ADOPTION SUPP FUND 2,EXTERNAL AGENCIES AND BODIES,5902559455,1000085787
05.01.2023,CHILDREN AND FAMILIES,PLAY TOGETHER LIMITED,840,ADOPTION SUPP FUND 2,EXTERNAL AGENCIES AND BODIES,5902559458,1000085787
05.01.2023,CHILDREN AND FAMILIES,PLAY TOGETHER LIMITED,960,ADOPTION SUPP FUND 2,EXTERNAL AGENCIES AND BODIES,5902559456,1000085787
05.01.2023,CHILDREN AND FAMILIES,LYNNE  DAVIS,616,ADOPTION SUPP FUND 2,EXTERNAL AGENCIES AND BODIES,5902559459,1000087768
05.01.2023,CHILDREN AND FAMILIES,THE SURREY CENTRE LIMITED,345,ADOPTION SUPP FUND 2,EXTERNAL AGENCIES AND BODIES,5902559465,1000088492
05.01.2023,CHILDREN AND FAMILIES,REDACTED PERSONAL DATA,"2,500.00",ADOPTION SUPP FUND 2,EXTERNAL AGENCIES AND BODIES,REDACTED,REDACTED
05.01.2023,CHILDREN AND FAMILIES,REDACTED PERSONAL DATA,"2,500.00",ADOPTION SUPP FUND 2,EXTERNAL AGENCIES AND BODIES,REDACTED,REDACTED
05.01.2023,CHILDREN AND FAMILIES,REDACTED PERSONAL DATA,"2,500.00",ADOPTION SUPP FUND 2,EXTERNAL AGENCIES AND BODIES,REDACTED,REDACTED
05.01.2023,CHILDREN AND FAMILIES,REDACTED PERSONAL DATA,307.5,ADOPTION SUPP FUND 2,EXTERNAL AGENCIES AND BODIES,REDACTED,REDACTED
05.01.2023,CHILDREN AND FAMILIES,REDACTED PERSONAL DATA,480,ADOPTION SUPP FUND 2,EXTERNAL AGENCIES AND BODIES,REDACTED,REDACTED
05.01.2023,CHILDREN AND FAMILIES,REDACTED PERSONAL DATA,336,ADOPTION SUPP FUND 2,EXTERNAL AGENCIES AND BODIES,REDACTED,REDACTED
05.01.2023,CHILDREN AND FAMILIES,REDACTED PERSONAL DATA,350,ADOPTION SUPP FUND 2,EXTERNAL AGENCIES AND BODIES,REDACTED,REDACTED
05.01.2023,CHILDREN AND FAMILIES,REDACTED PERSONAL DATA,303.4,ADOPTION SUPP FUND 2,EXTERNAL AGENCIES AND BODIES,REDACTED,REDACTED
05.01.2023,CHILDREN AND FAMILIES,REDACTED PERSONAL DATA,455.1,ADOPTION SUPP FUND 2,EXTERNAL AGENCIES AND BODIES,REDACTED,REDACTED
05.01.2023,CHILDREN AND FAMILIES,REDACTED PERSONAL DATA,750,ADOPTION SUPP FUND 2,EXTERNAL AGENCIES AND BODIES,REDACTED,REDACTED
05.01.2023,CHILDREN AND FAMILIES,REDACTED PERSONAL DATA,270,ADOPTION SUPP FUND 2,EXTERNAL AGENCIES AND BODIES,REDACTED,REDACTED
05.01.2023,CHILDREN AND FAMILIES,1ST PLACE CHILDREN & PARENTS CENTRE,"105,116.00",CHILD & FAM CENTRES,EXTERNAL AGENCIES AND BODIES,2103607015,1000049952
05.01.2023,CHILDREN AND FAMILIES,COIN STREET COMMUNITY BUILDERS LTD,"33,492.00",CHILD & FAM CENTRES,EXTERNAL AGENCIES AND BODIES,2103607016,1000050940
05.01.2023,CHILDREN AND FAMILIES,IVYDALE PRIMARY SCHOOL,"163,122.00",CHILD & FAM CENTRES,EXTERNAL AGENCIES AND BODIES,2103607017,5001000038
05.01.2023,CHILDREN AND FAMILIES,PILGRIM'S WAY PRIMARY SCHOOL,"133,309.00",CHILD & FAM CENTRES,EXTERNAL AGENCIES AND BODIES,2103607019,5001000054
05.01.2023,CHILDREN AND FAMILIES,DULWICH WOOD CHILDRENS CENTRE,"131,984.00",CHILD & FAM CENTRES,EXTERNAL AGENCIES AND BODIES,2103607018,5001000099
05.01.2023,CHILDREN AND FAMILIES,REALITY FAMILY SUPPORT SERVICES LTD,589.65,EDGE OF CARE DECIS�S,OTHER PAYMENTS FOR CLIENTS,5902559204,1000087878
05.01.2023,CHILDREN AND FAMILIES,REDACTED PERSONAL DATA,371.55,FAMILY GROUP CONF�S,PROFESSIONAL FEES,REDACTED,REDACTED
05.01.2023,CHILDREN AND FAMILIES,REDACTED PERSONAL DATA,300,FE SUPPORT,CLIENT TRANSPORT,REDACTED,REDACTED
05.01.2023,CHILDREN AND FAMILIES,REDACTED PERSONAL DATA,500,FE SUPPORT,OTHER PAYMENTS FOR CLIENTS,REDACTED,REDACTED
05.01.2023,CHILDREN AND FAMILIES,REDACTED PERSONAL DATA,400,P & R CARE TEAM,OTHER PAYMENTS FOR CLIENTS,REDACTED,REDACTED
05.01.2023,CHILDREN AND FAMILIES,REDACTED PERSONAL DATA,630.05,UASC CARELEAVERS,OTHER PAYMENTS FOR CLIENTS,REDACTED,REDACTED
05.01.2023,CHILDREN AND FAMILIES,REDACTED PERSONAL DATA,375,YJS MGMT & SUPPORT,EXTERNAL AGENCIES AND BODIES,REDACTED,REDACTED
05.01.2023,CHILDREN AND FAMILIES,REDACTED PERSONAL DATA,300,YJS MGMT & SUPPORT,EXTERNAL AGENCIES AND BODIES,REDACTED,REDACTED
05.01.2023,COMMUNITIES,REDACTED PERSONAL DATA,350,UKRAINIAN PROGRAMME,GRANTS,REDACTED,REDACTED
05.01.2023,COMMUNITIES,REDACTED PERSONAL DATA,350,UKRAINIAN PROGRAMME,GRANTS,REDACTED,REDACTED
05.01.2023,COMMUNITIES,REDACTED PERSONAL DATA,350,UKRAINIAN PROGRAMME,GRANTS,REDACTED,REDACTED
05.01.2023,COMMUNITIES,REDACTED PERSONAL DATA,350,UKRAINIAN PROGRAMME,GRANTS,REDACTED,REDACTED
05.01.2023,COMMUNITIES,REDACTED PERSONAL DATA,350,UKRAINIAN PROGRAMME,GRANTS,REDACTED,REDACTED
05.01.2023,COMMUNITIES,REDACTED PERSONAL DATA,350,UKRAINIAN PROGRAMME,GRANTS,REDACTED,REDACTED
05.01.2023,DSG,ACCESS MOBILITY TRANSPORT LTD,"1,200.00",ALTERNATIVE PROVISION,EXTERNAL AGENCIES AND BODIES,5902559525,1000074637
05.01.2023,DSG,ACCESS MOBILITY TRANSPORT LTD,"2,700.00",ALTERNATIVE PROVISION,EXTERNAL AGENCIES AND BODIES,5902559412,1000074637
05.01.2023,DSG,PHOENIXPLACE,"2,688.00",ALTERNATIVE PROVISION,EXTERNAL AGENCIES AND BODIES,5902559523,1000075565
05.01.2023,EDUCATION,OT GROUP LIMITED,517.99,ALC  DIRECT DELIVERY,STATIONERY,5902559521,1000087285
05.01.2023,EDUCATION,ANDREW DODGE,"1,500.00",GOVERNOR SUPPORT,CONSULTANTS SERVICES,5902559438,1000046142
05.01.2023,ENVIRONMENT AND LEISURE,METIS CONSULTANTS LIMITED,"2,536.24",CAPITAL PS (LEISURE),CONSTRUCTION FEES  - EXTERNAL,5902559505,1000086330
05.01.2023,ENVIRONMENT AND LEISURE,TRANSPORT FOR ALL,"1,750.00",CAPITAL PS (LEISURE),CONSTRUCTION FEES  - EXTERNAL,5902559506,1000087179
05.01.2023,ENVIRONMENT DIRECTORATE,MARSTON GROUP LTD,279,CAR LEASING CTRL A/C,PARKING CHARGES,5902559495,1000011313
05.01.2023,ENVIRONMENT DIRECTORATE,VERITAS PEST CONSULTANCY LTD,"2,795.00",COMMERCIAL PEST CONTROL WORKS,TRAINING,5902559425,1000088752
05.01.2023,ENVIRONMENT DIRECTORATE,PACE ACCIDENT REPAIRS CENTRE LTD,380,COMMERCIAL VEH CTRL A/C,HIRED VEHICLES,5902559423,1000069899
05.01.2023,ENVIRONMENT DIRECTORATE,SHELL UK OIL PRODUCTS LTD,534.86,COMMERCIAL VEH CTRL A/C,VEHICLE FUEL,5902559474,1000081254
05.01.2023,ENVIRONMENT DIRECTORATE,SHELL UK OIL PRODUCTS LTD,535.4,COMMERCIAL VEH CTRL A/C,VEHICLE FUEL,5902559454,1000081254
05.01.2023,ENVIRONMENT DIRECTORATE,SHELL UK OIL PRODUCTS LTD,796.05,COMMERCIAL VEH CTRL A/C,VEHICLE FUEL,5902559480,1000081254
05.01.2023,ENVIRONMENT DIRECTORATE,SHELL UK OIL PRODUCTS LTD,"1,064.49",COMMERCIAL VEH CTRL A/C,VEHICLE FUEL,5902559448,1000081254
05.01.2023,ENVIRONMENT DIRECTORATE,SHELL UK OIL PRODUCTS LTD,"1,149.17",COMMERCIAL VEH CTRL A/C,VEHICLE FUEL,5902559493,1000081254
05.01.2023,ENVIRONMENT DIRECTORATE,SHELL UK OIL PRODUCTS LTD,"1,171.66",COMMERCIAL VEH CTRL A/C,VEHICLE FUEL,5902559486,1000081254
05.01.2023,ENVIRONMENT DIRECTORATE,SHELL UK OIL PRODUCTS LTD,"6,055.19",COMMERCIAL VEH CTRL A/C,VEHICLE FUEL,5902559450,1000081254
05.01.2023,ENVIRONMENT DIRECTORATE,DAWSON RENTALS SWEEPERS,379.99,COMMERCIAL VEH CTRL A/C,VEHICLE REPAIRS & MAINTENANCE,5902559427,1000068168
05.01.2023,ENVIRONMENT DIRECTORATE,GREENHAM TRADING LTD,"1,709.40",PEST CONTROL,MATERIALS,5902559426,1000006610
05.01.2023,ENVIRONMENT DIRECTORATE,KENT COUNTY COUNCIL - LASER,845.63,STREET LIGHTING REACTIVE,ELECTRICITY,5902559501,1000012926
05.01.2023,ENVIRONMENT DIRECTORATE,NPOWER LTD,599.75,STREET TRADING A/C,ELECTRICITY,5902559415,1000078994
05.01.2023,HOUSING HRA,SILVER DCC LTD,"1,342.65",CAPITAL PS (HRA),CONSTRUCTION FEES  - EXTERNAL,5902559516,1000087546
05.01.2023,HOUSING HRA,CALFORD SEADEN LLP,"6,210.00",CAPITAL PS (HRA),CONSTRUCTION FEES - EMPLOYERS AGENT,5902559502,1061592
05.01.2023,HOUSING HRA,XC02 ENERGY LTD,"8,972.50",CAPITAL PS (HRA),CONSTRUCTION FEES - ENGINEER,5902559512,1000050094
05.01.2023,HOUSING HRA,XC02 ENERGY LTD,"17,945.00",CAPITAL PS (HRA),CONSTRUCTION FEES - ENGINEER,5902559511,1000050094
05.01.2023,HOUSING HRA,LEVITT BERNSTEIN ASSOCIATION LIMITED,"1,738.00",CAPITAL PS (REGEN),CONSTRUCTION FEES - ARCHITECT,5902559504,1000036622
05.01.2023,HOUSING HRA,BLOOM PROCUREMENT SERVICES LTD,"14,450.00",CAPITAL PS (REGEN),CONSTRUCTION FEES - QUANTITY SURVEYOR,5902559503,1000082531
05.01.2023,RESIDENT SERVICES HGF,OLIVER LANDON LTD,"11,070.00",NIGHTLY TA (NSC),EXTERNAL AGENCIES AND BODIES,5902559522,1000082788
05.01.2023,RESIDENT SERVICES HGF,CITYGLEN LTD,"6,405.00",RAPID REHOUSING,EXTERNAL AGENCIES AND BODIES,5902559413,1000026239
05.01.2023,RESIDENT SERVICES HGF,STEF & PHILIPS LTD,"37,223.00",RAPID REHOUSING,EXTERNAL AGENCIES AND BODIES,5902559431,1000088522
05.01.2023,STRATEGIC FINANCING BUDGETS,COMENSURA LTD,"401,314.65",WEEKLY PAYMENTS,AGENCY STAFF,5902559524,1000051261
06.01.2023,ADULT SOCIAL CARE,229 MITCHAM LANE LTD,735,APPOINTEESHIPS,OTHER PAYMENTS FOR CLIENTS,2103607383,1000083875
06.01.2023,ADULT SOCIAL CARE,CHOICE SUPPORT,"1,116.92",APPOINTEESHIPS,OTHER PAYMENTS FOR CLIENTS,2103607385,1000089285
06.01.2023,ADULT SOCIAL CARE,CHOICE SUPPORT,"2,874.48",APPOINTEESHIPS,OTHER PAYMENTS FOR CLIENTS,2103607386,1000089285
06.01.2023,ADULT SOCIAL CARE,CREATING CARE CHOICES LTD,"21,921.43",DISABILITIES LAC,RESIDENTIAL CARE,2103607254,1000076738
06.01.2023,ADULT SOCIAL CARE,SURREY DOCKS FARM PROVIDENT SOCIETY,480,LD LTS 18-64,DAYCARE,2103607346,1000000958
06.01.2023,ADULT SOCIAL CARE,SURREY DOCKS FARM PROVIDENT SOCIETY,500,LD LTS 18-64,DAYCARE,2103607341,1000000958
06.01.2023,ADULT SOCIAL CARE,SURREY DOCKS FARM PROVIDENT SOCIETY,720,LD LTS 18-64,DAYCARE,2103607342,1000000958
06.01.2023,ADULT SOCIAL CARE,THE CAMDEN SOCIETY (SOCIAL CARE),"2,374.00",LD LTS 18-64,DAYCARE,2103607376,1000036369
06.01.2023,ADULT SOCIAL CARE,MEDACS HOMECARE,774.4,LD LTS 18-64,HOMECARE - C&V,2103607357,11287415
06.01.2023,ADULT SOCIAL CARE,MEDACS HOMECARE,"2,076.00",LD LTS 18-64,HOMECARE - C&V,2103607358,11287415
06.01.2023,ADULT SOCIAL CARE,MEDACS HOMECARE,276.8,LD LTS 18-64,SUPPORTED LIVING,2103607349,11287415
06.01.2023,ADULT SOCIAL CARE,MEDACS HOMECARE,276.8,LD LTS 18-64,SUPPORTED LIVING,2103607351,11287415
06.01.2023,ADULT SOCIAL CARE,MEDACS HOMECARE,346,LD LTS 18-64,SUPPORTED LIVING,2103607352,11287415
06.01.2023,ADULT SOCIAL CARE,MEDACS HOMECARE,740.16,LD LTS 18-64,SUPPORTED LIVING,2103607350,11287415
06.01.2023,ADULT SOCIAL CARE,MEDACS HOMECARE,968.8,LD LTS 18-64,SUPPORTED LIVING,2103607354,11287415
06.01.2023,ADULT SOCIAL CARE,MEDACS HOMECARE,"1,297.50",LD LTS 18-64,SUPPORTED LIVING,2103607356,11287415
06.01.2023,ADULT SOCIAL CARE,MEDACS HOMECARE,"1,522.40",LD LTS 18-64,SUPPORTED LIVING,2103607353,11287415
06.01.2023,ADULT SOCIAL CARE,MEDACS HOMECARE,"1,799.20",LD LTS 18-64,SUPPORTED LIVING,2103607347,11287415
06.01.2023,ADULT SOCIAL CARE,SURREY DOCKS FARM PROVIDENT SOCIETY,360,LD LTS 65+,DAYCARE,2103607344,1000000958
06.01.2023,ADULT SOCIAL CARE,SAGECARE LTD,968.97,MEM LTS 65+,HOMECARE - C&V,2103607361,1000080924
06.01.2023,ADULT SOCIAL CARE,CAREPOINT SERVICES LTD,668.75,MH LTS 18-64,HOMECARE - C&V,2103607315,1000087914
06.01.2023,ADULT SOCIAL CARE,CAREPOINT SERVICES LTD,"1,284.12",MH LTS 18-64,HOMECARE - C&V,2103607322,1000087914
06.01.2023,ADULT SOCIAL CARE,LONDON CARE LTD,"1,691.00",MH LTS 65+,HOMECARE - C&V,2103607298,1000003398
06.01.2023,ADULT SOCIAL CARE,MEDACS HOMECARE,276.8,PHY LTS 18-64,HOMECARE - C&V,2103607355,11287415
06.01.2023,ADULT SOCIAL CARE,LONDON CARE LTD,475,PHY LTS 18-64,HOMECARE - C&V,2103607276,1000003398
06.01.2023,ADULT SOCIAL CARE,LONDON CARE LTD,753.59,PHY LTS 18-64,HOMECARE - C&V,2103607271,1000003398
06.01.2023,ADULT SOCIAL CARE,LONDON CARE LTD,812.17,PHY LTS 18-64,HOMECARE - C&V,2103607293,1000003398
06.01.2023,ADULT SOCIAL CARE,LONDON CARE LTD,"1,836.26",PHY LTS 18-64,HOMECARE - C&V,2103607272,1000003398
06.01.2023,ADULT SOCIAL CARE,LONDON CARE LTD,"2,346.50",PHY LTS 18-64,HOMECARE - C&V,2103607273,1000003398
06.01.2023,ADULT SOCIAL CARE,SAGECARE LTD,570,PHY LTS 18-64,HOMECARE - C&V,2103607362,1000080924
06.01.2023,ADULT SOCIAL CARE,SAGECARE LTD,"1,073.10",PHY LTS 18-64,HOMECARE - C&V,2103607360,1000080924
06.01.2023,ADULT SOCIAL CARE,CAREPOINT SERVICES LTD,356.76,PHY LTS 18-64,HOMECARE - C&V,2103607334,1000087914
06.01.2023,ADULT SOCIAL CARE,CAREPOINT SERVICES LTD,374.36,PHY LTS 18-64,HOMECARE - C&V,2103607312,1000087914
06.01.2023,ADULT SOCIAL CARE,CAREPOINT SERVICES LTD,570.56,PHY LTS 18-64,HOMECARE - C&V,2103607308,1000087914
06.01.2023,ADULT SOCIAL CARE,CAREPOINT SERVICES LTD,664.23,PHY LTS 18-64,HOMECARE - C&V,2103607311,1000087914
06.01.2023,ADULT SOCIAL CARE,CAREPOINT SERVICES LTD,"1,480.08",PHY LTS 18-64,HOMECARE - C&V,2103607318,1000087914
06.01.2023,ADULT SOCIAL CARE,CAREPOINT SERVICES LTD,"1,854.72",PHY LTS 18-64,HOMECARE - C&V,2103607307,1000087914
06.01.2023,ADULT SOCIAL CARE,CAREPOINT SERVICES LTD,"3,120.32",PHY LTS 18-64,HOMECARE - C&V,2103607326,1000087914
06.01.2023,ADULT SOCIAL CARE,LONDON CARE LTD,261.22,PHY LTS 65+,HOMECARE - C&V,2103607286,1000003398
06.01.2023,ADULT SOCIAL CARE,LONDON CARE LTD,261.25,PHY LTS 65+,HOMECARE - C&V,2103607285,1000003398
06.01.2023,ADULT SOCIAL CARE,LONDON CARE LTD,273.57,PHY LTS 65+,HOMECARE - C&V,2103607278,1000003398
06.01.2023,ADULT SOCIAL CARE,LONDON CARE LTD,280.25,PHY LTS 65+,HOMECARE - C&V,2103607267,1000003398
06.01.2023,ADULT SOCIAL CARE,LONDON CARE LTD,323,PHY LTS 65+,HOMECARE - C&V,2103607270,1000003398
06.01.2023,ADULT SOCIAL CARE,LONDON CARE LTD,341.96,PHY LTS 65+,HOMECARE - C&V,2103607280,1000003398
06.01.2023,ADULT SOCIAL CARE,LONDON CARE LTD,351.5,PHY LTS 65+,HOMECARE - C&V,2103607297,1000003398
06.01.2023,ADULT SOCIAL CARE,LONDON CARE LTD,384.75,PHY LTS 65+,HOMECARE - C&V,2103607291,1000003398
06.01.2023,ADULT SOCIAL CARE,LONDON CARE LTD,389.5,PHY LTS 65+,HOMECARE - C&V,2103607269,1000003398
06.01.2023,ADULT SOCIAL CARE,LONDON CARE LTD,389.5,PHY LTS 65+,HOMECARE - C&V,2103607284,1000003398
06.01.2023,ADULT SOCIAL CARE,LONDON CARE LTD,503.37,PHY LTS 65+,HOMECARE - C&V,2103607288,1000003398
06.01.2023,ADULT SOCIAL CARE,LONDON CARE LTD,532,PHY LTS 65+,HOMECARE - C&V,2103607287,1000003398
06.01.2023,ADULT SOCIAL CARE,LONDON CARE LTD,636.5,PHY LTS 65+,HOMECARE - C&V,2103607264,1000003398
06.01.2023,ADULT SOCIAL CARE,LONDON CARE LTD,712.46,PHY LTS 65+,HOMECARE - C&V,2103607277,1000003398
06.01.2023,ADULT SOCIAL CARE,LONDON CARE LTD,779,PHY LTS 65+,HOMECARE - C&V,2103607268,1000003398
06.01.2023,ADULT SOCIAL CARE,LONDON CARE LTD,802.67,PHY LTS 65+,HOMECARE - C&V,2103607281,1000003398
06.01.2023,ADULT SOCIAL CARE,LONDON CARE LTD,859.75,PHY LTS 65+,HOMECARE - C&V,2103607282,1000003398
06.01.2023,ADULT SOCIAL CARE,LONDON CARE LTD,930.72,PHY LTS 65+,HOMECARE - C&V,2103607263,1000003398
06.01.2023,ADULT SOCIAL CARE,LONDON CARE LTD,931,PHY LTS 65+,HOMECARE - C&V,2103607279,1000003398
06.01.2023,ADULT SOCIAL CARE,LONDON CARE LTD,"1,114.90",PHY LTS 65+,HOMECARE - C&V,2103607295,1000003398
06.01.2023,ADULT SOCIAL CARE,LONDON CARE LTD,"1,125.75",PHY LTS 65+,HOMECARE - C&V,2103607283,1000003398
06.01.2023,ADULT SOCIAL CARE,LONDON CARE LTD,"1,168.51",PHY LTS 65+,HOMECARE - C&V,2103607299,1000003398
06.01.2023,ADULT SOCIAL CARE,LONDON CARE LTD,"1,381.22",PHY LTS 65+,HOMECARE - C&V,2103607294,1000003398
06.01.2023,ADULT SOCIAL CARE,LONDON CARE LTD,"2,995.69",PHY LTS 65+,HOMECARE - C&V,2103607289,1000003398
06.01.2023,ADULT SOCIAL CARE,SAGECARE LTD,346.71,PHY LTS 65+,HOMECARE - C&V,2103607372,1000080924
06.01.2023,ADULT SOCIAL CARE,SAGECARE LTD,413.16,PHY LTS 65+,HOMECARE - C&V,2103607365,1000080924
06.01.2023,ADULT SOCIAL CARE,SAGECARE LTD,532,PHY LTS 65+,HOMECARE - C&V,2103607366,1000080924
06.01.2023,ADULT SOCIAL CARE,SAGECARE LTD,665,PHY LTS 65+,HOMECARE - C&V,2103607374,1000080924
06.01.2023,ADULT SOCIAL CARE,SAGECARE LTD,"1,072.49",PHY LTS 65+,HOMECARE - C&V,2103607370,1000080924
06.01.2023,ADULT SOCIAL CARE,SAGECARE LTD,"1,253.69",PHY LTS 65+,HOMECARE - C&V,2103607375,1000080924
06.01.2023,ADULT SOCIAL CARE,SAGECARE LTD,"1,457.97",PHY LTS 65+,HOMECARE - C&V,2103607363,1000080924
06.01.2023,ADULT SOCIAL CARE,SAGECARE LTD,"2,638.08",PHY LTS 65+,HOMECARE - C&V,2103607373,1000080924
06.01.2023,ADULT SOCIAL CARE,CAREPOINT SERVICES LTD,285.24,PHY LTS 65+,HOMECARE - C&V,2103607314,1000087914
06.01.2023,ADULT SOCIAL CARE,CAREPOINT SERVICES LTD,298.67,PHY LTS 65+,HOMECARE - C&V,2103607331,1000087914
06.01.2023,ADULT SOCIAL CARE,CAREPOINT SERVICES LTD,392.2,PHY LTS 65+,HOMECARE - C&V,2103607304,1000087914
06.01.2023,ADULT SOCIAL CARE,CAREPOINT SERVICES LTD,499.24,PHY LTS 65+,HOMECARE - C&V,2103607328,1000087914
06.01.2023,ADULT SOCIAL CARE,CAREPOINT SERVICES LTD,535.08,PHY LTS 65+,HOMECARE - C&V,2103607325,1000087914
06.01.2023,ADULT SOCIAL CARE,CAREPOINT SERVICES LTD,624.12,PHY LTS 65+,HOMECARE - C&V,2103607303,1000087914
06.01.2023,ADULT SOCIAL CARE,CAREPOINT SERVICES LTD,624.12,PHY LTS 65+,HOMECARE - C&V,2103607321,1000087914
06.01.2023,ADULT SOCIAL CARE,CAREPOINT SERVICES LTD,722.25,PHY LTS 65+,HOMECARE - C&V,2103607316,1000087914
06.01.2023,ADULT SOCIAL CARE,CAREPOINT SERVICES LTD,972.04,PHY LTS 65+,HOMECARE - C&V,2103607306,1000087914
06.01.2023,ADULT SOCIAL CARE,CAREPOINT SERVICES LTD,"1,123.64",PHY LTS 65+,HOMECARE - C&V,2103607305,1000087914
06.01.2023,ADULT SOCIAL CARE,CAREPOINT SERVICES LTD,"1,747.76",PHY LTS 65+,HOMECARE - C&V,2103607310,1000087914
06.01.2023,ADULT SOCIAL CARE,CAREPOINT SERVICES LTD,"2,105.08",PHY LTS 65+,HOMECARE - C&V,2103607327,1000087914
06.01.2023,ADULT SOCIAL CARE,CAREPOINT SERVICES LTD,"2,246.16",PHY LTS 65+,HOMECARE - C&V,2103607313,1000087914
06.01.2023,ADULT SOCIAL CARE,CAREPOINT SERVICES LTD,"2,318.60",PHY LTS 65+,HOMECARE - C&V,2103607317,1000087914
06.01.2023,ADULT SOCIAL CARE,CAREPOINT SERVICES LTD,"2,389.71",PHY LTS 65+,HOMECARE - C&V,2103607320,1000087914
06.01.2023,ADULT SOCIAL CARE,CAREPOINT SERVICES LTD,"2,496.48",PHY LTS 65+,HOMECARE - C&V,2103607302,1000087914
06.01.2023,ADULT SOCIAL CARE,CAREPOINT SERVICES LTD,"3,067.28",PHY LTS 65+,HOMECARE - C&V,2103607329,1000087914
06.01.2023,ADULT SOCIAL CARE,CAREPOINT SERVICES LTD,"1,605.00",PHY LTS 65+,HOMECARE - SPOT,2103607337,1000087914
06.01.2023,ADULT SOCIAL CARE,SAGECARE LTD,"1,841.83",PHY STS 18-64,HOMECARE - IC,2103607339,1000080924
06.01.2023,ADULT SOCIAL CARE,SURREY DOCKS FARM PROVIDENT SOCIETY,500,SOCIAL ISOLATION,DAYCARE,2103607340,1000000958
06.01.2023,ASSET MANAGEMENT,ARMINA LTD,"3,980.05",DISREPAIR,BUILDING R&M,2103607379,3000002121
06.01.2023,ASSET MANAGEMENT,TRAVIS PERKINS TRADING COMPANY LTD,262,REPAIRS OPERATIONS,MATERIALS,5902559562,1514319
06.01.2023,ASSET MANAGEMENT,TRAVIS PERKINS TRADING COMPANY LTD,262,REPAIRS OPERATIONS,MATERIALS,5902559562,1514319
06.01.2023,ASSET MANAGEMENT,TRAVIS PERKINS TRADING COMPANY LTD,262,REPAIRS OPERATIONS,MATERIALS,5902559564,1514319
06.01.2023,ASSET MANAGEMENT,TRAVIS PERKINS TRADING COMPANY LTD,262,REPAIRS OPERATIONS,MATERIALS,5902559566,1514319
06.01.2023,ASSET MANAGEMENT,TRAVIS PERKINS TRADING COMPANY LTD,262,REPAIRS OPERATIONS,MATERIALS,5902559566,1514319
06.01.2023,ASSET MANAGEMENT,TRAVIS PERKINS TRADING COMPANY LTD,275,REPAIRS OPERATIONS,MATERIALS,5902559576,1514319
06.01.2023,ASSET MANAGEMENT,TRAVIS PERKINS TRADING COMPANY LTD,400,REPAIRS OPERATIONS,MATERIALS,5902559561,1514319
06.01.2023,CENTRAL FUNCTIONS,DSI BILLING SERVICES LTD,325.29,OPERATIONAL TEAM,POSTAGES,5902559643,1000058640
06.01.2023,CHIEF EXECUTIVE,FAITHFUL & GOULD,"22,764.00",CAPITAL PS (REGEN),CONSTRUCTION FEES  - EXTERNAL,5902559691,1000061390
06.01.2023,CHIEF EXECUTIVE'S OFFICE,LONDON TOOLS LIMITED,320.4,RESILIENCE AND EMERGENCY PLANNING,MATERIALS,5902559700,1000003017
06.01.2023,CHIEF EXECUTIVE'S OFFICE,LONDON TOOLS LIMITED,540,RESILIENCE AND EMERGENCY PLANNING,MATERIALS,5902559700,1000003017
06.01.2023,CHILDREN AND FAMILIES,CRYSTAL GOALS LTD,"2,400.00",ADOPTION SUPP FUND 2,EXTERNAL AGENCIES AND BODIES,5902559693,1000086145
06.01.2023,CHILDREN AND FAMILIES,REDACTED PERSONAL DATA,"3,370.00",ADOPTION SUPP FUND 2,EXTERNAL AGENCIES AND BODIES,REDACTED,REDACTED
06.01.2023,CHILDREN AND FAMILIES,DISCLOSURE & BARRING SERVICE,"8,132.00",CENTRAL SUPPORT,EXTERNAL AGENCIES AND BODIES,5902559541,1000027861
06.01.2023,CHILDREN AND FAMILIES,STONELAKE LONDON LTD,"18,600.00",CHILDREN�S RESID,RESIDENTIAL CARE,2103607255,1000080075
06.01.2023,CHILDREN AND FAMILIES,JAMES KIDS HOME LTD,"18,468.66",CHILDREN�S RESID,RESIDENTIAL CARE,2103607257,1000086222
06.01.2023,CHILDREN AND FAMILIES,247 BLUEBELL CARE LIMITED,"24,938.13",CHILDREN�S RESID,RESIDENTIAL CARE,2103607253,1000087186
06.01.2023,CHILDREN AND FAMILIES,247 BLUEBELL CARE LIMITED,"40,527.41",CHILDREN�S RESID,RESIDENTIAL CARE,2103607252,1000087186
06.01.2023,CHILDREN AND FAMILIES,CAMERON & COOPER LIMITED,263.6,CHILDREN�S RESID,RESIDENTIAL CARE,2103607259,1000087598
06.01.2023,CHILDREN AND FAMILIES,CAMERON & COOPER LIMITED,"17,980.00",CHILDREN�S RESID,RESIDENTIAL CARE,2103607258,1000087598
06.01.2023,CHILDREN AND FAMILIES,WESTGATE LIFESTYLE PROJECT LTD,"18,821.34",CHILDREN�S RESID,RESIDENTIAL CARE,2103607256,1000089215
06.01.2023,CHILDREN AND FAMILIES,CONTACT PROFESSIONALS,266,CONTACT SERVICE,OTHER PAYMENTS FOR CLIENTS,2103607169,1000057263
06.01.2023,CHILDREN AND FAMILIES,CONTACT PROFESSIONALS,266,CONTACT SERVICE,OTHER PAYMENTS FOR CLIENTS,2103607183,1000057263
06.01.2023,CHILDREN AND FAMILIES,CONTACT PROFESSIONALS,819,CONTACT SERVICE,OTHER PAYMENTS FOR CLIENTS,2103607163,1000057263
06.01.2023,CHILDREN AND FAMILIES,CONTACT PROFESSIONALS,910,CONTACT SERVICE,OTHER PAYMENTS FOR CLIENTS,2103607164,1000057263
06.01.2023,CHILDREN AND FAMILIES,CONTACT PROFESSIONALS,910,CONTACT SERVICE,OTHER PAYMENTS FOR CLIENTS,2103607174,1000057263
06.01.2023,CHILDREN AND FAMILIES,FIVE RIVERS CHILD CARE LTD,"3,808.57",FRIENDS & FAMILY FOSTERING,EXTERNAL AGENCIES AND BODIES,2103607234,1000018792
06.01.2023,CHILDREN AND FAMILIES,GREATER LONDON FOSTERING,"1,626.96",FRIENDS & FAMILY FOSTERING,EXTERNAL AGENCIES AND BODIES,2103607229,1000029184
06.01.2023,CHILDREN AND FAMILIES,GREATER LONDON FOSTERING,"3,534.00",FRIENDS & FAMILY FOSTERING,EXTERNAL AGENCIES AND BODIES,2103607226,1000029184
06.01.2023,CHILDREN AND FAMILIES,GREATER LONDON FOSTERING,"3,760.30",FRIENDS & FAMILY FOSTERING,EXTERNAL AGENCIES AND BODIES,2103607227,1000029184
06.01.2023,CHILDREN AND FAMILIES,GREATER LONDON FOSTERING,"4,645.35",FRIENDS & FAMILY FOSTERING,EXTERNAL AGENCIES AND BODIES,2103607232,1000029184
06.01.2023,CHILDREN AND FAMILIES,GREATER LONDON FOSTERING,"5,108.80",FRIENDS & FAMILY FOSTERING,EXTERNAL AGENCIES AND BODIES,2103607228,1000029184
06.01.2023,CHILDREN AND FAMILIES,KASPER FOSTERING,782.84,FRIENDS & FAMILY FOSTERING,EXTERNAL AGENCIES AND BODIES,2103607243,1000036628
06.01.2023,CHILDREN AND FAMILIES,KASPER FOSTERING,"3,513.23",FRIENDS & FAMILY FOSTERING,EXTERNAL AGENCIES AND BODIES,2103607244,1000036628
06.01.2023,CHILDREN AND FAMILIES,KASPER FOSTERING,"4,640.39",FRIENDS & FAMILY FOSTERING,EXTERNAL AGENCIES AND BODIES,2103607245,1000036628
06.01.2023,CHILDREN AND FAMILIES,LIKA FAMILY FOSTERING,"3,996.78",FRIENDS & FAMILY FOSTERING,EXTERNAL AGENCIES AND BODIES,2103607240,1000080099
06.01.2023,CHILDREN AND FAMILIES,LIKA FAMILY FOSTERING,"4,071.43",FRIENDS & FAMILY FOSTERING,EXTERNAL AGENCIES AND BODIES,2103607238,1000080099
06.01.2023,CHILDREN AND FAMILIES,LIKA FAMILY FOSTERING,"4,207.14",FRIENDS & FAMILY FOSTERING,EXTERNAL AGENCIES AND BODIES,2103607241,1000080099
06.01.2023,CHILDREN AND FAMILIES,CARING HEARTS FOSTERING,"3,542.99",FRIENDS & FAMILY FOSTERING,EXTERNAL AGENCIES AND BODIES,2103607233,1000087065
06.01.2023,CHILDREN AND FAMILIES,CARING HEARTS FOSTERING,"3,542.99",FRIENDS & FAMILY FOSTERING,EXTERNAL AGENCIES AND BODIES,2103607246,1000087065
06.01.2023,CHILDREN AND FAMILIES,SILVER LINING FOSTERING LTD,"3,432.14",FRIENDS & FAMILY FOSTERING,EXTERNAL AGENCIES AND BODIES,2103607230,1000087318
06.01.2023,CHILDREN AND FAMILIES,SUBARI FOSTER CARE LIMITED,"3,188.35",FRIENDS & FAMILY FOSTERING,EXTERNAL AGENCIES AND BODIES,2103607239,1000088796
06.01.2023,CHILDREN AND FAMILIES,SUBARI FOSTER CARE LIMITED,"5,757.01",FRIENDS & FAMILY FOSTERING,EXTERNAL AGENCIES AND BODIES,2103607247,1000088796
06.01.2023,CHILDREN AND FAMILIES,BRIDGING GAPS LIMITED,"1,251.43",FRIENDS & FAMILY FOSTERING,EXTERNAL AGENCIES AND BODIES,2103607231,1000089267
06.01.2023,CHILDREN AND FAMILIES,BRIDGING GAPS LIMITED,"1,251.43",FRIENDS & FAMILY FOSTERING,EXTERNAL AGENCIES AND BODIES,2103607235,1000089267
06.01.2023,CHILDREN AND FAMILIES,BRIDGING GAPS LIMITED,"1,251.43",FRIENDS & FAMILY FOSTERING,EXTERNAL AGENCIES AND BODIES,2103607237,1000089267
06.01.2023,CHILDREN AND FAMILIES,BRIDGING GAPS LIMITED,"1,285.71",FRIENDS & FAMILY FOSTERING,EXTERNAL AGENCIES AND BODIES,2103607236,1000089267
06.01.2023,CHILDREN AND FAMILIES,PURPLE PEBBLES(CHILD CARE) SERVICES,553.57,SEMI-IND CARELEAVERS,EXTERNAL AGENCIES AND BODIES,2103604002,1000070705
06.01.2023,CHILDREN AND FAMILIES,PURPLE PEBBLES(CHILD CARE) SERVICES,"1,992.86",SEMI-IND CARELEAVERS,EXTERNAL AGENCIES AND BODIES,2103603960,1000070705
06.01.2023,CHILDREN AND FAMILIES,PURPLE PEBBLES(CHILD CARE) SERVICES,"2,214.29",SEMI-IND CARELEAVERS,EXTERNAL AGENCIES AND BODIES,2103604042,1000070705
06.01.2023,CHILDREN AND FAMILIES,PURPLE PEBBLES(CHILD CARE) SERVICES,"2,480.00",SEMI-IND CARELEAVERS,EXTERNAL AGENCIES AND BODIES,2103604031,1000070705
06.01.2023,CHILDREN AND FAMILIES,FINEFAIR LTD,"2,590.67",SEMI-IND CARELEAVERS,EXTERNAL AGENCIES AND BODIES,2103607203,1000075570
06.01.2023,CHILDREN AND FAMILIES,NETPEX LTD CORPORATE SERVICES,"2,546.40",SEMI-IND CARELEAVERS,EXTERNAL AGENCIES AND BODIES,2103607197,1000076073
06.01.2023,CHILDREN AND FAMILIES,NETPEX LTD CORPORATE SERVICES,"2,767.99",SEMI-IND CARELEAVERS,EXTERNAL AGENCIES AND BODIES,2103607196,1000076073
06.01.2023,CHILDREN AND FAMILIES,NETPEX LTD CORPORATE SERVICES,"2,794.40",SEMI-IND CARELEAVERS,EXTERNAL AGENCIES AND BODIES,2103607200,1000076073
06.01.2023,CHILDREN AND FAMILIES,NETPEX LTD CORPORATE SERVICES,"3,491.41",SEMI-IND CARELEAVERS,EXTERNAL AGENCIES AND BODIES,2103607202,1000076073
06.01.2023,CHILDREN AND FAMILIES,NETPEX LTD CORPORATE SERVICES,"4,406.65",SEMI-IND CARELEAVERS,EXTERNAL AGENCIES AND BODIES,2103607194,1000076073
06.01.2023,CHILDREN AND FAMILIES,PLACE OF PROGRESS LTD,-441.52,SEMI-IND CARELEAVERS,EXTERNAL AGENCIES AND BODIES,5902559402,1000086889
06.01.2023,CHILDREN AND FAMILIES,DREAMFO HOUSING LTD,"2,657.01",SEMI-IND CARELEAVERS,EXTERNAL AGENCIES AND BODIES,2103607198,1000087273
06.01.2023,CHILDREN AND FAMILIES,PURPLE PEBBLES(CHILD CARE) SERVICES,"4,207.14",SEMI-IND LAC 16-17,EXTERNAL AGENCIES AND BODIES,2103603928,1000070705
06.01.2023,CHILDREN AND FAMILIES,PURPLE PEBBLES(CHILD CARE) SERVICES,"4,428.57",SEMI-IND LAC 16-17,EXTERNAL AGENCIES AND BODIES,2103603932,1000070705
06.01.2023,CHILDREN AND FAMILIES,NETPEX LTD CORPORATE SERVICES,"5,735.00",SEMI-IND LAC 16-17,EXTERNAL AGENCIES AND BODIES,2103607211,1000076073
06.01.2023,CHILDREN AND FAMILIES,PLACE OF PROGRESS LTD,"3,800.00",SEMI-IND LAC 16-17,EXTERNAL AGENCIES AND BODIES,2103607189,1000086889
06.01.2023,CHILDREN AND FAMILIES,DREAMFO HOUSING LTD,"3,321.43",SEMI-IND LAC 16-17,EXTERNAL AGENCIES AND BODIES,2103607215,1000087273
06.01.2023,CHILDREN AND FAMILIES,DREAMFO HOUSING LTD,"3,586.91",SEMI-IND LAC 16-17,EXTERNAL AGENCIES AND BODIES,2103607216,1000087273
06.01.2023,CHILDREN AND FAMILIES,DREAMFO HOUSING LTD,"5,712.86",SEMI-IND LAC 16-17,EXTERNAL AGENCIES AND BODIES,2103607208,1000087273
06.01.2023,CHILDREN AND FAMILIES,PAVE CARE LTD,"4,873.62",SEMI-IND LAC 16-17,EXTERNAL AGENCIES AND BODIES,2103607225,1000089134
06.01.2023,CHILDREN AND FAMILIES,QUALIFIED CARE RESIDENTIAL SERVICES,"5,583.17",SEMI-IND LAC 16-17,EXTERNAL AGENCIES AND BODIES,2103607220,1000089168
06.01.2023,CHILDREN AND FAMILIES,PURPLE PEBBLES(CHILD CARE) SERVICES,300,SEMI-IND LAC 16-17,OTHER PAYMENTS FOR CLIENTS,2103603888,1000070705
06.01.2023,CHILDREN AND FAMILIES,DREAMFO HOUSING LTD,352.48,SEMI-IND LAC 16-17,OTHER PAYMENTS FOR CLIENTS,2103607214,1000087273
06.01.2023,CHILDREN AND FAMILIES,DREAMFO HOUSING LTD,565.49,SEMI-IND LAC 16-17,OTHER PAYMENTS FOR CLIENTS,2103607207,1000087273
06.01.2023,CHILDREN AND FAMILIES,PAVE CARE LTD,565.72,SEMI-IND LAC 16-17,OTHER PAYMENTS FOR CLIENTS,2103607224,1000089134
06.01.2023,CHILDREN AND FAMILIES,WILLISPALMER,260,SPECIAL GUARDIANSHIP,EXTERNAL AGENCIES AND BODIES,5902559650,1000056409
06.01.2023,CHILDREN AND FAMILIES,WILLISPALMER,"1,280.00",SPECIAL GUARDIANSHIP,EXTERNAL AGENCIES AND BODIES,5902559644,1000056409
06.01.2023,CHILDREN AND FAMILIES,WILLISPALMER,"2,600.00",SPECIAL GUARDIANSHIP,EXTERNAL AGENCIES AND BODIES,5902559645,1000056409
06.01.2023,CHILDREN AND FAMILIES,WILLISPALMER,"3,395.00",SPECIAL GUARDIANSHIP,EXTERNAL AGENCIES AND BODIES,5902559647,1000056409
06.01.2023,CHILDREN AND FAMILIES,WILLISPALMER,"3,395.00",SPECIAL GUARDIANSHIP,EXTERNAL AGENCIES AND BODIES,5902559648,1000056409
06.01.2023,CHILDREN AND FAMILIES,GREATER LONDON FOSTERING,"1,882.01",STAYPUT- FOST CARERS,EXTERNAL AGENCIES AND BODIES,2103607193,1000029184
06.01.2023,CHILDREN AND FAMILIES,GREATER LONDON FOSTERING,"2,214.02",STAYPUT- FOST CARERS,EXTERNAL AGENCIES AND BODIES,2103607199,1000029184
06.01.2023,CHILDREN AND FAMILIES,SYMBOL FAMILY SUPPORT SERVICES LTD,"1,879.20",TEAM C,PROFESSIONAL FEES,5902559682,1000050435
06.01.2023,CHILDREN AND FAMILIES,PURPLE PEBBLES(CHILD CARE) SERVICES,-875,UASC CARELEAVERS,COSTS RECOVERED,2103604129,1000070705
06.01.2023,CHILDREN AND FAMILIES,OWNLIFE LTD,"1,905.00",UASC CARELEAVERS,EXTERNAL AGENCIES AND BODIES,2103607192,1000056219
06.01.2023,CHILDREN AND FAMILIES,FUTURE FOUNDATIONS LTD,"4,419.71",UASC CARELEAVERS,EXTERNAL AGENCIES AND BODIES,2103607191,1000063272
06.01.2023,CHILDREN AND FAMILIES,PURPLE PEBBLES(CHILD CARE) SERVICES,300,UASC CARELEAVERS,EXTERNAL AGENCIES AND BODIES,2103604008,1000070705
06.01.2023,CHILDREN AND FAMILIES,PURPLE PEBBLES(CHILD CARE) SERVICES,385.71,UASC CARELEAVERS,EXTERNAL AGENCIES AND BODIES,2103604036,1000070705
06.01.2023,CHILDREN AND FAMILIES,PURPLE PEBBLES(CHILD CARE) SERVICES,578.57,UASC CARELEAVERS,EXTERNAL AGENCIES AND BODIES,2103599049,1000070705
06.01.2023,CHILDREN AND FAMILIES,PURPLE PEBBLES(CHILD CARE) SERVICES,"1,550.00",UASC CARELEAVERS,EXTERNAL AGENCIES AND BODIES,2103604000,1000070705
06.01.2023,CHILDREN AND FAMILIES,PURPLE PEBBLES(CHILD CARE) SERVICES,"1,594.29",UASC CARELEAVERS,EXTERNAL AGENCIES AND BODIES,2103603976,1000070705
06.01.2023,CHILDREN AND FAMILIES,PURPLE PEBBLES(CHILD CARE) SERVICES,"1,660.71",UASC CARELEAVERS,EXTERNAL AGENCIES AND BODIES,2103603978,1000070705
06.01.2023,CHILDREN AND FAMILIES,PURPLE PEBBLES(CHILD CARE) SERVICES,"1,660.71",UASC CARELEAVERS,EXTERNAL AGENCIES AND BODIES,2103604032,1000070705
06.01.2023,CHILDREN AND FAMILIES,PURPLE PEBBLES(CHILD CARE) SERVICES,"1,749.29",UASC CARELEAVERS,EXTERNAL AGENCIES AND BODIES,2103603988,1000070705
06.01.2023,CHILDREN AND FAMILIES,PURPLE PEBBLES(CHILD CARE) SERVICES,"1,771.43",UASC CARELEAVERS,EXTERNAL AGENCIES AND BODIES,2103604006,1000070705
06.01.2023,CHILDREN AND FAMILIES,PURPLE PEBBLES(CHILD CARE) SERVICES,"1,771.43",UASC CARELEAVERS,EXTERNAL AGENCIES AND BODIES,2103604035,1000070705
06.01.2023,CHILDREN AND FAMILIES,PURPLE PEBBLES(CHILD CARE) SERVICES,"1,815.71",UASC CARELEAVERS,EXTERNAL AGENCIES AND BODIES,2103603992,1000070705
06.01.2023,CHILDREN AND FAMILIES,PURPLE PEBBLES(CHILD CARE) SERVICES,"1,882.14",UASC CARELEAVERS,EXTERNAL AGENCIES AND BODIES,2103604004,1000070705
06.01.2023,CHILDREN AND FAMILIES,PURPLE PEBBLES(CHILD CARE) SERVICES,"1,882.14",UASC CARELEAVERS,EXTERNAL AGENCIES AND BODIES,2103604041,1000070705
06.01.2023,CHILDREN AND FAMILIES,PURPLE PEBBLES(CHILD CARE) SERVICES,"1,948.57",UASC CARELEAVERS,EXTERNAL AGENCIES AND BODIES,2103603956,1000070705
06.01.2023,CHILDREN AND FAMILIES,PURPLE PEBBLES(CHILD CARE) SERVICES,"1,948.57",UASC CARELEAVERS,EXTERNAL AGENCIES AND BODIES,2103604010,1000070705
06.01.2023,CHILDREN AND FAMILIES,PURPLE PEBBLES(CHILD CARE) SERVICES,"1,948.57",UASC CARELEAVERS,EXTERNAL AGENCIES AND BODIES,2103604016,1000070705
06.01.2023,CHILDREN AND FAMILIES,PURPLE PEBBLES(CHILD CARE) SERVICES,"1,948.57",UASC CARELEAVERS,EXTERNAL AGENCIES AND BODIES,2103604043,1000070705
06.01.2023,CHILDREN AND FAMILIES,PURPLE PEBBLES(CHILD CARE) SERVICES,"1,981.79",UASC CARELEAVERS,EXTERNAL AGENCIES AND BODIES,2103603990,1000070705
06.01.2023,CHILDREN AND FAMILIES,PURPLE PEBBLES(CHILD CARE) SERVICES,"2,103.57",UASC CARELEAVERS,EXTERNAL AGENCIES AND BODIES,2103603946,1000070705
06.01.2023,CHILDREN AND FAMILIES,PURPLE PEBBLES(CHILD CARE) SERVICES,"2,214.28",UASC CARELEAVERS,EXTERNAL AGENCIES AND BODIES,2103603998,1000070705
06.01.2023,CHILDREN AND FAMILIES,PURPLE PEBBLES(CHILD CARE) SERVICES,"3,542.86",UASC CARELEAVERS,EXTERNAL AGENCIES AND BODIES,2103603958,1000070705
06.01.2023,CHILDREN AND FAMILIES,PURPLE PEBBLES(CHILD CARE) SERVICES,"3,542.86",UASC CARELEAVERS,EXTERNAL AGENCIES AND BODIES,2103604034,1000070705
06.01.2023,CHILDREN AND FAMILIES,NETPEX LTD CORPORATE SERVICES,"2,170.00",UASC CARELEAVERS,EXTERNAL AGENCIES AND BODIES,2103607195,1000076073
06.01.2023,CHILDREN AND FAMILIES,FUTURE FOUNDATIONS LTD,265.71,UASC CARELEAVERS,OTHER PAYMENTS FOR CLIENTS,2103607204,1000063272
06.01.2023,CHILDREN AND FAMILIES,PURPLE PEBBLES(CHILD CARE) SERVICES,300,UASC CARELEAVERS,OTHER PAYMENTS FOR CLIENTS,2103604033,1000070705
06.01.2023,CHILDREN AND FAMILIES,PURPLE PEBBLES(CHILD CARE) SERVICES,300,UASC CARELEAVERS,OTHER PAYMENTS FOR CLIENTS,2103604044,1000070705
06.01.2023,CHILDREN AND FAMILIES,FUTURE FOUNDATIONS LTD,"1,996.00",UASC LAC 16-17,EXTERNAL AGENCIES AND BODIES,2103607205,1000063272
06.01.2023,CHILDREN AND FAMILIES,PURPLE PEBBLES(CHILD CARE) SERVICES,"1,882.14",UASC LAC 16-17,EXTERNAL AGENCIES AND BODIES,2103603920,1000070705
06.01.2023,CHILDREN AND FAMILIES,PURPLE PEBBLES(CHILD CARE) SERVICES,"1,882.14",UASC LAC 16-17,EXTERNAL AGENCIES AND BODIES,2103603934,1000070705
06.01.2023,CHILDREN AND FAMILIES,PURPLE PEBBLES(CHILD CARE) SERVICES,"1,942.86",UASC LAC 16-17,EXTERNAL AGENCIES AND BODIES,2103607222,1000070705
06.01.2023,CHILDREN AND FAMILIES,PURPLE PEBBLES(CHILD CARE) SERVICES,"3,542.86",UASC LAC 16-17,EXTERNAL AGENCIES AND BODIES,2103603918,1000070705
06.01.2023,CHILDREN AND FAMILIES,PURPLE PEBBLES(CHILD CARE) SERVICES,"3,764.29",UASC LAC 16-17,EXTERNAL AGENCIES AND BODIES,2103603906,1000070705
06.01.2023,CHILDREN AND FAMILIES,PURPLE PEBBLES(CHILD CARE) SERVICES,"3,875.00",UASC LAC 16-17,EXTERNAL AGENCIES AND BODIES,2103603884,1000070705
06.01.2023,CHILDREN AND FAMILIES,PURPLE PEBBLES(CHILD CARE) SERVICES,"3,875.00",UASC LAC 16-17,EXTERNAL AGENCIES AND BODIES,2103603922,1000070705
06.01.2023,CHILDREN AND FAMILIES,PURPLE PEBBLES(CHILD CARE) SERVICES,"3,985.71",UASC LAC 16-17,EXTERNAL AGENCIES AND BODIES,2103603936,1000070705
06.01.2023,CHILDREN AND FAMILIES,DREAMFO HOUSING LTD,"3,321.43",UASC LAC 16-17,EXTERNAL AGENCIES AND BODIES,2103607209,1000087273
06.01.2023,CHILDREN AND FAMILIES,OUR ROCK LTD,"3,321.43",UASC LAC 16-17,EXTERNAL AGENCIES AND BODIES,2103607213,1000088325
06.01.2023,CHILDREN AND FAMILIES,PURPLE PEBBLES(CHILD CARE) SERVICES,300,UASC LAC 16-17,OTHER PAYMENTS FOR CLIENTS,2103603908,1000070705
06.01.2023,CHILDREN AND FAMILIES,DREAMFO HOUSING LTD,355.58,UASC LAC 16-17,OTHER PAYMENTS FOR CLIENTS,2103607210,1000087273
06.01.2023,CHILDREN AND FAMILIES,OUR ROCK LTD,300,UASC LAC 16-17,OTHER PAYMENTS FOR CLIENTS,2103607221,1000088325
06.01.2023,CHILDREN AND FAMILIES,OUR ROCK LTD,305.25,UASC LAC 16-17,OTHER PAYMENTS FOR CLIENTS,2103607206,1000088325
06.01.2023,CHILDREN AND FAMILIES,IMAGO LTD,"27,819.00",YOUNG CARERS SERVICE,EXTERNAL AGENCIES AND BODIES,5902559588,1000076913
06.01.2023,COMMUNITIES,SOUTHWARK CITIZENS ADVICE,"150,000.00",LEGAL GRANTS,EXTERNAL AGENCIES AND BODIES,5902559557,1874379
06.01.2023,COMMUNITIES,SOUTHWARK LAW CENTRE,"84,000.00",LEGAL GRANTS,EXTERNAL AGENCIES AND BODIES,5902559556,1981325
06.01.2023,COMMUNITIES,FLAMINGO CREATIVE,325,MAYORAL SUPPORT,PRINTING,5902559674,1000044711
06.01.2023,COMMUNITIES,FLAMINGO CREATIVE,365,MAYORAL SUPPORT,PRINTING,5902559669,1000044711
06.01.2023,COMMUNITIES,FLAMINGO CREATIVE,545,MAYORAL SUPPORT,PRINTING,5902559667,1000044711
06.01.2023,COMMUNITIES,FLAMINGO CREATIVE,545,MAYORAL SUPPORT,PRINTING,5902559672,1000044711
06.01.2023,COMMUNITIES,REHAN JAMIL PHOTOGRAPHY,300,MAYORAL SUPPORT,PROFESSIONAL FEES,5902559689,1000057529
06.01.2023,COMMUNITIES,LONDON CARE LTD,683.38,NO RECOURSE TO PUBLIC FUNDS,HOMECARE - C&V,2103607262,1000003398
06.01.2023,COMMUNITIES,LONDON CARE LTD,"1,324.90",NO RECOURSE TO PUBLIC FUNDS,HOMECARE - C&V,2103607261,1000003398
06.01.2023,COMMUNITIES,SAGECARE LTD,"1,224.87",NO RECOURSE TO PUBLIC FUNDS,HOMECARE - C&V,2103607369,1000080924
06.01.2023,COMMUNITIES,SAGECARE LTD,"1,666.38",NO RECOURSE TO PUBLIC FUNDS,HOMECARE - C&V,2103607359,1000080924
06.01.2023,COMMUNITIES,REDACTED PERSONAL DATA,350,UKRAINIAN PROGRAMME,GRANTS,REDACTED,REDACTED
06.01.2023,COMMUNITIES,REDACTED PERSONAL DATA,350,UKRAINIAN PROGRAMME,GRANTS,REDACTED,REDACTED
06.01.2023,COMMUNITIES HRA,BROWNING EST MGMT ASSN,801.14,BROWNING EMB,M&M ALLOWANCE CO-OPS,5902559685,1000059362
06.01.2023,COMMUNITIES HRA,DELAWYK RESIDENTS MGT ORG LTD,"23,316.50",DELAWYK RMO RENT INCOME,M&M ALLOWANCE CO-OPS,5902559624,1000052920
06.01.2023,COMMUNITIES HRA,HADDON HALL RESIDENTS TMO,"115,278.00",HADDON HALL CO-OP,M&M ALLOWANCE CO-OPS,5902559638,1040504
06.01.2023,COMMUNITIES HRA,TWO TOWERS HOUSING CO-OP LTD,"50,135.03",TWO TOWERS,M&M ALLOWANCE CO-OPS,5902559675,1000006843
06.01.2023,DSG,LONDON SOUTH EAST ACADEMIES TRUST,"-4,790.00",AC & FREE - MSTREAM,STATEMENTED FEES,2103607146,1000088592
06.01.2023,DSG,LONDON SOUTH EAST ACADEMIES TRUST,"6,162.50",AC & FREE - MSTREAM,STATEMENTED FEES,2103607101,1000088592
06.01.2023,DSG,ORGANISATION OF BLIND AFRICANS & CARIBBEANS,"1,000.00",AP & HOSPITAL SCHLS,STATEMENTED FEES,2103607096,1000002281
06.01.2023,DSG,ROOTS AND SHOOTS,"2,394.53",AP & HOSPITAL SCHLS,STATEMENTED FEES,2103607029,1000037582
06.01.2023,DSG,ROOTS AND SHOOTS,"3,383.94",AP & HOSPITAL SCHLS,STATEMENTED FEES,2103607026,1000037582
06.01.2023,DSG,ROOTS AND SHOOTS,"4,399.24",AP & HOSPITAL SCHLS,STATEMENTED FEES,2103607027,1000037582
06.01.2023,DSG,ROOTS AND SHOOTS,"5,011.13",AP & HOSPITAL SCHLS,STATEMENTED FEES,2103607028,1000037582
06.01.2023,DSG,ROOTS AND SHOOTS,"5,705.03",AP & HOSPITAL SCHLS,STATEMENTED FEES,2103607031,1000037582
06.01.2023,DSG,ROOTS AND SHOOTS,"6,084.23",AP & HOSPITAL SCHLS,STATEMENTED FEES,2103607030,1000037582
06.01.2023,DSG,ROOTS AND SHOOTS,"6,187.08",AP & HOSPITAL SCHLS,STATEMENTED FEES,2103607032,1000037582
06.01.2023,DSG,LOVE ABA LTD,750,AP & HOSPITAL SCHLS,STATEMENTED FEES,2103607020,1000079474
06.01.2023,DSG,COMPASS CHILDRENS HOMES LTD,"4,428.66",AP & HOSPITAL SCHLS,STATEMENTED FEES,2103607025,1000086507
06.01.2023,DSG,REDACTED PERSONAL DATA,"4,800.00",AP & HOSPITAL SCHLS,STATEMENTED FEES,REDACTED,REDACTED
06.01.2023,DSG,PLAYSHACK PLAYGROUP,"1,012.00",EY SENDIF,STATEMENTED FEES,2103607134,1608859
06.01.2023,DSG,MIATA EDUCATIONAL SERVICES LTD,666.66,EY SENDIF,STATEMENTED FEES,2103607133,1000003741
06.01.2023,DSG,MIATA EDUCATIONAL SERVICES LTD,666.67,EY SENDIF,STATEMENTED FEES,2103607131,1000003741
06.01.2023,DSG,MIATA EDUCATIONAL SERVICES LTD,666.67,EY SENDIF,STATEMENTED FEES,2103607132,1000003741
06.01.2023,DSG,LITTLE ACORNS DAY NURSERY,333,EY SENDIF,STATEMENTED FEES,2103607136,1000015844
06.01.2023,DSG,LITTLE ACORNS DAY NURSERY,333,EY SENDIF,STATEMENTED FEES,2103607137,1000015844
06.01.2023,DSG,LITTLE ACORNS DAY NURSERY,"1,012.00",EY SENDIF,STATEMENTED FEES,2103607135,1000015844
06.01.2023,DSG,LITTLE ACORNS DAY NURSERY,"1,012.00",EY SENDIF,STATEMENTED FEES,2103607138,1000015844
06.01.2023,DSG,NICKI DAY NURSERY LTD,333,EY SENDIF,STATEMENTED FEES,2103607108,1000045363
06.01.2023,DSG,NICKI DAY NURSERY LTD,"1,012.00",EY SENDIF,STATEMENTED FEES,2103607107,1000045363
06.01.2023,DSG,LITTLE JUNGLE (U.K.) LIMITED,333,EY SENDIF,STATEMENTED FEES,2103607130,1000067064
06.01.2023,DSG,LITTLE JUNGLE (U.K.) LIMITED,"1,012.00",EY SENDIF,STATEMENTED FEES,2103607129,1000067064
06.01.2023,DSG,LITTLE PIPS PRESCHOOL,"1,012.00",EY SENDIF,STATEMENTED FEES,2103607126,1000079580
06.01.2023,DSG,LITTLE PIPS PRESCHOOL,"1,012.00",EY SENDIF,STATEMENTED FEES,2103607127,1000079580
06.01.2023,DSG,BRIGHT SOJOURNER NURSERY LTD,333,EY SENDIF,STATEMENTED FEES,2103607119,1000080155
06.01.2023,DSG,BRIGHT SOJOURNER NURSERY LTD,666.66,EY SENDIF,STATEMENTED FEES,2103607121,1000080155
06.01.2023,DSG,BRIGHT SOJOURNER NURSERY LTD,666.67,EY SENDIF,STATEMENTED FEES,2103607120,1000080155
06.01.2023,DSG,BRIGHT SOJOURNER NURSERY LTD,666.67,EY SENDIF,STATEMENTED FEES,2103607122,1000080155
06.01.2023,DSG,BRIGHT SOJOURNER NURSERY LTD,"1,012.00",EY SENDIF,STATEMENTED FEES,2103607123,1000080155
06.01.2023,DSG,ALFRED SALTER PRIMARY SCHOOL,"1,012.00",EY SENDIF,STATEMENTED FEES,2103607124,5001000005
06.01.2023,DSG,ALFRED SALTER PRIMARY SCHOOL,"1,012.00",EY SENDIF,STATEMENTED FEES,2103607125,5001000005
06.01.2023,DSG,PHOENIX PRIMARY SCHOOL,"1,012.00",EY SENDIF,STATEMENTED FEES,2103607140,5001000032
06.01.2023,DSG,PHOENIX PRIMARY SCHOOL,"1,012.00",EY SENDIF,STATEMENTED FEES,2103607141,5001000032
06.01.2023,DSG,PHOENIX PRIMARY SCHOOL,"1,012.00",EY SENDIF,STATEMENTED FEES,2103607142,5001000032
06.01.2023,DSG,KEYWORTH PRIMARY SCHOOL,"1,012.00",EY SENDIF,STATEMENTED FEES,2103607128,5001000041
06.01.2023,DSG,NELL GWYNN NURSERY SCHOOL,"1,012.00",EY SENDIF,STATEMENTED FEES,2103607139,5001000049
06.01.2023,DSG,ANN BERNADT NURSERY SCHOOL,"1,012.00",EY SENDIF,STATEMENTED FEES,2103607143,5001000085
06.01.2023,DSG,ANN BERNADT NURSERY SCHOOL,"1,012.00",EY SENDIF,STATEMENTED FEES,2103607144,5001000085
06.01.2023,DSG,THE GROVE CHILDRENS CENTRE,500,EY SENDIF,STATEMENTED FEES,2103607109,5001000090
06.01.2023,DSG,THE GROVE CHILDRENS CENTRE,500,EY SENDIF,STATEMENTED FEES,2103607110,5001000090
06.01.2023,DSG,THE GROVE CHILDRENS CENTRE,500,EY SENDIF,STATEMENTED FEES,2103607111,5001000090
06.01.2023,DSG,THE GROVE CHILDRENS CENTRE,500,EY SENDIF,STATEMENTED FEES,2103607112,5001000090
06.01.2023,DSG,THE GROVE CHILDRENS CENTRE,500,EY SENDIF,STATEMENTED FEES,2103607113,5001000090
06.01.2023,DSG,THE GROVE CHILDRENS CENTRE,500,EY SENDIF,STATEMENTED FEES,2103607114,5001000090
06.01.2023,DSG,THE GROVE CHILDRENS CENTRE,500,EY SENDIF,STATEMENTED FEES,2103607115,5001000090
06.01.2023,DSG,THE GROVE CHILDRENS CENTRE,500,EY SENDIF,STATEMENTED FEES,2103607116,5001000090
06.01.2023,DSG,THE GROVE CHILDRENS CENTRE,"1,012.00",EY SENDIF,STATEMENTED FEES,2103607117,5001000090
06.01.2023,DSG,THE GROVE CHILDRENS CENTRE,"1,012.00",EY SENDIF,STATEMENTED FEES,2103607118,5001000090
06.01.2023,DSG,NEWCASTLE COLLEGE GROUP,535,FURTHER EDUCATION,STATEMENTED FEES,2103607041,1000080965
06.01.2023,DSG,NEWCASTLE COLLEGE GROUP,535,FURTHER EDUCATION,STATEMENTED FEES,2103607043,1000080965
06.01.2023,DSG,NEWCASTLE COLLEGE GROUP,535,FURTHER EDUCATION,STATEMENTED FEES,2103607047,1000080965
06.01.2023,DSG,NEWCASTLE COLLEGE GROUP,535,FURTHER EDUCATION,STATEMENTED FEES,2103607050,1000080965
06.01.2023,DSG,NEWCASTLE COLLEGE GROUP,535,FURTHER EDUCATION,STATEMENTED FEES,2103607057,1000080965
06.01.2023,DSG,NEWCASTLE COLLEGE GROUP,685,FURTHER EDUCATION,STATEMENTED FEES,2103607061,1000080965
06.01.2023,DSG,NEWCASTLE COLLEGE GROUP,985,FURTHER EDUCATION,STATEMENTED FEES,2103607035,1000080965
06.01.2023,DSG,NEWCASTLE COLLEGE GROUP,985,FURTHER EDUCATION,STATEMENTED FEES,2103607045,1000080965
06.01.2023,DSG,NEWCASTLE COLLEGE GROUP,985,FURTHER EDUCATION,STATEMENTED FEES,2103607063,1000080965
06.01.2023,DSG,NEWCASTLE COLLEGE GROUP,"1,135.00",FURTHER EDUCATION,STATEMENTED FEES,2103607049,1000080965
06.01.2023,DSG,NEWCASTLE COLLEGE GROUP,"1,135.00",FURTHER EDUCATION,STATEMENTED FEES,2103607062,1000080965
06.01.2023,DSG,NEWCASTLE COLLEGE GROUP,"1,285.00",FURTHER EDUCATION,STATEMENTED FEES,2103607059,1000080965
06.01.2023,DSG,NEWCASTLE COLLEGE GROUP,"1,435.00",FURTHER EDUCATION,STATEMENTED FEES,2103607040,1000080965
06.01.2023,DSG,NEWCASTLE COLLEGE GROUP,"2,035.00",FURTHER EDUCATION,STATEMENTED FEES,2103607037,1000080965
06.01.2023,DSG,NEWCASTLE COLLEGE GROUP,"2,035.00",FURTHER EDUCATION,STATEMENTED FEES,2103607056,1000080965
06.01.2023,DSG,NEWCASTLE COLLEGE GROUP,"2,335.00",FURTHER EDUCATION,STATEMENTED FEES,2103607053,1000080965
06.01.2023,DSG,NEWCASTLE COLLEGE GROUP,"2,335.00",FURTHER EDUCATION,STATEMENTED FEES,2103607055,1000080965
06.01.2023,DSG,NEWCASTLE COLLEGE GROUP,"2,335.00",FURTHER EDUCATION,STATEMENTED FEES,2103607058,1000080965
06.01.2023,DSG,NEWCASTLE COLLEGE GROUP,"2,485.00",FURTHER EDUCATION,STATEMENTED FEES,2103607064,1000080965
06.01.2023,DSG,NEWCASTLE COLLEGE GROUP,"2,785.00",FURTHER EDUCATION,STATEMENTED FEES,2103607038,1000080965
06.01.2023,DSG,NEWCASTLE COLLEGE GROUP,"2,935.00",FURTHER EDUCATION,STATEMENTED FEES,2103607051,1000080965
06.01.2023,DSG,NEWCASTLE COLLEGE GROUP,"3,235.00",FURTHER EDUCATION,STATEMENTED FEES,2103607066,1000080965
06.01.2023,DSG,NEWCASTLE COLLEGE GROUP,"3,385.00",FURTHER EDUCATION,STATEMENTED FEES,2103607042,1000080965
06.01.2023,DSG,NEWCASTLE COLLEGE GROUP,"4,135.00",FURTHER EDUCATION,STATEMENTED FEES,2103607034,1000080965
06.01.2023,DSG,NEWCASTLE COLLEGE GROUP,"4,135.00",FURTHER EDUCATION,STATEMENTED FEES,2103607065,1000080965
06.01.2023,DSG,DAY ONE TRUST,"4,000.00",FURTHER EDUCATION,STATEMENTED FEES,2103607024,1000088155
06.01.2023,DSG,BROADLANDS HALL LIMITED,"3,425.00",INDEP MAINSTREAM,STATEMENTED FEES,2103607095,1000084303
06.01.2023,DSG,WEST HEATH SCHOOL,"6,800.00",NMSS/ INDEP SPECIAL,STATEMENTED FEES,2103607106,1000018362
06.01.2023,DSG,WEST HEATH SCHOOL,"10,000.00",NMSS/ INDEP SPECIAL,STATEMENTED FEES,2103607105,1000018362
06.01.2023,DSG,WEST HEATH SCHOOL,"17,500.00",NMSS/ INDEP SPECIAL,STATEMENTED FEES,2103607104,1000018362
06.01.2023,DSG,CHAILEY HERITAGE FOUNDATION,"26,154.00",NMSS/ INDEP SPECIAL,STATEMENTED FEES,2103607103,1000045082
06.01.2023,DSG,MOOR HOUSE SCHOOL & COLLEGE,"1,205.00",NMSS/ INDEP SPECIAL,STATEMENTED FEES,2103607098,1000080062
06.01.2023,DSG,MOOR HOUSE SCHOOL & COLLEGE,"2,226.00",NMSS/ INDEP SPECIAL,STATEMENTED FEES,2103607100,1000080062
06.01.2023,DSG,MOOR HOUSE SCHOOL & COLLEGE,"18,969.67",NMSS/ INDEP SPECIAL,STATEMENTED FEES,2103607099,1000080062
06.01.2023,DSG,MOOR HOUSE SCHOOL & COLLEGE,"21,808.67",NMSS/ INDEP SPECIAL,STATEMENTED FEES,2103607097,1000080062
06.01.2023,DSG,LONDON BOROUGH OF HAMMERSMITH & FULHAM,"1,332.62",OTHER LA SPECIAL,STATEMENTED FEES,2103607033,1000047234
06.01.2023,DSG,NATIONAL STAR FOUNDATION,"44,051.42",SPECIALIST POST-16,STATEMENTED FEES,2103607102,1000064265
06.01.2023,DSG,ORCHARD HILL COLLEGE,"8,128.69",SPECIALIST POST-16,STATEMENTED FEES,2103607068,1000070978
06.01.2023,DSG,ORCHARD HILL COLLEGE,"8,541.94",SPECIALIST POST-16,STATEMENTED FEES,2103607078,1000070978
06.01.2023,DSG,ORCHARD HILL COLLEGE,"9,499.92",SPECIALIST POST-16,STATEMENTED FEES,2103607093,1000070978
06.01.2023,DSG,ORCHARD HILL COLLEGE,"11,092.57",SPECIALIST POST-16,STATEMENTED FEES,2103607087,1000070978
06.01.2023,DSG,ORCHARD HILL COLLEGE,"11,423.77",SPECIALIST POST-16,STATEMENTED FEES,2103607094,1000070978
06.01.2023,DSG,ORCHARD HILL COLLEGE,"11,530.49",SPECIALIST POST-16,STATEMENTED FEES,2103607083,1000070978
06.01.2023,DSG,ORCHARD HILL COLLEGE,"11,685.84",SPECIALIST POST-16,STATEMENTED FEES,2103607070,1000070978
06.01.2023,DSG,ORCHARD HILL COLLEGE,"11,896.91",SPECIALIST POST-16,STATEMENTED FEES,2103607076,1000070978
06.01.2023,DSG,ORCHARD HILL COLLEGE,"12,094.06",SPECIALIST POST-16,STATEMENTED FEES,2103607074,1000070978
06.01.2023,DSG,ORCHARD HILL COLLEGE,"12,463.89",SPECIALIST POST-16,STATEMENTED FEES,2103607079,1000070978
06.01.2023,DSG,ORCHARD HILL COLLEGE,"12,558.26",SPECIALIST POST-16,STATEMENTED FEES,2103607069,1000070978
06.01.2023,DSG,ORCHARD HILL COLLEGE,"12,607.95",SPECIALIST POST-16,STATEMENTED FEES,2103607071,1000070978
06.01.2023,DSG,ORCHARD HILL COLLEGE,"12,630.29",SPECIALIST POST-16,STATEMENTED FEES,2103607091,1000070978
06.01.2023,DSG,ORCHARD HILL COLLEGE,"12,821.38",SPECIALIST POST-16,STATEMENTED FEES,2103607090,1000070978
06.01.2023,DSG,ORCHARD HILL COLLEGE,"13,032.19",SPECIALIST POST-16,STATEMENTED FEES,2103607088,1000070978
06.01.2023,DSG,ORCHARD HILL COLLEGE,"13,077.14",SPECIALIST POST-16,STATEMENTED FEES,2103607075,1000070978
06.01.2023,DSG,ORCHARD HILL COLLEGE,"13,211.99",SPECIALIST POST-16,STATEMENTED FEES,2103607072,1000070978
06.01.2023,DSG,ORCHARD HILL COLLEGE,"13,689.47",SPECIALIST POST-16,STATEMENTED FEES,2103607092,1000070978
06.01.2023,DSG,ORCHARD HILL COLLEGE,"14,336.29",SPECIALIST POST-16,STATEMENTED FEES,2103607077,1000070978
06.01.2023,DSG,ORCHARD HILL COLLEGE,"15,774.61",SPECIALIST POST-16,STATEMENTED FEES,2103607081,1000070978
06.01.2023,DSG,ORCHARD HILL COLLEGE,"15,814.73",SPECIALIST POST-16,STATEMENTED FEES,2103607086,1000070978
06.01.2023,DSG,ORCHARD HILL COLLEGE,"15,909.10",SPECIALIST POST-16,STATEMENTED FEES,2103607084,1000070978
06.01.2023,DSG,ORCHARD HILL COLLEGE,"16,171.37",SPECIALIST POST-16,STATEMENTED FEES,2103607082,1000070978
06.01.2023,DSG,ORCHARD HILL COLLEGE,"16,239.25",SPECIALIST POST-16,STATEMENTED FEES,2103607080,1000070978
06.01.2023,DSG,ORCHARD HILL COLLEGE,"16,334.17",SPECIALIST POST-16,STATEMENTED FEES,2103607085,1000070978
06.01.2023,DSG,ORCHARD HILL COLLEGE,"17,545.42",SPECIALIST POST-16,STATEMENTED FEES,2103607067,1000070978
06.01.2023,DSG,ORCHARD HILL COLLEGE,"17,741.21",SPECIALIST POST-16,STATEMENTED FEES,2103607073,1000070978
06.01.2023,DSG,ORCHARD HILL COLLEGE,"20,501.15",SPECIALIST POST-16,STATEMENTED FEES,2103607089,1000070978
06.01.2023,EDUCATION,LEARNING UNLIMITED,"2,527.00",ADULT SKILLS BUDGET,GRANTS,5902559654,1000068095
06.01.2023,EDUCATION,WALWORTH GARDEN LTD,"1,000.00",ALC COMMUNITY LEARNING,GRANTS,5902559680,1000042204
06.01.2023,EDUCATION,WALWORTH GARDEN LTD,"4,000.00",ALC COMMUNITY LEARNING,GRANTS,5902559679,1000042204
06.01.2023,EDUCATION,HATS GROUP LTD,335,SCH TRANS � TRAVEL,EXTERNAL AGENCIES AND BODIES,5902559678,1000042743
06.01.2023,EDUCATION,HATS GROUP LTD,"3,877.00",SCH TRANS � TRAVEL,EXTERNAL AGENCIES AND BODIES,5902559678,1000042743
06.01.2023,EDUCATION,ASTON UNIVERSITY,"9,250.00",SCHOLARSHIP SCHEME,EXTERNAL AGENCIES AND BODIES,5902559592,1000054843
06.01.2023,ENVIRONMENT AND LEISURE,F M CONWAY LTD,"16,869.65",CAPITAL PS (LEISURE),CONSTRUCTION FEES  - EXTERNAL,2103607380,4001384
06.01.2023,ENVIRONMENT AND LEISURE,METIS CONSULTANTS LIMITED,428.84,CAPITAL PS (LEISURE),CONSTRUCTION FEES  - EXTERNAL,5902559555,1000086330
06.01.2023,ENVIRONMENT AND LEISURE,METIS CONSULTANTS LIMITED,"1,139.00",CAPITAL PS (LEISURE),CONSTRUCTION FEES  - EXTERNAL,5902559555,1000086330
06.01.2023,ENVIRONMENT AND LEISURE,RED R DESIGN,300,CAPITAL PS (REGEN),CONSTR'N SUB CONTRACT - NON CERTIFICATED,5902559570,1000035984
06.01.2023,ENVIRONMENT DIRECTORATE,GREENHAM TRADING LTD,350.98,COMMERCIAL WASTE,"CLOTHING, UNIFORMS & LAUNDRY",5902559616,1000006610
06.01.2023,ENVIRONMENT DIRECTORATE,LONDON TOOLS LIMITED,828.75,FLEET SERVICES MANAGEMENT,MATERIALS,5902559699,1000003017
06.01.2023,ENVIRONMENT DIRECTORATE,SOUTHWARK NEWSPAPER LTD,"2,592.00",HIGHWAYS DEVELOPMENT,MARKETING & PUBLICITY SERVICES,5902559622,1556957
06.01.2023,ENVIRONMENT DIRECTORATE,ASD LIGHTING PLC,560.28,PUBLIC LIGHTING,MATERIALS,5902559658,1000079671
06.01.2023,ENVIRONMENT DIRECTORATE,ASD LIGHTING PLC,933.8,PUBLIC LIGHTING,MATERIALS,5902559658,1000079671
06.01.2023,ENVIRONMENT DIRECTORATE,ASD LIGHTING PLC,"1,307.32",PUBLIC LIGHTING,MATERIALS,5902559658,1000079671
06.01.2023,ENVIRONMENT DIRECTORATE,ASD LIGHTING PLC,"1,307.32",PUBLIC LIGHTING,MATERIALS,5902559658,1000079671
06.01.2023,ENVIRONMENT DIRECTORATE,ASD LIGHTING PLC,"1,494.08",PUBLIC LIGHTING,MATERIALS,5902559658,1000079671
06.01.2023,ENVIRONMENT DIRECTORATE,ASD LIGHTING PLC,"1,680.84",PUBLIC LIGHTING,MATERIALS,5902559658,1000079671
06.01.2023,ENVIRONMENT DIRECTORATE,ASD LIGHTING PLC,"6,925.68",PUBLIC LIGHTING,MATERIALS,5902559656,1000079671
06.01.2023,F & C S EXCLUDING CORPORATE BUDGETS,DSI BILLING SERVICES LTD,"1,924.54",ADMINISTRATIVE SUPPORT,POSTAGES,5902559706,1000058640
06.01.2023,F & C S EXCLUDING CORPORATE BUDGETS,PAY360 LIMITED,875,INCOME MANAGEMENT,SOFTWARE,5902559607,1000089169
06.01.2023,F & C S EXCLUDING CORPORATE BUDGETS,PAY360 LIMITED,"1,775.00",INCOME MANAGEMENT,SOFTWARE,5902559615,1000089169
06.01.2023,F & C S EXCLUDING CORPORATE BUDGETS,PAY360 LIMITED,"2,925.00",INCOME MANAGEMENT,SOFTWARE,5902559608,1000089169
06.01.2023,F & C S EXCLUDING CORPORATE BUDGETS,PAY360 LIMITED,"3,500.75",INCOME MANAGEMENT,SOFTWARE,5902559615,1000089169
06.01.2023,F & C S EXCLUDING CORPORATE BUDGETS,PAY360 LIMITED,"26,000.00",INCOME MANAGEMENT,SOFTWARE,5902559604,1000089169
06.01.2023,HOUSING HRA,KARAKUSEVIC CARSON ARCHITECTS,"59,940.00",CAPITAL PS (HRA),CONSTRUCTION FEES - ARCHITECT,5902559688,1000055150
06.01.2023,HOUSING HRA,ARCHIO LTD,574.85,CAPITAL PS (HRA),CONSTRUCTION FEES - ARCHITECT,5902559626,1000086130
06.01.2023,HR & OT,KORN FERRY HAY GROUP LTD,820,HR PAYROLL COSTS,PAYMENTS FOR PERSONNEL MANAGEMENT SERVS,5902559598,1000079084
06.01.2023,HR & OT,KORN FERRY HAY GROUP LTD,"1,250.00",HR PAYROLL COSTS,RECRUITMENT ADVERTISING,5902559600,1000079084
06.01.2023,LEISURE DIRECTORATE,NSS SECURITY SYSTEMS LTD,712,GROVE VALE LIBRARY,SECURITY SERVICES,5902559692,1000083915
06.01.2023,LEISURE DIRECTORATE,BOLINDA UK LTD,"1,000.00",STOCK SERVICES,BOOKS & PUBLICATIONS,5902559690,1000075655
06.01.2023,LEISURE DIRECTORATE,BOLINDA UK LTD,"4,000.00",STOCK SERVICES,BOOKS & PUBLICATIONS,5902559690,1000075655
06.01.2023,LEISURE DIRECTORATE,CONSTELLIA PUBLIC LIMITED,"12,600.00",TREES PRINCIPAL ROADS,TREE MAINTENANCE,5902559573,1000088137
06.01.2023,RESIDENT SERVICES HGF,HELP2RENT PROPERTY MANAGEMENT LTD,"3,753.13",HOMELESS PROJECTS,GRANTS,5902559544,1000082282
06.01.2023,RESIDENT SERVICES HGF,FOLIO LONDON,"5,000.00",HOUSING OPTIONS,EXTERNAL AGENCIES AND BODIES,5902559632,1000081370
06.01.2023,RESIDENT SERVICES HGF,CLARION HOUSING ASSOCIATION LTD,"1,186.04",HOUSING OPTIONS,EXTERNAL AGENCIES AND BODIES,5902559591,1000088255
06.01.2023,RESIDENT SERVICES HGF,DIAMOND PROPERTY MANAGEMENT LTD,"1,457.00",NIGHTLY TA (NSC),EXTERNAL AGENCIES AND BODIES,5902559670,1000088789
06.01.2023,RESIDENT SERVICES HGF,REDACTED PERSONAL DATA,300,NIGHTLY TA (NSC),EXTERNAL AGENCIES AND BODIES,REDACTED,REDACTED
06.01.2023,RESIDENT SERVICES HGF,THEORI HOUSING MANAGEMENT SERVICES,942.5,PSL PLACEMENTS,EXTERNAL AGENCIES AND BODIES,5902559593,1000079264
06.01.2023,RESIDENT SERVICES HGF,THEORI HOUSING MANAGEMENT SERVICES,"175,118.61",PSL PLACEMENTS,EXTERNAL AGENCIES AND BODIES,5902559569,1000079264
06.01.2023,RESIDENT SERVICES HGF,ZFA ACCOMMODATION LTD,"178,780.91",PSL PLACEMENTS,EXTERNAL AGENCIES AND BODIES,5902559611,1000082620
06.01.2023,RESIDENT SERVICES HGF,KINGSPRIDE INVESTMENTS LTD,"55,800.00",RAPID REHOUSING,EXTERNAL AGENCIES AND BODIES,5902559628,1000084216
06.01.2023,SBS OPERATIONS,AKW MEDI-CARE LTD,386.64,ELECTRICIANS - DAY TO DAY,MATERIALS,5902559663,1000047103
06.01.2023,SBS OPERATIONS,AKW MEDI-CARE LTD,"3,044.42",ELECTRICIANS - DAY TO DAY,MATERIALS,5902559663,1000047103
06.01.2023,SBS OPERATIONS,AKW MEDI-CARE LTD,275.35,NUNHEAD DD,MATERIALS,5902559662,1000047103
06.01.2023,SBS OPERATIONS,AKW MEDI-CARE LTD,552.37,SBS AIDS AND ADAPTATIONS,MATERIALS,5902559659,1000047103
06.01.2023,SBS OPERATIONS,TRAVIS PERKINS TRADING COMPANY LTD,559,SBS LEAKS FROM ABOVE,MATERIALS,5902559571,1514319
06.01.2023,SBS OPERATIONS,TRAVIS PERKINS TRADING COMPANY LTD,673.33,SUPPORTED HOUSING - REPAIRS,MATERIALS,5902559561,1514319
06.01.2023,SBS SUPPORT,LONDON TOOLS LIMITED,395,R & M OVERHEADS,COMPUTER CONSUMABLES,5902559701,1000003017
06.01.2023,SBS SUPPORT,LAKEDALE POWER TOOLS,270,R & M OVERHEADS,MATERIALS,5902559666,1015368
06.01.2023,SBS SUPPORT,LAKEDALE POWER TOOLS,600,R & M OVERHEADS,MATERIALS,5902559665,1015368
06.01.2023,SBS SUPPORT,TRAVIS PERKINS TRADING COMPANY LTD,257.33,R & M OVERHEADS,MATERIALS,5902559568,1514319
06.01.2023,SBS SUPPORT,SMI INT GROUP LTD,904.68,R & M OVERHEADS,MATERIALS,5902559623,1000076606
06.01.2023,SOUTHWARK BUILDING SERVICES,TRAVIS PERKINS TRADING COMPANY LTD,253.2,STORES/LOGISTICS,CREDITORS -GR/IR CLEARING ACCOUNT,5902559568,1514319
06.01.2023,SOUTHWARK BUILDING SERVICES,TRAVIS PERKINS TRADING COMPANY LTD,261.4,STORES/LOGISTICS,CREDITORS -GR/IR CLEARING ACCOUNT,5902559575,1514319
06.01.2023,SOUTHWARK BUILDING SERVICES,TRAVIS PERKINS TRADING COMPANY LTD,262.2,STORES/LOGISTICS,CREDITORS -GR/IR CLEARING ACCOUNT,5902559571,1514319
06.01.2023,SOUTHWARK BUILDING SERVICES,TRAVIS PERKINS TRADING COMPANY LTD,288,STORES/LOGISTICS,CREDITORS -GR/IR CLEARING ACCOUNT,5902559561,1514319
06.01.2023,SOUTHWARK BUILDING SERVICES,TRAVIS PERKINS TRADING COMPANY LTD,288,STORES/LOGISTICS,CREDITORS -GR/IR CLEARING ACCOUNT,5902559568,1514319
06.01.2023,SOUTHWARK BUILDING SERVICES,TRAVIS PERKINS TRADING COMPANY LTD,291,STORES/LOGISTICS,CREDITORS -GR/IR CLEARING ACCOUNT,5902559571,1514319
06.01.2023,SOUTHWARK BUILDING SERVICES,TRAVIS PERKINS TRADING COMPANY LTD,291,STORES/LOGISTICS,CREDITORS -GR/IR CLEARING ACCOUNT,5902559575,1514319
06.01.2023,SOUTHWARK BUILDING SERVICES,TRAVIS PERKINS TRADING COMPANY LTD,294.4,STORES/LOGISTICS,CREDITORS -GR/IR CLEARING ACCOUNT,5902559568,1514319
06.01.2023,SOUTHWARK BUILDING SERVICES,TRAVIS PERKINS TRADING COMPANY LTD,300.8,STORES/LOGISTICS,CREDITORS -GR/IR CLEARING ACCOUNT,5902559571,1514319
06.01.2023,SOUTHWARK BUILDING SERVICES,TRAVIS PERKINS TRADING COMPANY LTD,304.5,STORES/LOGISTICS,CREDITORS -GR/IR CLEARING ACCOUNT,5902559568,1514319
06.01.2023,SOUTHWARK BUILDING SERVICES,TRAVIS PERKINS TRADING COMPANY LTD,306,STORES/LOGISTICS,CREDITORS -GR/IR CLEARING ACCOUNT,5902559561,1514319
06.01.2023,SOUTHWARK BUILDING SERVICES,TRAVIS PERKINS TRADING COMPANY LTD,319.75,STORES/LOGISTICS,CREDITORS -GR/IR CLEARING ACCOUNT,5902559568,1514319
06.01.2023,SOUTHWARK BUILDING SERVICES,TRAVIS PERKINS TRADING COMPANY LTD,322.4,STORES/LOGISTICS,CREDITORS -GR/IR CLEARING ACCOUNT,5902559568,1514319
06.01.2023,SOUTHWARK BUILDING SERVICES,TRAVIS PERKINS TRADING COMPANY LTD,357,STORES/LOGISTICS,CREDITORS -GR/IR CLEARING ACCOUNT,5902559571,1514319
06.01.2023,SOUTHWARK BUILDING SERVICES,TRAVIS PERKINS TRADING COMPANY LTD,360,STORES/LOGISTICS,CREDITORS -GR/IR CLEARING ACCOUNT,5902559571,1514319
06.01.2023,SOUTHWARK BUILDING SERVICES,TRAVIS PERKINS TRADING COMPANY LTD,364,STORES/LOGISTICS,CREDITORS -GR/IR CLEARING ACCOUNT,5902559568,1514319
06.01.2023,SOUTHWARK BUILDING SERVICES,TRAVIS PERKINS TRADING COMPANY LTD,375,STORES/LOGISTICS,CREDITORS -GR/IR CLEARING ACCOUNT,5902559575,1514319
06.01.2023,SOUTHWARK BUILDING SERVICES,TRAVIS PERKINS TRADING COMPANY LTD,376.2,STORES/LOGISTICS,CREDITORS -GR/IR CLEARING ACCOUNT,5902559568,1514319
06.01.2023,SOUTHWARK BUILDING SERVICES,TRAVIS PERKINS TRADING COMPANY LTD,378,STORES/LOGISTICS,CREDITORS -GR/IR CLEARING ACCOUNT,5902559561,1514319
06.01.2023,SOUTHWARK BUILDING SERVICES,TRAVIS PERKINS TRADING COMPANY LTD,395,STORES/LOGISTICS,CREDITORS -GR/IR CLEARING ACCOUNT,5902559568,1514319
06.01.2023,SOUTHWARK BUILDING SERVICES,TRAVIS PERKINS TRADING COMPANY LTD,408,STORES/LOGISTICS,CREDITORS -GR/IR CLEARING ACCOUNT,5902559568,1514319
06.01.2023,SOUTHWARK BUILDING SERVICES,TRAVIS PERKINS TRADING COMPANY LTD,415.8,STORES/LOGISTICS,CREDITORS -GR/IR CLEARING ACCOUNT,5902559561,1514319
06.01.2023,SOUTHWARK BUILDING SERVICES,TRAVIS PERKINS TRADING COMPANY LTD,420,STORES/LOGISTICS,CREDITORS -GR/IR CLEARING ACCOUNT,5902559571,1514319
06.01.2023,SOUTHWARK BUILDING SERVICES,TRAVIS PERKINS TRADING COMPANY LTD,436.2,STORES/LOGISTICS,CREDITORS -GR/IR CLEARING ACCOUNT,5902559571,1514319
06.01.2023,SOUTHWARK BUILDING SERVICES,TRAVIS PERKINS TRADING COMPANY LTD,489.12,STORES/LOGISTICS,CREDITORS -GR/IR CLEARING ACCOUNT,5902559571,1514319
06.01.2023,SOUTHWARK BUILDING SERVICES,TRAVIS PERKINS TRADING COMPANY LTD,493.36,STORES/LOGISTICS,CREDITORS -GR/IR CLEARING ACCOUNT,5902559561,1514319
06.01.2023,SOUTHWARK BUILDING SERVICES,TRAVIS PERKINS TRADING COMPANY LTD,506.88,STORES/LOGISTICS,CREDITORS -GR/IR CLEARING ACCOUNT,5902559568,1514319
06.01.2023,SOUTHWARK BUILDING SERVICES,TRAVIS PERKINS TRADING COMPANY LTD,506.88,STORES/LOGISTICS,CREDITORS -GR/IR CLEARING ACCOUNT,5902559575,1514319
06.01.2023,SOUTHWARK BUILDING SERVICES,TRAVIS PERKINS TRADING COMPANY LTD,511.8,STORES/LOGISTICS,CREDITORS -GR/IR CLEARING ACCOUNT,5902559571,1514319
06.01.2023,SOUTHWARK BUILDING SERVICES,TRAVIS PERKINS TRADING COMPANY LTD,511.8,STORES/LOGISTICS,CREDITORS -GR/IR CLEARING ACCOUNT,5902559571,1514319
06.01.2023,SOUTHWARK BUILDING SERVICES,TRAVIS PERKINS TRADING COMPANY LTD,516,STORES/LOGISTICS,CREDITORS -GR/IR CLEARING ACCOUNT,5902559568,1514319
06.01.2023,SOUTHWARK BUILDING SERVICES,TRAVIS PERKINS TRADING COMPANY LTD,561.4,STORES/LOGISTICS,CREDITORS -GR/IR CLEARING ACCOUNT,5902559571,1514319
06.01.2023,SOUTHWARK BUILDING SERVICES,TRAVIS PERKINS TRADING COMPANY LTD,581.6,STORES/LOGISTICS,CREDITORS -GR/IR CLEARING ACCOUNT,5902559561,1514319
06.01.2023,SOUTHWARK BUILDING SERVICES,TRAVIS PERKINS TRADING COMPANY LTD,582,STORES/LOGISTICS,CREDITORS -GR/IR CLEARING ACCOUNT,5902559571,1514319
06.01.2023,SOUTHWARK BUILDING SERVICES,TRAVIS PERKINS TRADING COMPANY LTD,583.8,STORES/LOGISTICS,CREDITORS -GR/IR CLEARING ACCOUNT,5902559571,1514319
06.01.2023,SOUTHWARK BUILDING SERVICES,TRAVIS PERKINS TRADING COMPANY LTD,609,STORES/LOGISTICS,CREDITORS -GR/IR CLEARING ACCOUNT,5902559571,1514319
06.01.2023,SOUTHWARK BUILDING SERVICES,TRAVIS PERKINS TRADING COMPANY LTD,620.2,STORES/LOGISTICS,CREDITORS -GR/IR CLEARING ACCOUNT,5902559571,1514319
06.01.2023,SOUTHWARK BUILDING SERVICES,TRAVIS PERKINS TRADING COMPANY LTD,620.2,STORES/LOGISTICS,CREDITORS -GR/IR CLEARING ACCOUNT,5902559575,1514319
06.01.2023,SOUTHWARK BUILDING SERVICES,TRAVIS PERKINS TRADING COMPANY LTD,629.76,STORES/LOGISTICS,CREDITORS -GR/IR CLEARING ACCOUNT,5902559571,1514319
06.01.2023,SOUTHWARK BUILDING SERVICES,TRAVIS PERKINS TRADING COMPANY LTD,640,STORES/LOGISTICS,CREDITORS -GR/IR CLEARING ACCOUNT,5902559571,1514319
06.01.2023,SOUTHWARK BUILDING SERVICES,TRAVIS PERKINS TRADING COMPANY LTD,647,STORES/LOGISTICS,CREDITORS -GR/IR CLEARING ACCOUNT,5902559571,1514319
06.01.2023,SOUTHWARK BUILDING SERVICES,TRAVIS PERKINS TRADING COMPANY LTD,671.8,STORES/LOGISTICS,CREDITORS -GR/IR CLEARING ACCOUNT,5902559571,1514319
06.01.2023,SOUTHWARK BUILDING SERVICES,TRAVIS PERKINS TRADING COMPANY LTD,675,STORES/LOGISTICS,CREDITORS -GR/IR CLEARING ACCOUNT,5902559571,1514319
06.01.2023,SOUTHWARK BUILDING SERVICES,TRAVIS PERKINS TRADING COMPANY LTD,688.2,STORES/LOGISTICS,CREDITORS -GR/IR CLEARING ACCOUNT,5902559571,1514319
06.01.2023,SOUTHWARK BUILDING SERVICES,TRAVIS PERKINS TRADING COMPANY LTD,707.5,STORES/LOGISTICS,CREDITORS -GR/IR CLEARING ACCOUNT,5902559571,1514319
06.01.2023,SOUTHWARK BUILDING SERVICES,TRAVIS PERKINS TRADING COMPANY LTD,715,STORES/LOGISTICS,CREDITORS -GR/IR CLEARING ACCOUNT,5902559568,1514319
06.01.2023,SOUTHWARK BUILDING SERVICES,TRAVIS PERKINS TRADING COMPANY LTD,720.3,STORES/LOGISTICS,CREDITORS -GR/IR CLEARING ACCOUNT,5902559561,1514319
06.01.2023,SOUTHWARK BUILDING SERVICES,TRAVIS PERKINS TRADING COMPANY LTD,761.4,STORES/LOGISTICS,CREDITORS -GR/IR CLEARING ACCOUNT,5902559575,1514319
06.01.2023,SOUTHWARK BUILDING SERVICES,TRAVIS PERKINS TRADING COMPANY LTD,771.12,STORES/LOGISTICS,CREDITORS -GR/IR CLEARING ACCOUNT,5902559561,1514319
06.01.2023,SOUTHWARK BUILDING SERVICES,TRAVIS PERKINS TRADING COMPANY LTD,771.12,STORES/LOGISTICS,CREDITORS -GR/IR CLEARING ACCOUNT,5902559561,1514319
06.01.2023,SOUTHWARK BUILDING SERVICES,TRAVIS PERKINS TRADING COMPANY LTD,771.12,STORES/LOGISTICS,CREDITORS -GR/IR CLEARING ACCOUNT,5902559575,1514319
06.01.2023,SOUTHWARK BUILDING SERVICES,TRAVIS PERKINS TRADING COMPANY LTD,780,STORES/LOGISTICS,CREDITORS -GR/IR CLEARING ACCOUNT,5902559568,1514319
06.01.2023,SOUTHWARK BUILDING SERVICES,TRAVIS PERKINS TRADING COMPANY LTD,836.1,STORES/LOGISTICS,CREDITORS -GR/IR CLEARING ACCOUNT,5902559568,1514319
06.01.2023,SOUTHWARK BUILDING SERVICES,TRAVIS PERKINS TRADING COMPANY LTD,860,STORES/LOGISTICS,CREDITORS -GR/IR CLEARING ACCOUNT,5902559571,1514319
06.01.2023,SOUTHWARK BUILDING SERVICES,TRAVIS PERKINS TRADING COMPANY LTD,886.5,STORES/LOGISTICS,CREDITORS -GR/IR CLEARING ACCOUNT,5902559568,1514319
06.01.2023,SOUTHWARK BUILDING SERVICES,TRAVIS PERKINS TRADING COMPANY LTD,925.44,STORES/LOGISTICS,CREDITORS -GR/IR CLEARING ACCOUNT,5902559571,1514319
06.01.2023,SOUTHWARK BUILDING SERVICES,TRAVIS PERKINS TRADING COMPANY LTD,925.44,STORES/LOGISTICS,CREDITORS -GR/IR CLEARING ACCOUNT,5902559575,1514319
06.01.2023,SOUTHWARK BUILDING SERVICES,TRAVIS PERKINS TRADING COMPANY LTD,946.44,STORES/LOGISTICS,CREDITORS -GR/IR CLEARING ACCOUNT,5902559561,1514319
06.01.2023,SOUTHWARK BUILDING SERVICES,TRAVIS PERKINS TRADING COMPANY LTD,"1,077.40",STORES/LOGISTICS,CREDITORS -GR/IR CLEARING ACCOUNT,5902559571,1514319
06.01.2023,SOUTHWARK BUILDING SERVICES,TRAVIS PERKINS TRADING COMPANY LTD,"1,100.70",STORES/LOGISTICS,CREDITORS -GR/IR CLEARING ACCOUNT,5902559572,1514319
06.01.2023,SOUTHWARK BUILDING SERVICES,TRAVIS PERKINS TRADING COMPANY LTD,"1,220.60",STORES/LOGISTICS,CREDITORS -GR/IR CLEARING ACCOUNT,5902559561,1514319
06.01.2023,SOUTHWARK BUILDING SERVICES,TRAVIS PERKINS TRADING COMPANY LTD,"1,245.40",STORES/LOGISTICS,CREDITORS -GR/IR CLEARING ACCOUNT,5902559571,1514319
06.01.2023,SOUTHWARK BUILDING SERVICES,TRAVIS PERKINS TRADING COMPANY LTD,"1,286.40",STORES/LOGISTICS,CREDITORS -GR/IR CLEARING ACCOUNT,5902559568,1514319
06.01.2023,SOUTHWARK BUILDING SERVICES,TRAVIS PERKINS TRADING COMPANY LTD,"1,400.40",STORES/LOGISTICS,CREDITORS -GR/IR CLEARING ACCOUNT,5902559561,1514319
06.01.2023,SOUTHWARK BUILDING SERVICES,TRAVIS PERKINS TRADING COMPANY LTD,"1,400.40",STORES/LOGISTICS,CREDITORS -GR/IR CLEARING ACCOUNT,5902559568,1514319
06.01.2023,SOUTHWARK BUILDING SERVICES,TRAVIS PERKINS TRADING COMPANY LTD,"1,405.20",STORES/LOGISTICS,CREDITORS -GR/IR CLEARING ACCOUNT,5902559571,1514319
06.01.2023,SOUTHWARK BUILDING SERVICES,TRAVIS PERKINS TRADING COMPANY LTD,"1,577.40",STORES/LOGISTICS,CREDITORS -GR/IR CLEARING ACCOUNT,5902559571,1514319
06.01.2023,SOUTHWARK BUILDING SERVICES,TRAVIS PERKINS TRADING COMPANY LTD,"1,632.00",STORES/LOGISTICS,CREDITORS -GR/IR CLEARING ACCOUNT,5902559571,1514319
06.01.2023,SOUTHWARK BUILDING SERVICES,TRAVIS PERKINS TRADING COMPANY LTD,"1,647.00",STORES/LOGISTICS,CREDITORS -GR/IR CLEARING ACCOUNT,5902559575,1514319
06.01.2023,SOUTHWARK BUILDING SERVICES,TRAVIS PERKINS TRADING COMPANY LTD,"1,926.40",STORES/LOGISTICS,CREDITORS -GR/IR CLEARING ACCOUNT,5902559571,1514319
06.01.2023,SOUTHWARK BUILDING SERVICES,TRAVIS PERKINS TRADING COMPANY LTD,"2,160.00",STORES/LOGISTICS,CREDITORS -GR/IR CLEARING ACCOUNT,5902559571,1514319
06.01.2023,SOUTHWARK BUILDING SERVICES,TRAVIS PERKINS TRADING COMPANY LTD,"3,750.00",STORES/LOGISTICS,CREDITORS -GR/IR CLEARING ACCOUNT,5902559575,1514319
06.01.2023,SOUTHWARK BUILDING SERVICES,TRAVIS PERKINS TRADING COMPANY LTD,"3,833.40",STORES/LOGISTICS,CREDITORS -GR/IR CLEARING ACCOUNT,5902559568,1514319
06.01.2023,SOUTHWARK BUILDING SERVICES,TRAVIS PERKINS TRADING COMPANY LTD,"3,833.40",STORES/LOGISTICS,CREDITORS -GR/IR CLEARING ACCOUNT,5902559571,1514319
06.01.2023,SOUTHWARK BUILDING SERVICES,TRAVIS PERKINS TRADING COMPANY LTD,"6,200.34",STORES/LOGISTICS,CREDITORS -GR/IR CLEARING ACCOUNT,5902559568,1514319
06.01.2023,SOUTHWARK BUILDING SERVICES,PPG ARCHITECTURAL COATINGS,837.6,STORES/LOGISTICS,CREDITORS -GR/IR CLEARING ACCOUNT,5902559597,11063178
06.01.2023,SOUTHWARK BUILDING SERVICES,LONDON TOOLS LIMITED,330,STORES/LOGISTICS,CREDITORS -GR/IR CLEARING ACCOUNT,5902559646,1000003017
06.01.2023,SOUTHWARK BUILDING SERVICES,LONDON TOOLS LIMITED,412.8,STORES/LOGISTICS,CREDITORS -GR/IR CLEARING ACCOUNT,5902559639,1000003017
06.01.2023,SOUTHWARK BUILDING SERVICES,LONDON TOOLS LIMITED,625,STORES/LOGISTICS,CREDITORS -GR/IR CLEARING ACCOUNT,5902559703,1000003017
06.01.2023,SOUTHWARK BUILDING SERVICES,LONDON TOOLS LIMITED,"1,035.00",STORES/LOGISTICS,CREDITORS -GR/IR CLEARING ACCOUNT,5902559640,1000003017
06.01.2023,SOUTHWARK BUILDING SERVICES,LONDON TOOLS LIMITED,"1,125.00",STORES/LOGISTICS,CREDITORS -GR/IR CLEARING ACCOUNT,5902559640,1000003017
06.01.2023,SOUTHWARK BUILDING SERVICES,LONDON TOOLS LIMITED,"2,277.00",STORES/LOGISTICS,CREDITORS -GR/IR CLEARING ACCOUNT,5902559705,1000003017
06.01.2023,SOUTHWARK BUILDING SERVICES,KEMICO LIMITED,"5,292.00",STORES/LOGISTICS,CREDITORS -GR/IR CLEARING ACCOUNT,5902559586,1000030226
07.01.2023,CHIEF EXECUTIVE,GREENGAGE ENVIROMENTAL LTD,350,CAPITAL PS (REGEN),CONSTRUCTION FEES  - EXTERNAL,5902559432,1000086955
07.01.2023,CHILDREN AND FAMILIES,SOUTH LONDON & MAUDSLEY HOSPITAL,"2,205.00",ADOPTION SUPP FUND 2,EXTERNAL AGENCIES AND BODIES,5902559536,1000013096
07.01.2023,COMMUNITIES,POSAPA LTD,"20,000.00",SSMTRG,OTHER CONTRACTORS,5902559247,1000083060
07.01.2023,HOUSING HRA,LIFTEC LIFTS LTD,"2,145.00",CAPITAL PS (HRA),UTILITIES INSTALLATION,5902559248,1000057278
07.01.2023,LEISURE DIRECTORATE,CONSTELLIA PUBLIC LIMITED,"8,289.58",TREES PRINCIPAL ROADS,TREE MAINTENANCE,5902559559,1000088137
07.01.2023,LEISURE DIRECTORATE,CONSTELLIA PUBLIC LIMITED,"27,152.60",TREES PRINCIPAL ROADS,TREE MAINTENANCE,5902559559,1000088137
08.01.2023,ADULT SOCIAL CARE,EDGE TRAINING AND CONSULTANCY LTD,"3,500.00",ASW - PROFESSIONAL DEVELOPMENT,CONSULTANTS SERVICES,5902559517,1000057249
08.01.2023,HR & OT,PLANET TRAINING LIMITED,550,CORPORATE TRAINING BUDGETS,TRAINING,5902559508,1000064733
08.01.2023,HR & OT,PLANET TRAINING LIMITED,695,CORPORATE TRAINING BUDGETS,TRAINING,5902559509,1000064733
08.01.2023,HR & OT,PLANET TRAINING LIMITED,"2,685.00",CORPORATE TRAINING BUDGETS,TRAINING,5902559507,1000064733
09.01.2023,ADULT SOCIAL CARE,3 SPIRIT ENTERPRISE UK LTD,750,ADULTS MULTI-AGENCY SAFEGUARDING TRNG,TRAINING,5902559874,1000085339
09.01.2023,ADULT SOCIAL CARE,WHITELEYS OFFICE SUPPLIES LTD,307.33,ASC PLACEMENTS TEAM,OFFICE EXPENSES,5902559808,1000083121
09.01.2023,ADULT SOCIAL CARE,BRITISH GAS,982.56,CASTLEMEAD,ELECTRICITY,5902559590,1000054825
09.01.2023,ADULT SOCIAL CARE,ACCESS MOBILITY TRANSPORT LTD,"2,495.60",LD LTS 18-64,CLIENT TRANSPORT,2103607424,1000074637
09.01.2023,ADULT SOCIAL CARE,OUT AND ABOUT COMMUNITY SERVICES,425,LD LTS 18-64,DAYCARE,2103607412,1000078603
09.01.2023,ADULT SOCIAL CARE,OUT AND ABOUT COMMUNITY SERVICES,977.5,LD LTS 18-64,DAYCARE,2103607418,1000078603
09.01.2023,ADULT SOCIAL CARE,MEDACS HOMECARE,935.75,LD LTS 18-64,HOMECARE - C&V,2103608044,11287415
09.01.2023,ADULT SOCIAL CARE,BLISSETT CARE LTD,478.24,LD LTS 18-64,HOMECARE - C&V,2103607951,1000042627
09.01.2023,ADULT SOCIAL CARE,SUPREME CARE SERVICES LTD,498.98,LD LTS 18-64,HOMECARE - C&V,2103607585,1000059416
09.01.2023,ADULT SOCIAL CARE,SUPREME CARE SERVICES LTD,995.24,LD LTS 18-64,HOMECARE - C&V,2103607560,1000059416
09.01.2023,ADULT SOCIAL CARE,CAPITAL HOMECARE (UK) LTD,330.96,LD LTS 18-64,HOMECARE - SPOT,2103607877,1000042589
09.01.2023,ADULT SOCIAL CARE,CHOICE SUPPORT,587.84,LD LTS 18-64,SUPPORTED LIVING,2103607416,1104183
09.01.2023,ADULT SOCIAL CARE,CHOICE SUPPORT,808.28,LD LTS 18-64,SUPPORTED LIVING,2103607414,1104183
09.01.2023,ADULT SOCIAL CARE,CONTACT PROFESSIONALS,283,LD LTS 18-64,SUPPORTED LIVING,2103607422,1000057263
09.01.2023,ADULT SOCIAL CARE,CONTACT PROFESSIONALS,684,LD LTS 18-64,SUPPORTED LIVING,2103607428,1000057263
09.01.2023,ADULT SOCIAL CARE,CONTACT PROFESSIONALS,912,LD LTS 18-64,SUPPORTED LIVING,2103607430,1000057263
09.01.2023,ADULT SOCIAL CARE,OUT AND ABOUT COMMUNITY SERVICES,680,LD LTS 18-64,SUPPORTED LIVING,2103607420,1000078603
09.01.2023,ADULT SOCIAL CARE,SUPREME CARE SERVICES LTD,869.59,LD LTS 65+,HOMECARE - C&V,2103607488,1000059416
09.01.2023,ADULT SOCIAL CARE,SUPREME CARE SERVICES LTD,"1,437.02",LD LTS 65+,HOMECARE - C&V,2103607553,1000059416
09.01.2023,ADULT SOCIAL CARE,SUPREME CARE SERVICES LTD,423.84,MEM LTS 18-64,HOMECARE - C&V,2103607627,1000059416
09.01.2023,ADULT SOCIAL CARE,MEDACS HOMECARE,831.25,MEM LTS 65+,HOMECARE - C&V,2103607995,11287415
09.01.2023,ADULT SOCIAL CARE,MEDACS HOMECARE,855,MEM LTS 65+,HOMECARE - C&V,2103607993,11287415
09.01.2023,ADULT SOCIAL CARE,SUPREME CARE SERVICES LTD,262.76,MEM LTS 65+,HOMECARE - C&V,2103607787,1000059416
09.01.2023,ADULT SOCIAL CARE,SUPREME CARE SERVICES LTD,267.36,MEM LTS 65+,HOMECARE - C&V,2103607679,1000059416
09.01.2023,ADULT SOCIAL CARE,SUPREME CARE SERVICES LTD,313.98,MEM LTS 65+,HOMECARE - C&V,2103607671,1000059416
09.01.2023,ADULT SOCIAL CARE,SUPREME CARE SERVICES LTD,539.33,MEM LTS 65+,HOMECARE - C&V,2103607501,1000059416
09.01.2023,ADULT SOCIAL CARE,SUPREME CARE SERVICES LTD,626.75,MEM LTS 65+,HOMECARE - C&V,2103607590,1000059416
09.01.2023,ADULT SOCIAL CARE,SUPREME CARE SERVICES LTD,783.17,MEM LTS 65+,HOMECARE - C&V,2103607839,1000059416
09.01.2023,ADULT SOCIAL CARE,SUPREME CARE SERVICES LTD,"1,391.64",MEM LTS 65+,HOMECARE - C&V,2103607849,1000059416
09.01.2023,ADULT SOCIAL CARE,SUPREME CARE SERVICES LTD,"2,322.80",MEM LTS 65+,HOMECARE - C&V,2103607737,1000059416
09.01.2023,ADULT SOCIAL CARE,MEDACS HOMECARE,491.83,MH LTS 18-64,HOMECARE - C&V,2103608055,11287415
09.01.2023,ADULT SOCIAL CARE,MEDACS HOMECARE,503.5,MH LTS 18-64,HOMECARE - C&V,2103607990,11287415
09.01.2023,ADULT SOCIAL CARE,MEDACS HOMECARE,916.75,MH LTS 18-64,HOMECARE - C&V,2103607994,11287415
09.01.2023,ADULT SOCIAL CARE,MEDACS HOMECARE,"1,567.50",MH LTS 18-64,HOMECARE - C&V,2103607968,11287415
09.01.2023,ADULT SOCIAL CARE,SUPREME CARE SERVICES LTD,281.06,MH LTS 18-64,HOMECARE - C&V,2103607673,1000059416
09.01.2023,ADULT SOCIAL CARE,SUPREME CARE SERVICES LTD,313.32,MH LTS 18-64,HOMECARE - C&V,2103607542,1000059416
09.01.2023,ADULT SOCIAL CARE,SUPREME CARE SERVICES LTD,356.31,MH LTS 18-64,HOMECARE - C&V,2103607757,1000059416
09.01.2023,ADULT SOCIAL CARE,SUPREME CARE SERVICES LTD,581.3,MH LTS 18-64,HOMECARE - C&V,2103607821,1000059416
09.01.2023,ADULT SOCIAL CARE,SUPREME CARE SERVICES LTD,847.84,MH LTS 18-64,HOMECARE - C&V,2103607742,1000059416
09.01.2023,ADULT SOCIAL CARE,BLISSETT CARE LTD,541.56,MH LTS 65+,HOMECARE - C&V,2103607915,1000042627
09.01.2023,ADULT SOCIAL CARE,BLISSETT CARE LTD,616.8,MH LTS 65+,HOMECARE - C&V,2103607954,1000042627
09.01.2023,ADULT SOCIAL CARE,BLISSETT CARE LTD,"2,551.75",MH LTS 65+,HOMECARE - C&V,2103607926,1000042627
09.01.2023,ADULT SOCIAL CARE,SUPREME CARE SERVICES LTD,258.06,MH LTS 65+,HOMECARE - C&V,2103607795,1000059416
09.01.2023,ADULT SOCIAL CARE,SUPREME CARE SERVICES LTD,409.2,MH LTS 65+,HOMECARE - C&V,2103607580,1000059416
09.01.2023,ADULT SOCIAL CARE,SUPREME CARE SERVICES LTD,511.43,MH LTS 65+,HOMECARE - C&V,2103607863,1000059416
09.01.2023,ADULT SOCIAL CARE,SUPREME CARE SERVICES LTD,543.7,MH LTS 65+,HOMECARE - C&V,2103607527,1000059416
09.01.2023,ADULT SOCIAL CARE,SUPREME CARE SERVICES LTD,589.76,MH LTS 65+,HOMECARE - C&V,2103607543,1000059416
09.01.2023,ADULT SOCIAL CARE,SUPREME CARE SERVICES LTD,838.62,MH LTS 65+,HOMECARE - C&V,2103607624,1000059416
09.01.2023,ADULT SOCIAL CARE,MEDACS HOMECARE,270.75,PHY LTS 18-64,HOMECARE - C&V,2103608015,11287415
09.01.2023,ADULT SOCIAL CARE,MEDACS HOMECARE,337.25,PHY LTS 18-64,HOMECARE - C&V,2103607959,11287415
09.01.2023,ADULT SOCIAL CARE,MEDACS HOMECARE,382.92,PHY LTS 18-64,HOMECARE - C&V,2103608058,11287415
09.01.2023,ADULT SOCIAL CARE,MEDACS HOMECARE,399,PHY LTS 18-64,HOMECARE - C&V,2103608063,11287415
09.01.2023,ADULT SOCIAL CARE,MEDACS HOMECARE,487.48,PHY LTS 18-64,HOMECARE - C&V,2103608053,11287415
09.01.2023,ADULT SOCIAL CARE,MEDACS HOMECARE,536.75,PHY LTS 18-64,HOMECARE - C&V,2103607987,11287415
09.01.2023,ADULT SOCIAL CARE,MEDACS HOMECARE,551,PHY LTS 18-64,HOMECARE - C&V,2103607963,11287415
09.01.2023,ADULT SOCIAL CARE,MEDACS HOMECARE,586.69,PHY LTS 18-64,HOMECARE - C&V,2103608038,11287415
09.01.2023,ADULT SOCIAL CARE,MEDACS HOMECARE,688.75,PHY LTS 18-64,HOMECARE - C&V,2103608040,11287415
09.01.2023,ADULT SOCIAL CARE,MEDACS HOMECARE,736.25,PHY LTS 18-64,HOMECARE - C&V,2103607967,11287415
09.01.2023,ADULT SOCIAL CARE,MEDACS HOMECARE,931,PHY LTS 18-64,HOMECARE - C&V,2103607969,11287415
09.01.2023,ADULT SOCIAL CARE,MEDACS HOMECARE,970.7,PHY LTS 18-64,HOMECARE - C&V,2103608056,11287415
09.01.2023,ADULT SOCIAL CARE,MEDACS HOMECARE,"1,505.75",PHY LTS 18-64,HOMECARE - C&V,2103608018,11287415
09.01.2023,ADULT SOCIAL CARE,BLISSETT CARE LTD,376.76,PHY LTS 18-64,HOMECARE - C&V,2103607947,1000042627
09.01.2023,ADULT SOCIAL CARE,BLISSETT CARE LTD,484.88,PHY LTS 18-64,HOMECARE - C&V,2103607933,1000042627
09.01.2023,ADULT SOCIAL CARE,BLISSETT CARE LTD,484.93,PHY LTS 18-64,HOMECARE - C&V,2103607916,1000042627
09.01.2023,ADULT SOCIAL CARE,BLISSETT CARE LTD,602.6,PHY LTS 18-64,HOMECARE - C&V,2103607930,1000042627
09.01.2023,ADULT SOCIAL CARE,BLISSETT CARE LTD,653.31,PHY LTS 18-64,HOMECARE - C&V,2103607957,1000042627
09.01.2023,ADULT SOCIAL CARE,BLISSETT CARE LTD,670.39,PHY LTS 18-64,HOMECARE - C&V,2103607955,1000042627
09.01.2023,ADULT SOCIAL CARE,BLISSETT CARE LTD,710.97,PHY LTS 18-64,HOMECARE - C&V,2103607929,1000042627
09.01.2023,ADULT SOCIAL CARE,BLISSETT CARE LTD,932.27,PHY LTS 18-64,HOMECARE - C&V,2103607949,1000042627
09.01.2023,ADULT SOCIAL CARE,BLISSETT CARE LTD,"1,020.53",PHY LTS 18-64,HOMECARE - C&V,2103607952,1000042627
09.01.2023,ADULT SOCIAL CARE,SUPREME CARE SERVICES LTD,271.8,PHY LTS 18-64,HOMECARE - C&V,2103607771,1000059416
09.01.2023,ADULT SOCIAL CARE,SUPREME CARE SERVICES LTD,281.32,PHY LTS 18-64,HOMECARE - C&V,2103607873,1000059416
09.01.2023,ADULT SOCIAL CARE,SUPREME CARE SERVICES LTD,313.26,PHY LTS 18-64,HOMECARE - C&V,2103607723,1000059416
09.01.2023,ADULT SOCIAL CARE,SUPREME CARE SERVICES LTD,331.68,PHY LTS 18-64,HOMECARE - C&V,2103607655,1000059416
09.01.2023,ADULT SOCIAL CARE,SUPREME CARE SERVICES LTD,336.31,PHY LTS 18-64,HOMECARE - C&V,2103607555,1000059416
09.01.2023,ADULT SOCIAL CARE,SUPREME CARE SERVICES LTD,342.41,PHY LTS 18-64,HOMECARE - C&V,2103607665,1000059416
09.01.2023,ADULT SOCIAL CARE,SUPREME CARE SERVICES LTD,345.42,PHY LTS 18-64,HOMECARE - C&V,2103607582,1000059416
09.01.2023,ADULT SOCIAL CARE,SUPREME CARE SERVICES LTD,347.38,PHY LTS 18-64,HOMECARE - C&V,2103607708,1000059416
09.01.2023,ADULT SOCIAL CARE,SUPREME CARE SERVICES LTD,386.96,PHY LTS 18-64,HOMECARE - C&V,2103607734,1000059416
09.01.2023,ADULT SOCIAL CARE,SUPREME CARE SERVICES LTD,386.96,PHY LTS 18-64,HOMECARE - C&V,2103607753,1000059416
09.01.2023,ADULT SOCIAL CARE,SUPREME CARE SERVICES LTD,405.4,PHY LTS 18-64,HOMECARE - C&V,2103607596,1000059416
09.01.2023,ADULT SOCIAL CARE,SUPREME CARE SERVICES LTD,439.18,PHY LTS 18-64,HOMECARE - C&V,2103607576,1000059416
09.01.2023,ADULT SOCIAL CARE,SUPREME CARE SERVICES LTD,460.76,PHY LTS 18-64,HOMECARE - C&V,2103607709,1000059416
09.01.2023,ADULT SOCIAL CARE,SUPREME CARE SERVICES LTD,463.54,PHY LTS 18-64,HOMECARE - C&V,2103607526,1000059416
09.01.2023,ADULT SOCIAL CARE,SUPREME CARE SERVICES LTD,464.53,PHY LTS 18-64,HOMECARE - C&V,2103607720,1000059416
09.01.2023,ADULT SOCIAL CARE,SUPREME CARE SERVICES LTD,470.03,PHY LTS 18-64,HOMECARE - C&V,2103607650,1000059416
09.01.2023,ADULT SOCIAL CARE,SUPREME CARE SERVICES LTD,481.82,PHY LTS 18-64,HOMECARE - C&V,2103607573,1000059416
09.01.2023,ADULT SOCIAL CARE,SUPREME CARE SERVICES LTD,483.77,PHY LTS 18-64,HOMECARE - C&V,2103607864,1000059416
09.01.2023,ADULT SOCIAL CARE,SUPREME CARE SERVICES LTD,493.04,PHY LTS 18-64,HOMECARE - C&V,2103607768,1000059416
09.01.2023,ADULT SOCIAL CARE,SUPREME CARE SERVICES LTD,500.65,PHY LTS 18-64,HOMECARE - C&V,2103607622,1000059416
09.01.2023,ADULT SOCIAL CARE,SUPREME CARE SERVICES LTD,520.85,PHY LTS 18-64,HOMECARE - C&V,2103607490,1000059416
09.01.2023,ADULT SOCIAL CARE,SUPREME CARE SERVICES LTD,525.26,PHY LTS 18-64,HOMECARE - C&V,2103607689,1000059416
09.01.2023,ADULT SOCIAL CARE,SUPREME CARE SERVICES LTD,528.6,PHY LTS 18-64,HOMECARE - C&V,2103607547,1000059416
09.01.2023,ADULT SOCIAL CARE,SUPREME CARE SERVICES LTD,528.76,PHY LTS 18-64,HOMECARE - C&V,2103607494,1000059416
09.01.2023,ADULT SOCIAL CARE,SUPREME CARE SERVICES LTD,541.32,PHY LTS 18-64,HOMECARE - C&V,2103607537,1000059416
09.01.2023,ADULT SOCIAL CARE,SUPREME CARE SERVICES LTD,590.04,PHY LTS 18-64,HOMECARE - C&V,2103607690,1000059416
09.01.2023,ADULT SOCIAL CARE,SUPREME CARE SERVICES LTD,594.34,PHY LTS 18-64,HOMECARE - C&V,2103607704,1000059416
09.01.2023,ADULT SOCIAL CARE,SUPREME CARE SERVICES LTD,603.64,PHY LTS 18-64,HOMECARE - C&V,2103607594,1000059416
09.01.2023,ADULT SOCIAL CARE,SUPREME CARE SERVICES LTD,631.03,PHY LTS 18-64,HOMECARE - C&V,2103607538,1000059416
09.01.2023,ADULT SOCIAL CARE,SUPREME CARE SERVICES LTD,658.91,PHY LTS 18-64,HOMECARE - C&V,2103607493,1000059416
09.01.2023,ADULT SOCIAL CARE,SUPREME CARE SERVICES LTD,661.02,PHY LTS 18-64,HOMECARE - C&V,2103607516,1000059416
09.01.2023,ADULT SOCIAL CARE,SUPREME CARE SERVICES LTD,686.5,PHY LTS 18-64,HOMECARE - C&V,2103607528,1000059416
09.01.2023,ADULT SOCIAL CARE,SUPREME CARE SERVICES LTD,693.06,PHY LTS 18-64,HOMECARE - C&V,2103607652,1000059416
09.01.2023,ADULT SOCIAL CARE,SUPREME CARE SERVICES LTD,693.96,PHY LTS 18-64,HOMECARE - C&V,2103607710,1000059416
09.01.2023,ADULT SOCIAL CARE,SUPREME CARE SERVICES LTD,740.03,PHY LTS 18-64,HOMECARE - C&V,2103607777,1000059416
09.01.2023,ADULT SOCIAL CARE,SUPREME CARE SERVICES LTD,758.72,PHY LTS 18-64,HOMECARE - C&V,2103607871,1000059416
09.01.2023,ADULT SOCIAL CARE,SUPREME CARE SERVICES LTD,774.2,PHY LTS 18-64,HOMECARE - C&V,2103607632,1000059416
09.01.2023,ADULT SOCIAL CARE,SUPREME CARE SERVICES LTD,774.48,PHY LTS 18-64,HOMECARE - C&V,2103607648,1000059416
09.01.2023,ADULT SOCIAL CARE,SUPREME CARE SERVICES LTD,774.48,PHY LTS 18-64,HOMECARE - C&V,2103607663,1000059416
09.01.2023,ADULT SOCIAL CARE,SUPREME CARE SERVICES LTD,774.48,PHY LTS 18-64,HOMECARE - C&V,2103607699,1000059416
09.01.2023,ADULT SOCIAL CARE,SUPREME CARE SERVICES LTD,806.38,PHY LTS 18-64,HOMECARE - C&V,2103607593,1000059416
09.01.2023,ADULT SOCIAL CARE,SUPREME CARE SERVICES LTD,809.5,PHY LTS 18-64,HOMECARE - C&V,2103607727,1000059416
09.01.2023,ADULT SOCIAL CARE,SUPREME CARE SERVICES LTD,817.22,PHY LTS 18-64,HOMECARE - C&V,2103607692,1000059416
09.01.2023,ADULT SOCIAL CARE,SUPREME CARE SERVICES LTD,861.75,PHY LTS 18-64,HOMECARE - C&V,2103607761,1000059416
09.01.2023,ADULT SOCIAL CARE,SUPREME CARE SERVICES LTD,875.56,PHY LTS 18-64,HOMECARE - C&V,2103607711,1000059416
09.01.2023,ADULT SOCIAL CARE,SUPREME CARE SERVICES LTD,903.76,PHY LTS 18-64,HOMECARE - C&V,2103607540,1000059416
09.01.2023,ADULT SOCIAL CARE,SUPREME CARE SERVICES LTD,907.88,PHY LTS 18-64,HOMECARE - C&V,2103607712,1000059416
09.01.2023,ADULT SOCIAL CARE,SUPREME CARE SERVICES LTD,935.67,PHY LTS 18-64,HOMECARE - C&V,2103607758,1000059416
09.01.2023,ADULT SOCIAL CARE,SUPREME CARE SERVICES LTD,938.76,PHY LTS 18-64,HOMECARE - C&V,2103607703,1000059416
09.01.2023,ADULT SOCIAL CARE,SUPREME CARE SERVICES LTD,946.61,PHY LTS 18-64,HOMECARE - C&V,2103607563,1000059416
09.01.2023,ADULT SOCIAL CARE,SUPREME CARE SERVICES LTD,953.83,PHY LTS 18-64,HOMECARE - C&V,2103607552,1000059416
09.01.2023,ADULT SOCIAL CARE,SUPREME CARE SERVICES LTD,960.42,PHY LTS 18-64,HOMECARE - C&V,2103607495,1000059416
09.01.2023,ADULT SOCIAL CARE,SUPREME CARE SERVICES LTD,995.21,PHY LTS 18-64,HOMECARE - C&V,2103607874,1000059416
09.01.2023,ADULT SOCIAL CARE,SUPREME CARE SERVICES LTD,"1,013.84",PHY LTS 18-64,HOMECARE - C&V,2103607597,1000059416
09.01.2023,ADULT SOCIAL CARE,SUPREME CARE SERVICES LTD,"1,032.35",PHY LTS 18-64,HOMECARE - C&V,2103607752,1000059416
09.01.2023,ADULT SOCIAL CARE,SUPREME CARE SERVICES LTD,"1,048.80",PHY LTS 18-64,HOMECARE - C&V,2103607533,1000059416
09.01.2023,ADULT SOCIAL CARE,SUPREME CARE SERVICES LTD,"1,050.77",PHY LTS 18-64,HOMECARE - C&V,2103607858,1000059416
09.01.2023,ADULT SOCIAL CARE,SUPREME CARE SERVICES LTD,"1,055.32",PHY LTS 18-64,HOMECARE - C&V,2103607616,1000059416
09.01.2023,ADULT SOCIAL CARE,SUPREME CARE SERVICES LTD,"1,179.58",PHY LTS 18-64,HOMECARE - C&V,2103607743,1000059416
09.01.2023,ADULT SOCIAL CARE,SUPREME CARE SERVICES LTD,"1,184.49",PHY LTS 18-64,HOMECARE - C&V,2103607844,1000059416
09.01.2023,ADULT SOCIAL CARE,SUPREME CARE SERVICES LTD,"1,221.29",PHY LTS 18-64,HOMECARE - C&V,2103607806,1000059416
09.01.2023,ADULT SOCIAL CARE,SUPREME CARE SERVICES LTD,"1,246.53",PHY LTS 18-64,HOMECARE - C&V,2103607662,1000059416
09.01.2023,ADULT SOCIAL CARE,SUPREME CARE SERVICES LTD,"1,251.74",PHY LTS 18-64,HOMECARE - C&V,2103607783,1000059416
09.01.2023,ADULT SOCIAL CARE,SUPREME CARE SERVICES LTD,"1,290.19",PHY LTS 18-64,HOMECARE - C&V,2103607636,1000059416
09.01.2023,ADULT SOCIAL CARE,SUPREME CARE SERVICES LTD,"1,296.16",PHY LTS 18-64,HOMECARE - C&V,2103607519,1000059416
09.01.2023,ADULT SOCIAL CARE,SUPREME CARE SERVICES LTD,"1,308.85",PHY LTS 18-64,HOMECARE - C&V,2103607634,1000059416
09.01.2023,ADULT SOCIAL CARE,SUPREME CARE SERVICES LTD,"1,339.15",PHY LTS 18-64,HOMECARE - C&V,2103607744,1000059416
09.01.2023,ADULT SOCIAL CARE,SUPREME CARE SERVICES LTD,"1,423.87",PHY LTS 18-64,HOMECARE - C&V,2103607829,1000059416
09.01.2023,ADULT SOCIAL CARE,SUPREME CARE SERVICES LTD,"1,445.04",PHY LTS 18-64,HOMECARE - C&V,2103607691,1000059416
09.01.2023,ADULT SOCIAL CARE,SUPREME CARE SERVICES LTD,"1,448.82",PHY LTS 18-64,HOMECARE - C&V,2103607872,1000059416
09.01.2023,ADULT SOCIAL CARE,SUPREME CARE SERVICES LTD,"1,525.46",PHY LTS 18-64,HOMECARE - C&V,2103607828,1000059416
09.01.2023,ADULT SOCIAL CARE,SUPREME CARE SERVICES LTD,"1,729.79",PHY LTS 18-64,HOMECARE - C&V,2103607667,1000059416
09.01.2023,ADULT SOCIAL CARE,SUPREME CARE SERVICES LTD,"2,174.69",PHY LTS 18-64,HOMECARE - C&V,2103607523,1000059416
09.01.2023,ADULT SOCIAL CARE,SUPREME CARE SERVICES LTD,"2,175.27",PHY LTS 18-64,HOMECARE - C&V,2103607779,1000059416
09.01.2023,ADULT SOCIAL CARE,SUPREME CARE SERVICES LTD,"2,242.99",PHY LTS 18-64,HOMECARE - C&V,2103607539,1000059416
09.01.2023,ADULT SOCIAL CARE,SUPREME CARE SERVICES LTD,"2,407.18",PHY LTS 18-64,HOMECARE - C&V,2103607628,1000059416
09.01.2023,ADULT SOCIAL CARE,SUPREME CARE SERVICES LTD,"2,870.34",PHY LTS 18-64,HOMECARE - C&V,2103607505,1000059416
09.01.2023,ADULT SOCIAL CARE,SUPREME CARE SERVICES LTD,"2,994.94",PHY LTS 18-64,HOMECARE - C&V,2103607564,1000059416
09.01.2023,ADULT SOCIAL CARE,SUPREME CARE SERVICES LTD,"3,427.78",PHY LTS 18-64,HOMECARE - C&V,2103607525,1000059416
09.01.2023,ADULT SOCIAL CARE,SUPREME CARE SERVICES LTD,"3,764.13",PHY LTS 18-64,HOMECARE - C&V,2103607790,1000059416
09.01.2023,ADULT SOCIAL CARE,MEDACS HOMECARE,271.81,PHY LTS 65+,HOMECARE - C&V,2103608033,11287415
09.01.2023,ADULT SOCIAL CARE,MEDACS HOMECARE,313.5,PHY LTS 65+,HOMECARE - C&V,2103607961,11287415
09.01.2023,ADULT SOCIAL CARE,MEDACS HOMECARE,332.5,PHY LTS 65+,HOMECARE - C&V,2103607988,11287415
09.01.2023,ADULT SOCIAL CARE,MEDACS HOMECARE,349.43,PHY LTS 65+,HOMECARE - C&V,2103608034,11287415
09.01.2023,ADULT SOCIAL CARE,MEDACS HOMECARE,356.25,PHY LTS 65+,HOMECARE - C&V,2103607962,11287415
09.01.2023,ADULT SOCIAL CARE,MEDACS HOMECARE,370.5,PHY LTS 65+,HOMECARE - C&V,2103608005,11287415
09.01.2023,ADULT SOCIAL CARE,MEDACS HOMECARE,394.25,PHY LTS 65+,HOMECARE - C&V,2103607985,11287415
09.01.2023,ADULT SOCIAL CARE,MEDACS HOMECARE,394.25,PHY LTS 65+,HOMECARE - C&V,2103608010,11287415
09.01.2023,ADULT SOCIAL CARE,MEDACS HOMECARE,418,PHY LTS 65+,HOMECARE - C&V,2103608019,11287415
09.01.2023,ADULT SOCIAL CARE,MEDACS HOMECARE,451.25,PHY LTS 65+,HOMECARE - C&V,2103607965,11287415
09.01.2023,ADULT SOCIAL CARE,MEDACS HOMECARE,465.5,PHY LTS 65+,HOMECARE - C&V,2103607976,11287415
09.01.2023,ADULT SOCIAL CARE,MEDACS HOMECARE,479.75,PHY LTS 65+,HOMECARE - C&V,2103608007,11287415
09.01.2023,ADULT SOCIAL CARE,MEDACS HOMECARE,503.5,PHY LTS 65+,HOMECARE - C&V,2103607998,11287415
09.01.2023,ADULT SOCIAL CARE,MEDACS HOMECARE,536.75,PHY LTS 65+,HOMECARE - C&V,2103607974,11287415
09.01.2023,ADULT SOCIAL CARE,MEDACS HOMECARE,547.82,PHY LTS 65+,HOMECARE - C&V,2103608052,11287415
09.01.2023,ADULT SOCIAL CARE,MEDACS HOMECARE,603.25,PHY LTS 65+,HOMECARE - C&V,2103608004,11287415
09.01.2023,ADULT SOCIAL CARE,MEDACS HOMECARE,634.06,PHY LTS 65+,HOMECARE - C&V,2103608057,11287415
09.01.2023,ADULT SOCIAL CARE,MEDACS HOMECARE,754.94,PHY LTS 65+,HOMECARE - C&V,2103608060,11287415
09.01.2023,ADULT SOCIAL CARE,MEDACS HOMECARE,760,PHY LTS 65+,HOMECARE - C&V,2103607983,11287415
09.01.2023,ADULT SOCIAL CARE,MEDACS HOMECARE,789.38,PHY LTS 65+,HOMECARE - C&V,2103608048,11287415
09.01.2023,ADULT SOCIAL CARE,MEDACS HOMECARE,798.1,PHY LTS 65+,HOMECARE - C&V,2103608045,11287415
09.01.2023,ADULT SOCIAL CARE,MEDACS HOMECARE,812.25,PHY LTS 65+,HOMECARE - C&V,2103607981,11287415
09.01.2023,ADULT SOCIAL CARE,MEDACS HOMECARE,826.5,PHY LTS 65+,HOMECARE - C&V,2103607991,11287415
09.01.2023,ADULT SOCIAL CARE,MEDACS HOMECARE,852.08,PHY LTS 65+,HOMECARE - C&V,2103608059,11287415
09.01.2023,ADULT SOCIAL CARE,MEDACS HOMECARE,859.75,PHY LTS 65+,HOMECARE - C&V,2103607992,11287415
09.01.2023,ADULT SOCIAL CARE,MEDACS HOMECARE,859.75,PHY LTS 65+,HOMECARE - C&V,2103608013,11287415
09.01.2023,ADULT SOCIAL CARE,MEDACS HOMECARE,897.75,PHY LTS 65+,HOMECARE - C&V,2103607979,11287415
09.01.2023,ADULT SOCIAL CARE,MEDACS HOMECARE,902.5,PHY LTS 65+,HOMECARE - C&V,2103607971,11287415
09.01.2023,ADULT SOCIAL CARE,MEDACS HOMECARE,954.75,PHY LTS 65+,HOMECARE - C&V,2103607999,11287415
09.01.2023,ADULT SOCIAL CARE,MEDACS HOMECARE,959.5,PHY LTS 65+,HOMECARE - C&V,2103608000,11287415
09.01.2023,ADULT SOCIAL CARE,MEDACS HOMECARE,"1,000.80",PHY LTS 65+,HOMECARE - C&V,2103608047,11287415
09.01.2023,ADULT SOCIAL CARE,MEDACS HOMECARE,"1,016.50",PHY LTS 65+,HOMECARE - C&V,2103608046,11287415
09.01.2023,ADULT SOCIAL CARE,MEDACS HOMECARE,"1,049.53",PHY LTS 65+,HOMECARE - C&V,2103608049,11287415
09.01.2023,ADULT SOCIAL CARE,MEDACS HOMECARE,"1,102.00",PHY LTS 65+,HOMECARE - C&V,2103607980,11287415
09.01.2023,ADULT SOCIAL CARE,MEDACS HOMECARE,"1,116.25",PHY LTS 65+,HOMECARE - C&V,2103607960,11287415
09.01.2023,ADULT SOCIAL CARE,MEDACS HOMECARE,"1,163.75",PHY LTS 65+,HOMECARE - C&V,2103607978,11287415
09.01.2023,ADULT SOCIAL CARE,MEDACS HOMECARE,"1,192.25",PHY LTS 65+,HOMECARE - C&V,2103608009,11287415
09.01.2023,ADULT SOCIAL CARE,MEDACS HOMECARE,"1,415.50",PHY LTS 65+,HOMECARE - C&V,2103607964,11287415
09.01.2023,ADULT SOCIAL CARE,MEDACS HOMECARE,"1,492.55",PHY LTS 65+,HOMECARE - C&V,2103608036,11287415
09.01.2023,ADULT SOCIAL CARE,MEDACS HOMECARE,"1,553.25",PHY LTS 65+,HOMECARE - C&V,2103607982,11287415
09.01.2023,ADULT SOCIAL CARE,MEDACS HOMECARE,"1,672.00",PHY LTS 65+,HOMECARE - C&V,2103608011,11287415
09.01.2023,ADULT SOCIAL CARE,MEDACS HOMECARE,"1,691.00",PHY LTS 65+,HOMECARE - C&V,2103608008,11287415
09.01.2023,ADULT SOCIAL CARE,MEDACS HOMECARE,"1,795.50",PHY LTS 65+,HOMECARE - C&V,2103607997,11287415
09.01.2023,ADULT SOCIAL CARE,MEDACS HOMECARE,"1,800.25",PHY LTS 65+,HOMECARE - C&V,2103608061,11287415
09.01.2023,ADULT SOCIAL CARE,MEDACS HOMECARE,"1,909.50",PHY LTS 65+,HOMECARE - C&V,2103608042,11287415
09.01.2023,ADULT SOCIAL CARE,MEDACS HOMECARE,"2,099.50",PHY LTS 65+,HOMECARE - C&V,2103607966,11287415
09.01.2023,ADULT SOCIAL CARE,MEDACS HOMECARE,"2,204.00",PHY LTS 65+,HOMECARE - C&V,2103608023,11287415
09.01.2023,ADULT SOCIAL CARE,MEDACS HOMECARE,"2,360.75",PHY LTS 65+,HOMECARE - C&V,2103607973,11287415
09.01.2023,ADULT SOCIAL CARE,MEDACS HOMECARE,"2,498.50",PHY LTS 65+,HOMECARE - C&V,2103608041,11287415
09.01.2023,ADULT SOCIAL CARE,MEDACS HOMECARE,"2,778.75",PHY LTS 65+,HOMECARE - C&V,2103607977,11287415
09.01.2023,ADULT SOCIAL CARE,MEDACS HOMECARE,"2,831.00",PHY LTS 65+,HOMECARE - C&V,2103608012,11287415
09.01.2023,ADULT SOCIAL CARE,BLISSETT CARE LTD,282.55,PHY LTS 65+,HOMECARE - C&V,2103607911,1000042627
09.01.2023,ADULT SOCIAL CARE,BLISSETT CARE LTD,324.76,PHY LTS 65+,HOMECARE - C&V,2103607920,1000042627
09.01.2023,ADULT SOCIAL CARE,BLISSETT CARE LTD,329.66,PHY LTS 65+,HOMECARE - C&V,2103607942,1000042627
09.01.2023,ADULT SOCIAL CARE,BLISSETT CARE LTD,385.96,PHY LTS 65+,HOMECARE - C&V,2103607931,1000042627
09.01.2023,ADULT SOCIAL CARE,BLISSETT CARE LTD,385.97,PHY LTS 65+,HOMECARE - C&V,2103607945,1000042627
09.01.2023,ADULT SOCIAL CARE,BLISSETT CARE LTD,390.66,PHY LTS 65+,HOMECARE - C&V,2103607922,1000042627
09.01.2023,ADULT SOCIAL CARE,BLISSETT CARE LTD,390.66,PHY LTS 65+,HOMECARE - C&V,2103607950,1000042627
09.01.2023,ADULT SOCIAL CARE,BLISSETT CARE LTD,470.94,PHY LTS 65+,HOMECARE - C&V,2103607946,1000042627
09.01.2023,ADULT SOCIAL CARE,BLISSETT CARE LTD,494.28,PHY LTS 65+,HOMECARE - C&V,2103607934,1000042627
09.01.2023,ADULT SOCIAL CARE,BLISSETT CARE LTD,555.75,PHY LTS 65+,HOMECARE - C&V,2103607908,1000042627
09.01.2023,ADULT SOCIAL CARE,BLISSETT CARE LTD,616.8,PHY LTS 65+,HOMECARE - C&V,2103607938,1000042627
09.01.2023,ADULT SOCIAL CARE,BLISSETT CARE LTD,621.46,PHY LTS 65+,HOMECARE - C&V,2103607937,1000042627
09.01.2023,ADULT SOCIAL CARE,BLISSETT CARE LTD,626.19,PHY LTS 65+,HOMECARE - C&V,2103607919,1000042627
09.01.2023,ADULT SOCIAL CARE,BLISSETT CARE LTD,715.65,PHY LTS 65+,HOMECARE - C&V,2103607943,1000042627
09.01.2023,ADULT SOCIAL CARE,BLISSETT CARE LTD,739.18,PHY LTS 65+,HOMECARE - C&V,2103607935,1000042627
09.01.2023,ADULT SOCIAL CARE,BLISSETT CARE LTD,772.11,PHY LTS 65+,HOMECARE - C&V,2103607932,1000042627
09.01.2023,ADULT SOCIAL CARE,BLISSETT CARE LTD,861.42,PHY LTS 65+,HOMECARE - C&V,2103607910,1000042627
09.01.2023,ADULT SOCIAL CARE,BLISSETT CARE LTD,889.9,PHY LTS 65+,HOMECARE - C&V,2103607917,1000042627
09.01.2023,ADULT SOCIAL CARE,BLISSETT CARE LTD,908.77,PHY LTS 65+,HOMECARE - C&V,2103607958,1000042627
09.01.2023,ADULT SOCIAL CARE,BLISSETT CARE LTD,931.99,PHY LTS 65+,HOMECARE - C&V,2103607948,1000042627
09.01.2023,ADULT SOCIAL CARE,BLISSETT CARE LTD,965.27,PHY LTS 65+,HOMECARE - C&V,2103607913,1000042627
09.01.2023,ADULT SOCIAL CARE,BLISSETT CARE LTD,988.5,PHY LTS 65+,HOMECARE - C&V,2103607918,1000042627
09.01.2023,ADULT SOCIAL CARE,BLISSETT CARE LTD,"1,050.05",PHY LTS 65+,HOMECARE - C&V,2103607912,1000042627
09.01.2023,ADULT SOCIAL CARE,BLISSETT CARE LTD,"1,073.51",PHY LTS 65+,HOMECARE - C&V,2103607953,1000042627
09.01.2023,ADULT SOCIAL CARE,BLISSETT CARE LTD,"1,097.16",PHY LTS 65+,HOMECARE - C&V,2103607939,1000042627
09.01.2023,ADULT SOCIAL CARE,BLISSETT CARE LTD,"1,101.76",PHY LTS 65+,HOMECARE - C&V,2103607921,1000042627
09.01.2023,ADULT SOCIAL CARE,BLISSETT CARE LTD,"2,434.38",PHY LTS 65+,HOMECARE - C&V,2103607956,1000042627
09.01.2023,ADULT SOCIAL CARE,BLISSETT CARE LTD,"2,552.13",PHY LTS 65+,HOMECARE - C&V,2103607914,1000042627
09.01.2023,ADULT SOCIAL CARE,SUPREME CARE SERVICES LTD,251.56,PHY LTS 65+,HOMECARE - C&V,2103607625,1000059416
09.01.2023,ADULT SOCIAL CARE,SUPREME CARE SERVICES LTD,253.37,PHY LTS 65+,HOMECARE - C&V,2103607850,1000059416
09.01.2023,ADULT SOCIAL CARE,SUPREME CARE SERVICES LTD,253.4,PHY LTS 65+,HOMECARE - C&V,2103607812,1000059416
09.01.2023,ADULT SOCIAL CARE,SUPREME CARE SERVICES LTD,258.05,PHY LTS 65+,HOMECARE - C&V,2103607511,1000059416
09.01.2023,ADULT SOCIAL CARE,SUPREME CARE SERVICES LTD,258.16,PHY LTS 65+,HOMECARE - C&V,2103607808,1000059416
09.01.2023,ADULT SOCIAL CARE,SUPREME CARE SERVICES LTD,262.66,PHY LTS 65+,HOMECARE - C&V,2103607644,1000059416
09.01.2023,ADULT SOCIAL CARE,SUPREME CARE SERVICES LTD,262.76,PHY LTS 65+,HOMECARE - C&V,2103607825,1000059416
09.01.2023,ADULT SOCIAL CARE,SUPREME CARE SERVICES LTD,271.96,PHY LTS 65+,HOMECARE - C&V,2103607660,1000059416
09.01.2023,ADULT SOCIAL CARE,SUPREME CARE SERVICES LTD,299.46,PHY LTS 65+,HOMECARE - C&V,2103607728,1000059416
09.01.2023,ADULT SOCIAL CARE,SUPREME CARE SERVICES LTD,308.71,PHY LTS 65+,HOMECARE - C&V,2103607651,1000059416
09.01.2023,ADULT SOCIAL CARE,SUPREME CARE SERVICES LTD,322.48,PHY LTS 65+,HOMECARE - C&V,2103607486,1000059416
09.01.2023,ADULT SOCIAL CARE,SUPREME CARE SERVICES LTD,322.56,PHY LTS 65+,HOMECARE - C&V,2103607854,1000059416
09.01.2023,ADULT SOCIAL CARE,SUPREME CARE SERVICES LTD,325.75,PHY LTS 65+,HOMECARE - C&V,2103607497,1000059416
09.01.2023,ADULT SOCIAL CARE,SUPREME CARE SERVICES LTD,327.23,PHY LTS 65+,HOMECARE - C&V,2103607831,1000059416
09.01.2023,ADULT SOCIAL CARE,SUPREME CARE SERVICES LTD,335.53,PHY LTS 65+,HOMECARE - C&V,2103607754,1000059416
09.01.2023,ADULT SOCIAL CARE,SUPREME CARE SERVICES LTD,340.92,PHY LTS 65+,HOMECARE - C&V,2103607670,1000059416
09.01.2023,ADULT SOCIAL CARE,SUPREME CARE SERVICES LTD,353.79,PHY LTS 65+,HOMECARE - C&V,2103607870,1000059416
09.01.2023,ADULT SOCIAL CARE,SUPREME CARE SERVICES LTD,373.14,PHY LTS 65+,HOMECARE - C&V,2103607729,1000059416
09.01.2023,ADULT SOCIAL CARE,SUPREME CARE SERVICES LTD,377.8,PHY LTS 65+,HOMECARE - C&V,2103607562,1000059416
09.01.2023,ADULT SOCIAL CARE,SUPREME CARE SERVICES LTD,386.96,PHY LTS 65+,HOMECARE - C&V,2103607811,1000059416
09.01.2023,ADULT SOCIAL CARE,SUPREME CARE SERVICES LTD,387.24,PHY LTS 65+,HOMECARE - C&V,2103607678,1000059416
09.01.2023,ADULT SOCIAL CARE,SUPREME CARE SERVICES LTD,391.57,PHY LTS 65+,HOMECARE - C&V,2103607817,1000059416
09.01.2023,ADULT SOCIAL CARE,SUPREME CARE SERVICES LTD,391.57,PHY LTS 65+,HOMECARE - C&V,2103607826,1000059416
09.01.2023,ADULT SOCIAL CARE,SUPREME CARE SERVICES LTD,396.18,PHY LTS 65+,HOMECARE - C&V,2103607693,1000059416
09.01.2023,ADULT SOCIAL CARE,SUPREME CARE SERVICES LTD,396.18,PHY LTS 65+,HOMECARE - C&V,2103607698,1000059416
09.01.2023,ADULT SOCIAL CARE,SUPREME CARE SERVICES LTD,396.18,PHY LTS 65+,HOMECARE - C&V,2103607820,1000059416
09.01.2023,ADULT SOCIAL CARE,SUPREME CARE SERVICES LTD,400.79,PHY LTS 65+,HOMECARE - C&V,2103607685,1000059416
09.01.2023,ADULT SOCIAL CARE,SUPREME CARE SERVICES LTD,400.79,PHY LTS 65+,HOMECARE - C&V,2103607694,1000059416
09.01.2023,ADULT SOCIAL CARE,SUPREME CARE SERVICES LTD,400.79,PHY LTS 65+,HOMECARE - C&V,2103607755,1000059416
09.01.2023,ADULT SOCIAL CARE,SUPREME CARE SERVICES LTD,410.2,PHY LTS 65+,HOMECARE - C&V,2103607713,1000059416
09.01.2023,ADULT SOCIAL CARE,SUPREME CARE SERVICES LTD,413.89,PHY LTS 65+,HOMECARE - C&V,2103607617,1000059416
09.01.2023,ADULT SOCIAL CARE,SUPREME CARE SERVICES LTD,414.65,PHY LTS 65+,HOMECARE - C&V,2103607815,1000059416
09.01.2023,ADULT SOCIAL CARE,SUPREME CARE SERVICES LTD,434.84,PHY LTS 65+,HOMECARE - C&V,2103607559,1000059416
09.01.2023,ADULT SOCIAL CARE,SUPREME CARE SERVICES LTD,434.95,PHY LTS 65+,HOMECARE - C&V,2103607807,1000059416
09.01.2023,ADULT SOCIAL CARE,SUPREME CARE SERVICES LTD,442.56,PHY LTS 65+,HOMECARE - C&V,2103607827,1000059416
09.01.2023,ADULT SOCIAL CARE,SUPREME CARE SERVICES LTD,459.85,PHY LTS 65+,HOMECARE - C&V,2103607681,1000059416
09.01.2023,ADULT SOCIAL CARE,SUPREME CARE SERVICES LTD,460.68,PHY LTS 65+,HOMECARE - C&V,2103607722,1000059416
09.01.2023,ADULT SOCIAL CARE,SUPREME CARE SERVICES LTD,463,PHY LTS 65+,HOMECARE - C&V,2103607661,1000059416
09.01.2023,ADULT SOCIAL CARE,SUPREME CARE SERVICES LTD,468.91,PHY LTS 65+,HOMECARE - C&V,2103607506,1000059416
09.01.2023,ADULT SOCIAL CARE,SUPREME CARE SERVICES LTD,471.14,PHY LTS 65+,HOMECARE - C&V,2103607631,1000059416
09.01.2023,ADULT SOCIAL CARE,SUPREME CARE SERVICES LTD,474.61,PHY LTS 65+,HOMECARE - C&V,2103607623,1000059416
09.01.2023,ADULT SOCIAL CARE,SUPREME CARE SERVICES LTD,477.4,PHY LTS 65+,HOMECARE - C&V,2103607866,1000059416
09.01.2023,ADULT SOCIAL CARE,SUPREME CARE SERVICES LTD,483.88,PHY LTS 65+,HOMECARE - C&V,2103607851,1000059416
09.01.2023,ADULT SOCIAL CARE,SUPREME CARE SERVICES LTD,484.37,PHY LTS 65+,HOMECARE - C&V,2103607534,1000059416
09.01.2023,ADULT SOCIAL CARE,SUPREME CARE SERVICES LTD,494.08,PHY LTS 65+,HOMECARE - C&V,2103607772,1000059416
09.01.2023,ADULT SOCIAL CARE,SUPREME CARE SERVICES LTD,507.38,PHY LTS 65+,HOMECARE - C&V,2103607554,1000059416
09.01.2023,ADULT SOCIAL CARE,SUPREME CARE SERVICES LTD,513.54,PHY LTS 65+,HOMECARE - C&V,2103607867,1000059416
09.01.2023,ADULT SOCIAL CARE,SUPREME CARE SERVICES LTD,516.04,PHY LTS 65+,HOMECARE - C&V,2103607745,1000059416
09.01.2023,ADULT SOCIAL CARE,SUPREME CARE SERVICES LTD,516.32,PHY LTS 65+,HOMECARE - C&V,2103607786,1000059416
09.01.2023,ADULT SOCIAL CARE,SUPREME CARE SERVICES LTD,529.92,PHY LTS 65+,HOMECARE - C&V,2103607581,1000059416
09.01.2023,ADULT SOCIAL CARE,SUPREME CARE SERVICES LTD,530.12,PHY LTS 65+,HOMECARE - C&V,2103607789,1000059416
09.01.2023,ADULT SOCIAL CARE,SUPREME CARE SERVICES LTD,534.4,PHY LTS 65+,HOMECARE - C&V,2103607688,1000059416
09.01.2023,ADULT SOCIAL CARE,SUPREME CARE SERVICES LTD,534.72,PHY LTS 65+,HOMECARE - C&V,2103607766,1000059416
09.01.2023,ADULT SOCIAL CARE,SUPREME CARE SERVICES LTD,543.59,PHY LTS 65+,HOMECARE - C&V,2103607750,1000059416
09.01.2023,ADULT SOCIAL CARE,SUPREME CARE SERVICES LTD,552.96,PHY LTS 65+,HOMECARE - C&V,2103607653,1000059416
09.01.2023,ADULT SOCIAL CARE,SUPREME CARE SERVICES LTD,555.31,PHY LTS 65+,HOMECARE - C&V,2103607484,1000059416
09.01.2023,ADULT SOCIAL CARE,SUPREME CARE SERVICES LTD,571.36,PHY LTS 65+,HOMECARE - C&V,2103607545,1000059416
09.01.2023,ADULT SOCIAL CARE,SUPREME CARE SERVICES LTD,576.16,PHY LTS 65+,HOMECARE - C&V,2103607658,1000059416
09.01.2023,ADULT SOCIAL CARE,SUPREME CARE SERVICES LTD,584.16,PHY LTS 65+,HOMECARE - C&V,2103607492,1000059416
09.01.2023,ADULT SOCIAL CARE,SUPREME CARE SERVICES LTD,589.87,PHY LTS 65+,HOMECARE - C&V,2103607847,1000059416
09.01.2023,ADULT SOCIAL CARE,SUPREME CARE SERVICES LTD,601.16,PHY LTS 65+,HOMECARE - C&V,2103607579,1000059416
09.01.2023,ADULT SOCIAL CARE,SUPREME CARE SERVICES LTD,604.69,PHY LTS 65+,HOMECARE - C&V,2103607788,1000059416
09.01.2023,ADULT SOCIAL CARE,SUPREME CARE SERVICES LTD,612.95,PHY LTS 65+,HOMECARE - C&V,2103607602,1000059416
09.01.2023,ADULT SOCIAL CARE,SUPREME CARE SERVICES LTD,614.03,PHY LTS 65+,HOMECARE - C&V,2103607567,1000059416
09.01.2023,ADULT SOCIAL CARE,SUPREME CARE SERVICES LTD,623.87,PHY LTS 65+,HOMECARE - C&V,2103607809,1000059416
09.01.2023,ADULT SOCIAL CARE,SUPREME CARE SERVICES LTD,624.12,PHY LTS 65+,HOMECARE - C&V,2103607714,1000059416
09.01.2023,ADULT SOCIAL CARE,SUPREME CARE SERVICES LTD,626.66,PHY LTS 65+,HOMECARE - C&V,2103607843,1000059416
09.01.2023,ADULT SOCIAL CARE,SUPREME CARE SERVICES LTD,626.77,PHY LTS 65+,HOMECARE - C&V,2103607478,1000059416
09.01.2023,ADULT SOCIAL CARE,SUPREME CARE SERVICES LTD,628.27,PHY LTS 65+,HOMECARE - C&V,2103607823,1000059416
09.01.2023,ADULT SOCIAL CARE,SUPREME CARE SERVICES LTD,629.02,PHY LTS 65+,HOMECARE - C&V,2103607641,1000059416
09.01.2023,ADULT SOCIAL CARE,SUPREME CARE SERVICES LTD,629.8,PHY LTS 65+,HOMECARE - C&V,2103607595,1000059416
09.01.2023,ADULT SOCIAL CARE,SUPREME CARE SERVICES LTD,633.74,PHY LTS 65+,HOMECARE - C&V,2103607830,1000059416
09.01.2023,ADULT SOCIAL CARE,SUPREME CARE SERVICES LTD,633.98,PHY LTS 65+,HOMECARE - C&V,2103607731,1000059416
09.01.2023,ADULT SOCIAL CARE,SUPREME CARE SERVICES LTD,640.52,PHY LTS 65+,HOMECARE - C&V,2103607683,1000059416
09.01.2023,ADULT SOCIAL CARE,SUPREME CARE SERVICES LTD,642.01,PHY LTS 65+,HOMECARE - C&V,2103607637,1000059416
09.01.2023,ADULT SOCIAL CARE,SUPREME CARE SERVICES LTD,646.84,PHY LTS 65+,HOMECARE - C&V,2103607852,1000059416
09.01.2023,ADULT SOCIAL CARE,SUPREME CARE SERVICES LTD,659.14,PHY LTS 65+,HOMECARE - C&V,2103607738,1000059416
09.01.2023,ADULT SOCIAL CARE,SUPREME CARE SERVICES LTD,665.1,PHY LTS 65+,HOMECARE - C&V,2103607530,1000059416
09.01.2023,ADULT SOCIAL CARE,SUPREME CARE SERVICES LTD,668.14,PHY LTS 65+,HOMECARE - C&V,2103607664,1000059416
09.01.2023,ADULT SOCIAL CARE,SUPREME CARE SERVICES LTD,668.14,PHY LTS 65+,HOMECARE - C&V,2103607762,1000059416
09.01.2023,ADULT SOCIAL CARE,SUPREME CARE SERVICES LTD,677.33,PHY LTS 65+,HOMECARE - C&V,2103607521,1000059416
09.01.2023,ADULT SOCIAL CARE,SUPREME CARE SERVICES LTD,677.37,PHY LTS 65+,HOMECARE - C&V,2103607695,1000059416
09.01.2023,ADULT SOCIAL CARE,SUPREME CARE SERVICES LTD,685.68,PHY LTS 65+,HOMECARE - C&V,2103607642,1000059416
09.01.2023,ADULT SOCIAL CARE,SUPREME CARE SERVICES LTD,688.46,PHY LTS 65+,HOMECARE - C&V,2103607647,1000059416
09.01.2023,ADULT SOCIAL CARE,SUPREME CARE SERVICES LTD,691.06,PHY LTS 65+,HOMECARE - C&V,2103607834,1000059416
09.01.2023,ADULT SOCIAL CARE,SUPREME CARE SERVICES LTD,694.92,PHY LTS 65+,HOMECARE - C&V,2103607612,1000059416
09.01.2023,ADULT SOCIAL CARE,SUPREME CARE SERVICES LTD,700.41,PHY LTS 65+,HOMECARE - C&V,2103607818,1000059416
09.01.2023,ADULT SOCIAL CARE,SUPREME CARE SERVICES LTD,700.43,PHY LTS 65+,HOMECARE - C&V,2103607604,1000059416
09.01.2023,ADULT SOCIAL CARE,SUPREME CARE SERVICES LTD,707.75,PHY LTS 65+,HOMECARE - C&V,2103607548,1000059416
09.01.2023,ADULT SOCIAL CARE,SUPREME CARE SERVICES LTD,714.23,PHY LTS 65+,HOMECARE - C&V,2103607592,1000059416
09.01.2023,ADULT SOCIAL CARE,SUPREME CARE SERVICES LTD,718.92,PHY LTS 65+,HOMECARE - C&V,2103607846,1000059416
09.01.2023,ADULT SOCIAL CARE,SUPREME CARE SERVICES LTD,723.46,PHY LTS 65+,HOMECARE - C&V,2103607635,1000059416
09.01.2023,ADULT SOCIAL CARE,SUPREME CARE SERVICES LTD,728.12,PHY LTS 65+,HOMECARE - C&V,2103607502,1000059416
09.01.2023,ADULT SOCIAL CARE,SUPREME CARE SERVICES LTD,732.66,PHY LTS 65+,HOMECARE - C&V,2103607578,1000059416
09.01.2023,ADULT SOCIAL CARE,SUPREME CARE SERVICES LTD,766.58,PHY LTS 65+,HOMECARE - C&V,2103607841,1000059416
09.01.2023,ADULT SOCIAL CARE,SUPREME CARE SERVICES LTD,772.25,PHY LTS 65+,HOMECARE - C&V,2103607608,1000059416
09.01.2023,ADULT SOCIAL CARE,SUPREME CARE SERVICES LTD,774.48,PHY LTS 65+,HOMECARE - C&V,2103607707,1000059416
09.01.2023,ADULT SOCIAL CARE,SUPREME CARE SERVICES LTD,779.08,PHY LTS 65+,HOMECARE - C&V,2103607767,1000059416
09.01.2023,ADULT SOCIAL CARE,SUPREME CARE SERVICES LTD,792.56,PHY LTS 65+,HOMECARE - C&V,2103607686,1000059416
09.01.2023,ADULT SOCIAL CARE,SUPREME CARE SERVICES LTD,797.04,PHY LTS 65+,HOMECARE - C&V,2103607845,1000059416
09.01.2023,ADULT SOCIAL CARE,SUPREME CARE SERVICES LTD,797.17,PHY LTS 65+,HOMECARE - C&V,2103607620,1000059416
09.01.2023,ADULT SOCIAL CARE,SUPREME CARE SERVICES LTD,797.48,PHY LTS 65+,HOMECARE - C&V,2103607657,1000059416
09.01.2023,ADULT SOCIAL CARE,SUPREME CARE SERVICES LTD,824.78,PHY LTS 65+,HOMECARE - C&V,2103607764,1000059416
09.01.2023,ADULT SOCIAL CARE,SUPREME CARE SERVICES LTD,827.04,PHY LTS 65+,HOMECARE - C&V,2103607508,1000059416
09.01.2023,ADULT SOCIAL CARE,SUPREME CARE SERVICES LTD,844.38,PHY LTS 65+,HOMECARE - C&V,2103607583,1000059416
09.01.2023,ADULT SOCIAL CARE,SUPREME CARE SERVICES LTD,844.4,PHY LTS 65+,HOMECARE - C&V,2103607565,1000059416
09.01.2023,ADULT SOCIAL CARE,SUPREME CARE SERVICES LTD,845.95,PHY LTS 65+,HOMECARE - C&V,2103607510,1000059416
09.01.2023,ADULT SOCIAL CARE,SUPREME CARE SERVICES LTD,854.02,PHY LTS 65+,HOMECARE - C&V,2103607589,1000059416
09.01.2023,ADULT SOCIAL CARE,SUPREME CARE SERVICES LTD,857.1,PHY LTS 65+,HOMECARE - C&V,2103607666,1000059416
09.01.2023,ADULT SOCIAL CARE,SUPREME CARE SERVICES LTD,861.14,PHY LTS 65+,HOMECARE - C&V,2103607700,1000059416
09.01.2023,ADULT SOCIAL CARE,SUPREME CARE SERVICES LTD,866.23,PHY LTS 65+,HOMECARE - C&V,2103607796,1000059416
09.01.2023,ADULT SOCIAL CARE,SUPREME CARE SERVICES LTD,873.98,PHY LTS 65+,HOMECARE - C&V,2103607515,1000059416
09.01.2023,ADULT SOCIAL CARE,SUPREME CARE SERVICES LTD,875.46,PHY LTS 65+,HOMECARE - C&V,2103607715,1000059416
09.01.2023,ADULT SOCIAL CARE,SUPREME CARE SERVICES LTD,876.1,PHY LTS 65+,HOMECARE - C&V,2103607601,1000059416
09.01.2023,ADULT SOCIAL CARE,SUPREME CARE SERVICES LTD,880.99,PHY LTS 65+,HOMECARE - C&V,2103607499,1000059416
09.01.2023,ADULT SOCIAL CARE,SUPREME CARE SERVICES LTD,884.76,PHY LTS 65+,HOMECARE - C&V,2103607697,1000059416
09.01.2023,ADULT SOCIAL CARE,SUPREME CARE SERVICES LTD,897.79,PHY LTS 65+,HOMECARE - C&V,2103607498,1000059416
09.01.2023,ADULT SOCIAL CARE,SUPREME CARE SERVICES LTD,903.28,PHY LTS 65+,HOMECARE - C&V,2103607676,1000059416
09.01.2023,ADULT SOCIAL CARE,SUPREME CARE SERVICES LTD,908.82,PHY LTS 65+,HOMECARE - C&V,2103607759,1000059416
09.01.2023,ADULT SOCIAL CARE,SUPREME CARE SERVICES LTD,910.72,PHY LTS 65+,HOMECARE - C&V,2103607739,1000059416
09.01.2023,ADULT SOCIAL CARE,SUPREME CARE SERVICES LTD,912.48,PHY LTS 65+,HOMECARE - C&V,2103607503,1000059416
09.01.2023,ADULT SOCIAL CARE,SUPREME CARE SERVICES LTD,921.76,PHY LTS 65+,HOMECARE - C&V,2103607639,1000059416
09.01.2023,ADULT SOCIAL CARE,SUPREME CARE SERVICES LTD,921.93,PHY LTS 65+,HOMECARE - C&V,2103607705,1000059416
09.01.2023,ADULT SOCIAL CARE,SUPREME CARE SERVICES LTD,922.67,PHY LTS 65+,HOMECARE - C&V,2103607603,1000059416
09.01.2023,ADULT SOCIAL CARE,SUPREME CARE SERVICES LTD,926.26,PHY LTS 65+,HOMECARE - C&V,2103607756,1000059416
09.01.2023,ADULT SOCIAL CARE,SUPREME CARE SERVICES LTD,927.77,PHY LTS 65+,HOMECARE - C&V,2103607656,1000059416
09.01.2023,ADULT SOCIAL CARE,SUPREME CARE SERVICES LTD,943.92,PHY LTS 65+,HOMECARE - C&V,2103607816,1000059416
09.01.2023,ADULT SOCIAL CARE,SUPREME CARE SERVICES LTD,949.34,PHY LTS 65+,HOMECARE - C&V,2103607591,1000059416
09.01.2023,ADULT SOCIAL CARE,SUPREME CARE SERVICES LTD,949.38,PHY LTS 65+,HOMECARE - C&V,2103607824,1000059416
09.01.2023,ADULT SOCIAL CARE,SUPREME CARE SERVICES LTD,958.59,PHY LTS 65+,HOMECARE - C&V,2103607649,1000059416
09.01.2023,ADULT SOCIAL CARE,SUPREME CARE SERVICES LTD,981.55,PHY LTS 65+,HOMECARE - C&V,2103607643,1000059416
09.01.2023,ADULT SOCIAL CARE,SUPREME CARE SERVICES LTD,981.56,PHY LTS 65+,HOMECARE - C&V,2103607774,1000059416
09.01.2023,ADULT SOCIAL CARE,SUPREME CARE SERVICES LTD,981.61,PHY LTS 65+,HOMECARE - C&V,2103607837,1000059416
09.01.2023,ADULT SOCIAL CARE,SUPREME CARE SERVICES LTD,983.48,PHY LTS 65+,HOMECARE - C&V,2103607797,1000059416
09.01.2023,ADULT SOCIAL CARE,SUPREME CARE SERVICES LTD,985.43,PHY LTS 65+,HOMECARE - C&V,2103607496,1000059416
09.01.2023,ADULT SOCIAL CARE,SUPREME CARE SERVICES LTD,990.74,PHY LTS 65+,HOMECARE - C&V,2103607575,1000059416
09.01.2023,ADULT SOCIAL CARE,SUPREME CARE SERVICES LTD,"1,004.64",PHY LTS 65+,HOMECARE - C&V,2103607719,1000059416
09.01.2023,ADULT SOCIAL CARE,SUPREME CARE SERVICES LTD,"1,006.24",PHY LTS 65+,HOMECARE - C&V,2103607568,1000059416
09.01.2023,ADULT SOCIAL CARE,SUPREME CARE SERVICES LTD,"1,013.76",PHY LTS 65+,HOMECARE - C&V,2103607765,1000059416
09.01.2023,ADULT SOCIAL CARE,SUPREME CARE SERVICES LTD,"1,032.07",PHY LTS 65+,HOMECARE - C&V,2103607606,1000059416
09.01.2023,ADULT SOCIAL CARE,SUPREME CARE SERVICES LTD,"1,033.70",PHY LTS 65+,HOMECARE - C&V,2103607805,1000059416
09.01.2023,ADULT SOCIAL CARE,SUPREME CARE SERVICES LTD,"1,035.47",PHY LTS 65+,HOMECARE - C&V,2103607869,1000059416
09.01.2023,ADULT SOCIAL CARE,SUPREME CARE SERVICES LTD,"1,036.96",PHY LTS 65+,HOMECARE - C&V,2103607522,1000059416
09.01.2023,ADULT SOCIAL CARE,SUPREME CARE SERVICES LTD,"1,048.54",PHY LTS 65+,HOMECARE - C&V,2103607859,1000059416
09.01.2023,ADULT SOCIAL CARE,SUPREME CARE SERVICES LTD,"1,050.72",PHY LTS 65+,HOMECARE - C&V,2103607599,1000059416
09.01.2023,ADULT SOCIAL CARE,SUPREME CARE SERVICES LTD,"1,070.15",PHY LTS 65+,HOMECARE - C&V,2103607500,1000059416
09.01.2023,ADULT SOCIAL CARE,SUPREME CARE SERVICES LTD,"1,073.59",PHY LTS 65+,HOMECARE - C&V,2103607769,1000059416
09.01.2023,ADULT SOCIAL CARE,SUPREME CARE SERVICES LTD,"1,087.19",PHY LTS 65+,HOMECARE - C&V,2103607512,1000059416
09.01.2023,ADULT SOCIAL CARE,SUPREME CARE SERVICES LTD,"1,092.42",PHY LTS 65+,HOMECARE - C&V,2103607613,1000059416
09.01.2023,ADULT SOCIAL CARE,SUPREME CARE SERVICES LTD,"1,096.79",PHY LTS 65+,HOMECARE - C&V,2103607610,1000059416
09.01.2023,ADULT SOCIAL CARE,SUPREME CARE SERVICES LTD,"1,105.80",PHY LTS 65+,HOMECARE - C&V,2103607614,1000059416
09.01.2023,ADULT SOCIAL CARE,SUPREME CARE SERVICES LTD,"1,106.04",PHY LTS 65+,HOMECARE - C&V,2103607551,1000059416
09.01.2023,ADULT SOCIAL CARE,SUPREME CARE SERVICES LTD,"1,120.48",PHY LTS 65+,HOMECARE - C&V,2103607645,1000059416
09.01.2023,ADULT SOCIAL CARE,SUPREME CARE SERVICES LTD,"1,120.49",PHY LTS 65+,HOMECARE - C&V,2103607706,1000059416
09.01.2023,ADULT SOCIAL CARE,SUPREME CARE SERVICES LTD,"1,126.57",PHY LTS 65+,HOMECARE - C&V,2103607605,1000059416
09.01.2023,ADULT SOCIAL CARE,SUPREME CARE SERVICES LTD,"1,127.08",PHY LTS 65+,HOMECARE - C&V,2103607748,1000059416
09.01.2023,ADULT SOCIAL CARE,SUPREME CARE SERVICES LTD,"1,129.02",PHY LTS 65+,HOMECARE - C&V,2103607732,1000059416
09.01.2023,ADULT SOCIAL CARE,SUPREME CARE SERVICES LTD,"1,133.86",PHY LTS 65+,HOMECARE - C&V,2103607833,1000059416
09.01.2023,ADULT SOCIAL CARE,SUPREME CARE SERVICES LTD,"1,143.98",PHY LTS 65+,HOMECARE - C&V,2103607529,1000059416
09.01.2023,ADULT SOCIAL CARE,SUPREME CARE SERVICES LTD,"1,153.68",PHY LTS 65+,HOMECARE - C&V,2103607659,1000059416
09.01.2023,ADULT SOCIAL CARE,SUPREME CARE SERVICES LTD,"1,179.14",PHY LTS 65+,HOMECARE - C&V,2103607792,1000059416
09.01.2023,ADULT SOCIAL CARE,SUPREME CARE SERVICES LTD,"1,181.63",PHY LTS 65+,HOMECARE - C&V,2103607862,1000059416
09.01.2023,ADULT SOCIAL CARE,SUPREME CARE SERVICES LTD,"1,193.65",PHY LTS 65+,HOMECARE - C&V,2103607556,1000059416
09.01.2023,ADULT SOCIAL CARE,SUPREME CARE SERVICES LTD,"1,204.97",PHY LTS 65+,HOMECARE - C&V,2103607791,1000059416
09.01.2023,ADULT SOCIAL CARE,SUPREME CARE SERVICES LTD,"1,210.79",PHY LTS 65+,HOMECARE - C&V,2103607587,1000059416
09.01.2023,ADULT SOCIAL CARE,SUPREME CARE SERVICES LTD,"1,212.11",PHY LTS 65+,HOMECARE - C&V,2103607770,1000059416
09.01.2023,ADULT SOCIAL CARE,SUPREME CARE SERVICES LTD,"1,223.54",PHY LTS 65+,HOMECARE - C&V,2103607532,1000059416
09.01.2023,ADULT SOCIAL CARE,SUPREME CARE SERVICES LTD,"1,256.68",PHY LTS 65+,HOMECARE - C&V,2103607675,1000059416
09.01.2023,ADULT SOCIAL CARE,SUPREME CARE SERVICES LTD,"1,256.88",PHY LTS 65+,HOMECARE - C&V,2103607804,1000059416
09.01.2023,ADULT SOCIAL CARE,SUPREME CARE SERVICES LTD,"1,258.17",PHY LTS 65+,HOMECARE - C&V,2103607733,1000059416
09.01.2023,ADULT SOCIAL CARE,SUPREME CARE SERVICES LTD,"1,260.62",PHY LTS 65+,HOMECARE - C&V,2103607577,1000059416
09.01.2023,ADULT SOCIAL CARE,SUPREME CARE SERVICES LTD,"1,274.75",PHY LTS 65+,HOMECARE - C&V,2103607730,1000059416
09.01.2023,ADULT SOCIAL CARE,SUPREME CARE SERVICES LTD,"1,280.48",PHY LTS 65+,HOMECARE - C&V,2103607803,1000059416
09.01.2023,ADULT SOCIAL CARE,SUPREME CARE SERVICES LTD,"1,281.21",PHY LTS 65+,HOMECARE - C&V,2103607638,1000059416
09.01.2023,ADULT SOCIAL CARE,SUPREME CARE SERVICES LTD,"1,294.05",PHY LTS 65+,HOMECARE - C&V,2103607778,1000059416
09.01.2023,ADULT SOCIAL CARE,SUPREME CARE SERVICES LTD,"1,315.38",PHY LTS 65+,HOMECARE - C&V,2103607491,1000059416
09.01.2023,ADULT SOCIAL CARE,SUPREME CARE SERVICES LTD,"1,327.13",PHY LTS 65+,HOMECARE - C&V,2103607861,1000059416
09.01.2023,ADULT SOCIAL CARE,SUPREME CARE SERVICES LTD,"1,327.20",PHY LTS 65+,HOMECARE - C&V,2103607549,1000059416
09.01.2023,ADULT SOCIAL CARE,SUPREME CARE SERVICES LTD,"1,343.67",PHY LTS 65+,HOMECARE - C&V,2103607813,1000059416
09.01.2023,ADULT SOCIAL CARE,SUPREME CARE SERVICES LTD,"1,350.08",PHY LTS 65+,HOMECARE - C&V,2103607781,1000059416
09.01.2023,ADULT SOCIAL CARE,SUPREME CARE SERVICES LTD,"1,351.30",PHY LTS 65+,HOMECARE - C&V,2103607607,1000059416
09.01.2023,ADULT SOCIAL CARE,SUPREME CARE SERVICES LTD,"1,369.48",PHY LTS 65+,HOMECARE - C&V,2103607680,1000059416
09.01.2023,ADULT SOCIAL CARE,SUPREME CARE SERVICES LTD,"1,386.82",PHY LTS 65+,HOMECARE - C&V,2103607546,1000059416
09.01.2023,ADULT SOCIAL CARE,SUPREME CARE SERVICES LTD,"1,387.26",PHY LTS 65+,HOMECARE - C&V,2103607558,1000059416
09.01.2023,ADULT SOCIAL CARE,SUPREME CARE SERVICES LTD,"1,391.73",PHY LTS 65+,HOMECARE - C&V,2103607835,1000059416
09.01.2023,ADULT SOCIAL CARE,SUPREME CARE SERVICES LTD,"1,400.83",PHY LTS 65+,HOMECARE - C&V,2103607763,1000059416
09.01.2023,ADULT SOCIAL CARE,SUPREME CARE SERVICES LTD,"1,401.32",PHY LTS 65+,HOMECARE - C&V,2103607801,1000059416
09.01.2023,ADULT SOCIAL CARE,SUPREME CARE SERVICES LTD,"1,424.49",PHY LTS 65+,HOMECARE - C&V,2103607514,1000059416
09.01.2023,ADULT SOCIAL CARE,SUPREME CARE SERVICES LTD,"1,479.14",PHY LTS 65+,HOMECARE - C&V,2103607794,1000059416
09.01.2023,ADULT SOCIAL CARE,SUPREME CARE SERVICES LTD,"1,511.45",PHY LTS 65+,HOMECARE - C&V,2103607842,1000059416
09.01.2023,ADULT SOCIAL CARE,SUPREME CARE SERVICES LTD,"1,570.50",PHY LTS 65+,HOMECARE - C&V,2103607749,1000059416
09.01.2023,ADULT SOCIAL CARE,SUPREME CARE SERVICES LTD,"1,612.91",PHY LTS 65+,HOMECARE - C&V,2103607701,1000059416
09.01.2023,ADULT SOCIAL CARE,SUPREME CARE SERVICES LTD,"1,645.07",PHY LTS 65+,HOMECARE - C&V,2103607819,1000059416
09.01.2023,ADULT SOCIAL CARE,SUPREME CARE SERVICES LTD,"1,648.32",PHY LTS 65+,HOMECARE - C&V,2103607717,1000059416
09.01.2023,ADULT SOCIAL CARE,SUPREME CARE SERVICES LTD,"1,676.68",PHY LTS 65+,HOMECARE - C&V,2103607836,1000059416
09.01.2023,ADULT SOCIAL CARE,SUPREME CARE SERVICES LTD,"1,769.61",PHY LTS 65+,HOMECARE - C&V,2103607822,1000059416
09.01.2023,ADULT SOCIAL CARE,SUPREME CARE SERVICES LTD,"1,773.72",PHY LTS 65+,HOMECARE - C&V,2103607561,1000059416
09.01.2023,ADULT SOCIAL CARE,SUPREME CARE SERVICES LTD,"1,953.48",PHY LTS 65+,HOMECARE - C&V,2103607800,1000059416
09.01.2023,ADULT SOCIAL CARE,SUPREME CARE SERVICES LTD,"1,976.44",PHY LTS 65+,HOMECARE - C&V,2103607629,1000059416
09.01.2023,ADULT SOCIAL CARE,SUPREME CARE SERVICES LTD,"1,976.53",PHY LTS 65+,HOMECARE - C&V,2103607726,1000059416
09.01.2023,ADULT SOCIAL CARE,SUPREME CARE SERVICES LTD,"1,996.25",PHY LTS 65+,HOMECARE - C&V,2103607672,1000059416
09.01.2023,ADULT SOCIAL CARE,SUPREME CARE SERVICES LTD,"2,046.62",PHY LTS 65+,HOMECARE - C&V,2103607566,1000059416
09.01.2023,ADULT SOCIAL CARE,SUPREME CARE SERVICES LTD,"2,093.51",PHY LTS 65+,HOMECARE - C&V,2103607569,1000059416
09.01.2023,ADULT SOCIAL CARE,SUPREME CARE SERVICES LTD,"2,127.41",PHY LTS 65+,HOMECARE - C&V,2103607571,1000059416
09.01.2023,ADULT SOCIAL CARE,SUPREME CARE SERVICES LTD,"2,216.25",PHY LTS 65+,HOMECARE - C&V,2103607702,1000059416
09.01.2023,ADULT SOCIAL CARE,SUPREME CARE SERVICES LTD,"2,271.53",PHY LTS 65+,HOMECARE - C&V,2103607611,1000059416
09.01.2023,ADULT SOCIAL CARE,SUPREME CARE SERVICES LTD,"2,336.98",PHY LTS 65+,HOMECARE - C&V,2103607784,1000059416
09.01.2023,ADULT SOCIAL CARE,SUPREME CARE SERVICES LTD,"2,352.94",PHY LTS 65+,HOMECARE - C&V,2103607721,1000059416
09.01.2023,ADULT SOCIAL CARE,SUPREME CARE SERVICES LTD,"2,354.00",PHY LTS 65+,HOMECARE - C&V,2103607630,1000059416
09.01.2023,ADULT SOCIAL CARE,SUPREME CARE SERVICES LTD,"2,368.75",PHY LTS 65+,HOMECARE - C&V,2103607799,1000059416
09.01.2023,ADULT SOCIAL CARE,SUPREME CARE SERVICES LTD,"2,371.80",PHY LTS 65+,HOMECARE - C&V,2103607513,1000059416
09.01.2023,ADULT SOCIAL CARE,SUPREME CARE SERVICES LTD,"2,447.15",PHY LTS 65+,HOMECARE - C&V,2103607860,1000059416
09.01.2023,ADULT SOCIAL CARE,SUPREME CARE SERVICES LTD,"2,473.08",PHY LTS 65+,HOMECARE - C&V,2103607524,1000059416
09.01.2023,ADULT SOCIAL CARE,SUPREME CARE SERVICES LTD,"2,681.80",PHY LTS 65+,HOMECARE - C&V,2103607586,1000059416
09.01.2023,ADULT SOCIAL CARE,SUPREME CARE SERVICES LTD,"2,696.05",PHY LTS 65+,HOMECARE - C&V,2103607724,1000059416
09.01.2023,ADULT SOCIAL CARE,SUPREME CARE SERVICES LTD,"2,764.68",PHY LTS 65+,HOMECARE - C&V,2103607740,1000059416
09.01.2023,ADULT SOCIAL CARE,SUPREME CARE SERVICES LTD,"2,794.00",PHY LTS 65+,HOMECARE - C&V,2103607716,1000059416
09.01.2023,ADULT SOCIAL CARE,SUPREME CARE SERVICES LTD,"2,975.80",PHY LTS 65+,HOMECARE - C&V,2103607480,1000059416
09.01.2023,ADULT SOCIAL CARE,SUPREME CARE SERVICES LTD,"2,984.30",PHY LTS 65+,HOMECARE - C&V,2103607572,1000059416
09.01.2023,ADULT SOCIAL CARE,SUPREME CARE SERVICES LTD,"3,188.82",PHY LTS 65+,HOMECARE - C&V,2103607865,1000059416
09.01.2023,ADULT SOCIAL CARE,SUPREME CARE SERVICES LTD,"3,282.08",PHY LTS 65+,HOMECARE - C&V,2103607518,1000059416
09.01.2023,ADULT SOCIAL CARE,SUPREME CARE SERVICES LTD,"3,312.29",PHY LTS 65+,HOMECARE - C&V,2103607609,1000059416
09.01.2023,ADULT SOCIAL CARE,SUPREME CARE SERVICES LTD,"3,529.60",PHY LTS 65+,HOMECARE - C&V,2103607536,1000059416
09.01.2023,ADULT SOCIAL CARE,SUPREME CARE SERVICES LTD,"3,627.61",PHY LTS 65+,HOMECARE - C&V,2103607570,1000059416
09.01.2023,ADULT SOCIAL CARE,SUPREME CARE SERVICES LTD,"3,838.07",PHY LTS 65+,HOMECARE - C&V,2103607640,1000059416
09.01.2023,ADULT SOCIAL CARE,SUPREME CARE SERVICES LTD,"4,128.32",PHY LTS 65+,HOMECARE - C&V,2103607619,1000059416
09.01.2023,ADULT SOCIAL CARE,BLISSETT CARE LTD,"2,260.24",PHY LTS 65+,HOMECARE - SPOT,2103607941,1000042627
09.01.2023,ADULT SOCIAL CARE,THAMES HOMECARE SERVICE LTD,844.36,PHY LTS 65+,HOMECARE - SPOT,2103607888,1000079295
09.01.2023,ADULT SOCIAL CARE,ELEANOR NURSING AND SOCIAL CARE LTD,"2,179.80",PHY LTS 65+,HOMECARE - SPOT,2103607879,1000081695
09.01.2023,ADULT SOCIAL CARE,BLISSETT CARE LTD,310.78,SEN LTS 65+,HOMECARE - C&V,2103607940,1000042627
09.01.2023,ADULT SOCIAL CARE,SUPREME CARE SERVICES LTD,936.46,SEN LTS 65+,HOMECARE - C&V,2103607735,1000059416
09.01.2023,ADULT SOCIAL CARE,SUPREME CARE SERVICES LTD,956.24,SEN LTS 65+,HOMECARE - C&V,2103607535,1000059416
09.01.2023,ADULT SOCIAL CARE,SUPREME CARE SERVICES LTD,"1,119.59",SEN LTS 65+,HOMECARE - C&V,2103607520,1000059416
09.01.2023,ADULT SOCIAL CARE,SUPREME CARE SERVICES LTD,"1,350.06",SEN LTS 65+,HOMECARE - C&V,2103607798,1000059416
09.01.2023,ADULT SOCIAL CARE,SUPREME CARE SERVICES LTD,599.24,SOCIAL ISOLATION,HOMECARE - C&V,2103607618,1000059416
09.01.2023,ADULT SOCIAL CARE,SUPREME CARE SERVICES LTD,609.63,SOCIAL ISOLATION,HOMECARE - C&V,2103607747,1000059416
09.01.2023,ADULT SOCIAL CARE,SUPREME CARE SERVICES LTD,"2,133.72",SOCIAL ISOLATION,HOMECARE - C&V,2103607517,1000059416
09.01.2023,ADULT SOCIAL CARE,CITY MOBILITY LTD,300,SOUTHWARK RESOURCE CENTRE,EQUIPMENT PURCHASE & REPAIR,5902559882,1000053995
09.01.2023,ADULT SOCIAL CARE,MEDACS HOMECARE,303.87,SUB LTS 18-64,HOMECARE - C&V,2103608050,11287415
09.01.2023,ADULT SOCIAL CARE,MEDACS HOMECARE,"1,011.75",SUB LTS 18-64,HOMECARE - C&V,2103608032,11287415
09.01.2023,ADULT SOCIAL CARE,BLISSETT CARE LTD,612.08,SUB LTS 18-64,HOMECARE - C&V,2103607928,1000042627
09.01.2023,ASSET MANAGEMENT,GC CONSTRUCT LTD,"5,847.80",DISREPAIR,BUILDING R&M,2103608177,3000002106
09.01.2023,ASSET MANAGEMENT HGF,WHITELEYS OFFICE SUPPLIES LTD,525,160 TOOLEY ST.,BUILDING R&M,5902559825,1000083121
09.01.2023,ASSET MANAGEMENT HGF,ROYAL MAIL GROUP LTD,"2,358.03",160 TOOLEY ST.,POSTAGES,5902559889,1000061535
09.01.2023,ASSET MANAGEMENT HGF,GREENHAM TRADING LTD,"8,408.86",FM SERVICES BY INTERSERVE,INTEGRATED FACILITIES MANAGEMENT CONTRACT,5902559813,1000006610
09.01.2023,ASSET MANAGEMENT HGF,RELIANCE HIGH-TECH LTD,"5,396.82",REPAIR AND MAINTENANCE SERVICES,MEDICAL / HEALTH & SAFETY SERVICES,5902559780,1000079374
09.01.2023,CENTRAL FUNCTIONS,NEC SOFTWARE SOLUTIONS UK LTD,"31,250.00",BUSINESS APPLICATIONS,SOFTWARE,5902559863,1000087043
09.01.2023,CENTRAL FUNCTIONS,MARK BAUMOHL,"1,012.50",COMMERCIAL PROPERTIES,LEGAL FEES & COURT COSTS,2103608082,1000051230
09.01.2023,CENTRAL FUNCTIONS,DARENACE LTD,"5,880.00",GENERAL HOLDING AC,PROFESSIONAL FEES,5902559770,1000082184
09.01.2023,CENTRAL FUNCTIONS,1ST ACE SECURITY LTD,"19,857.60",LAKANAL (TENANCY),SECURITY SERVICES,5902559745,1000006992
09.01.2023,CENTRAL FUNCTIONS,DSI BILLING SERVICES LTD,369.56,OPERATIONAL TEAM,POSTAGES,5902559812,1000058640
09.01.2023,CHIEF EXECUTIVE,NICHOLSON MCBRIDE LTD,"8,775.00",CORPORATE & DEPARTMENTAL EXPENDITURE,MISCELLANEOUS RECEIPTS,5902559901,1000089137
09.01.2023,CHIEF EXECUTIVE'S OFFICE,TWIN EMPLOYMENT & TRAINING,"32,202.41",CHIEF EXECUTIVE'S OFFICE,EXTERNAL AGENCIES AND BODIES,5902559883,1000083699
09.01.2023,CHILDREN AND ADULT,BLOOM PROCUREMENT SERVICES LTD,"4,050.00",CAPITAL PS (EDUCATION),CONSTRUCTION FEES,5902559906,1000082531
09.01.2023,CHILDREN AND ADULT,PELLINGS LLP,"1,728.00",CAPITAL PS (SOC SERV),CONSTRUCTION MAIN CONTRACT,5902559765,1009262
09.01.2023,CHILDREN AND FAMILIES,CORAM FAMILY,"1,440.00",ADOPTION SUPP FUND 1,EXTERNAL AGENCIES AND BODIES,5902559714,1000023579
09.01.2023,CHILDREN AND FAMILIES,CORAM FAMILY,"2,130.00",ADOPTION SUPP FUND 1,EXTERNAL AGENCIES AND BODIES,5902559713,1000023579
09.01.2023,CHILDREN AND FAMILIES,ALICE MALLORIE THERAPY SERVICE,390,ADOPTION SUPP FUND 1,EXTERNAL AGENCIES AND BODIES,5902559721,1000085491
09.01.2023,CHILDREN AND FAMILIES,REDACTED PERSONAL DATA,"1,080.00",ADOPTION SUPP FUND 1,EXTERNAL AGENCIES AND BODIES,REDACTED,REDACTED
09.01.2023,CHILDREN AND FAMILIES,PARENTS AND CHILDREN TOGETHER,600,ADOPTION SUPP FUND 2,EXTERNAL AGENCIES AND BODIES,5902559694,1000068128
09.01.2023,CHILDREN AND FAMILIES,STARJUMPZ CHILDREN�S CENTRE,720,ADOPTION SUPP FUND 2,EXTERNAL AGENCIES AND BODIES,5902559913,1000084883
09.01.2023,CHILDREN AND FAMILIES,REDACTED PERSONAL DATA,357.8,ADOPTION SUPP FUND 2,EXTERNAL AGENCIES AND BODIES,REDACTED,REDACTED
09.01.2023,CHILDREN AND FAMILIES,CASTLE WATER LTD,468.95,CENTRAL SUPPORT,WATER,5902559754,1000078867
09.01.2023,CHILDREN AND FAMILIES,TRIPOD PARTNERS LTD,868,DIRECTOR OF C&F,PAYMENTS FOR LEGAL SERVICES,5902559916,1000087988
09.01.2023,CHILDREN AND FAMILIES,TRIPOD PARTNERS LTD,868,DIRECTOR OF C&F,PAYMENTS FOR LEGAL SERVICES,5902559917,1000087988
09.01.2023,CHILDREN AND FAMILIES,REDACTED PERSONAL DATA,750,FOSTERING ALLOWANCES,PAYMENTS TO CARERS,REDACTED,REDACTED
09.01.2023,CHILDREN AND FAMILIES,REDACTED PERSONAL DATA,750,FOSTERING ALLOWANCES,PAYMENTS TO CARERS,REDACTED,REDACTED
09.01.2023,CHILDREN AND FAMILIES,REDACTED PERSONAL DATA,"1,168.00",FRIENDS &FAMILY FOST,ADDITIONAL PAYMENTS TO AGENCIES/CARERS,REDACTED,REDACTED
09.01.2023,CHILDREN AND FAMILIES,HARVEST CARE GROUP LTD,"1,982.14",SEMI-IND CARELEAVERS,EXTERNAL AGENCIES AND BODIES,2103607448,1000079059
09.01.2023,CHILDREN AND FAMILIES,HARVEST CARE GROUP LTD,"2,003.55",SEMI-IND CARELEAVERS,EXTERNAL AGENCIES AND BODIES,2103607460,1000079059
09.01.2023,CHILDREN AND FAMILIES,HARVEST CARE GROUP LTD,"2,048.21",SEMI-IND CARELEAVERS,EXTERNAL AGENCIES AND BODIES,2103607442,1000079059
09.01.2023,CHILDREN AND FAMILIES,HARVEST CARE GROUP LTD,"2,067.85",SEMI-IND CARELEAVERS,EXTERNAL AGENCIES AND BODIES,2103607456,1000079059
09.01.2023,CHILDREN AND FAMILIES,HARVEST CARE GROUP LTD,"2,067.86",SEMI-IND CARELEAVERS,EXTERNAL AGENCIES AND BODIES,2103607458,1000079059
09.01.2023,CHILDREN AND FAMILIES,HARVEST CARE GROUP LTD,"2,067.86",SEMI-IND CARELEAVERS,EXTERNAL AGENCIES AND BODIES,2103607476,1000079059
09.01.2023,CHILDREN AND FAMILIES,HARVEST CARE GROUP LTD,"2,070.36",SEMI-IND CARELEAVERS,EXTERNAL AGENCIES AND BODIES,2103607440,1000079059
09.01.2023,CHILDREN AND FAMILIES,HARVEST CARE GROUP LTD,"2,136.78",SEMI-IND CARELEAVERS,EXTERNAL AGENCIES AND BODIES,2103607436,1000079059
09.01.2023,CHILDREN AND FAMILIES,HARVEST CARE GROUP LTD,"2,136.78",SEMI-IND CARELEAVERS,EXTERNAL AGENCIES AND BODIES,2103607438,1000079059
09.01.2023,CHILDREN AND FAMILIES,HARVEST CARE GROUP LTD,"2,136.78",SEMI-IND CARELEAVERS,EXTERNAL AGENCIES AND BODIES,2103607444,1000079059
09.01.2023,CHILDREN AND FAMILIES,HARVEST CARE GROUP LTD,"2,136.78",SEMI-IND CARELEAVERS,EXTERNAL AGENCIES AND BODIES,2103607472,1000079059
09.01.2023,CHILDREN AND FAMILIES,HARVEST CARE GROUP LTD,"2,136.78",SEMI-IND CARELEAVERS,EXTERNAL AGENCIES AND BODIES,2103607474,1000079059
09.01.2023,CHILDREN AND FAMILIES,HARVEST CARE GROUP LTD,"3,642.86",SEMI-IND CARELEAVERS,EXTERNAL AGENCIES AND BODIES,2103607454,1000079059
09.01.2023,CHILDREN AND FAMILIES,HARVEST CARE GROUP LTD,"3,764.28",SEMI-IND CARELEAVERS,EXTERNAL AGENCIES AND BODIES,2103607462,1000079059
09.01.2023,CHILDREN AND FAMILIES,FRESHVIEW ESTATES,975,SEMI-IND CARELEAVERS,EXTERNAL AGENCIES AND BODIES,5902559829,1000086397
09.01.2023,CHILDREN AND FAMILIES,HARVEST CARE GROUP LTD,"3,535.71",SEMI-IND LAC 16-17,EXTERNAL AGENCIES AND BODIES,2103607470,1000079059
09.01.2023,CHILDREN AND FAMILIES,HARVEST CARE GROUP LTD,"3,653.57",SEMI-IND LAC 16-17,EXTERNAL AGENCIES AND BODIES,2103607464,1000079059
09.01.2023,CHILDREN AND FAMILIES,REDACTED PERSONAL DATA,300,SEMI-IND LAC 16-17,OTHER PAYMENTS FOR CLIENTS,REDACTED,REDACTED
09.01.2023,CHILDREN AND FAMILIES,GARY CRAWLEY,750,SFS MGMT & SUPPORT,LEGAL FEES & COURT COSTS,2103608074,1000036164
09.01.2023,CHILDREN AND FAMILIES,EXPERT IN MIND LTD,439.92,SFS MGMT & SUPPORT,LEGAL FEES & COURT COSTS,2103608072,1000062889
09.01.2023,CHILDREN AND FAMILIES,KATE LAMONT,750,SFS MGMT & SUPPORT,LEGAL FEES & COURT COSTS,2103608076,1000064216
09.01.2023,CHILDREN AND FAMILIES,KATE LAMONT,850,SFS MGMT & SUPPORT,LEGAL FEES & COURT COSTS,2103608078,1000064216
09.01.2023,CHILDREN AND FAMILIES,LAURA BUMPUS,850,SFS MGMT & SUPPORT,LEGAL FEES & COURT COSTS,2103608079,1000064937
09.01.2023,CHILDREN AND FAMILIES,PSYCHOLOGY EXPERTS LTD,924.5,SFS MGMT & SUPPORT,LEGAL FEES & COURT COSTS,2103608089,1000079653
09.01.2023,CHILDREN AND FAMILIES,THOMAS JONES,750,SFS MGMT & SUPPORT,LEGAL FEES & COURT COSTS,2103608097,1000081619
09.01.2023,CHILDREN AND FAMILIES,THOMAS JONES,750,SFS MGMT & SUPPORT,LEGAL FEES & COURT COSTS,2103608098,1000081619
09.01.2023,CHILDREN AND FAMILIES,THOMAS JONES,750,SFS MGMT & SUPPORT,LEGAL FEES & COURT COSTS,2103608099,1000081619
09.01.2023,CHILDREN AND FAMILIES,THOMAS JONES,"1,250.00",SFS MGMT & SUPPORT,LEGAL FEES & COURT COSTS,2103608095,1000081619
09.01.2023,CHILDREN AND FAMILIES,MAX MELSA,575,SFS MGMT & SUPPORT,LEGAL FEES & COURT COSTS,2103608085,1000083902
09.01.2023,CHILDREN AND FAMILIES,MAX MELSA,575,SFS MGMT & SUPPORT,LEGAL FEES & COURT COSTS,2103608086,1000083902
09.01.2023,CHILDREN AND FAMILIES,NICOLA HALL,"1,090.00",SFS MGMT & SUPPORT,LEGAL FEES & COURT COSTS,2103608087,1000085684
09.01.2023,CHILDREN AND FAMILIES,ROBERT WILKINSON,400,SFS MGMT & SUPPORT,LEGAL FEES & COURT COSTS,2103608091,1000085688
09.01.2023,CHILDREN AND FAMILIES,PAEDIATRIC AND PERINATAL PATHOLOGY SERVICES LTD,"1,000.00",SFS MGMT & SUPPORT,LEGAL FEES & COURT COSTS,2103608088,1000089188
09.01.2023,CHILDREN AND FAMILIES,ZENITH CARS LTD,480,TEAM A,CLIENT TRANSPORT,5902559915,1000070570
09.01.2023,CHILDREN AND FAMILIES,ZENITH CARS LTD,305,TEAM B,CLIENT TRANSPORT,5902559915,1000070570
09.01.2023,CHILDREN AND FAMILIES,ZENITH CARS LTD,760,TEAM D,CLIENT TRANSPORT,5902559915,1000070570
09.01.2023,CHILDREN AND FAMILIES,LONDON EARLY YEARS FOUNDATION,519.61,TEAM D,OTHER PAYMENTS FOR CLIENTS,5902559910,1000077919
09.01.2023,CHILDREN AND FAMILIES,LONDON EARLY YEARS FOUNDATION,519.61,TEAM D,OTHER PAYMENTS FOR CLIENTS,5902559912,1000077919
09.01.2023,CHILDREN AND FAMILIES,STEP AHEAD SERVICES LTD,"2,125.71",UASC CARELEAVERS,EXTERNAL AGENCIES AND BODIES,2103607446,1000036544
09.01.2023,CHILDREN AND FAMILIES,FUTURE FOUNDATIONS LTD,"4,419.71",UASC CARELEAVERS,EXTERNAL AGENCIES AND BODIES,2103607450,1000063272
09.01.2023,CHILDREN AND FAMILIES,HARVEST CARE GROUP LTD,"3,535.71",UASC CARELEAVERS,EXTERNAL AGENCIES AND BODIES,2103607434,1000079059
09.01.2023,CHILDREN AND FAMILIES,FUTURE FOUNDATIONS LTD,265.71,UASC CARELEAVERS,OTHER PAYMENTS FOR CLIENTS,2103607452,1000063272
09.01.2023,CHILDREN AND FAMILIES,HARVEST CARE GROUP LTD,"3,535.71",UASC LAC 16-17,EXTERNAL AGENCIES AND BODIES,2103607466,1000079059
09.01.2023,CHILDREN AND FAMILIES,HARVEST CARE GROUP LTD,"3,653.57",UASC LAC 16-17,EXTERNAL AGENCIES AND BODIES,2103607468,1000079059
09.01.2023,COMMUNITIES,S7 CHAUFFEURS LTD,"5,210.00",MAYORAL SUPPORT,HIRED VEHICLES,5902559723,1000075707
09.01.2023,COMMUNITIES,S7 CHAUFFEURS LTD,"8,910.00",MAYORAL SUPPORT,HIRED VEHICLES,5902559726,1000075707
09.01.2023,COMMUNITIES,ELEANOR NURSING AND SOCIAL CARE LTD,276.8,NO RECOURSE TO PUBLIC FUNDS,HOMECARE - C&V,2103607878,1000081695
09.01.2023,COMMUNITIES,JOYMAC CARE LTD,640,NO RECOURSE TO PUBLIC FUNDS,HOMECARE - C&V,2103607875,1000088577
09.01.2023,COMMUNITIES,JOYMAC CARE LTD,"1,280.00",NO RECOURSE TO PUBLIC FUNDS,HOMECARE - C&V,2103607876,1000088577
09.01.2023,COMMUNITIES HRA,WILLOWBROOK TENANT MANAGEMENT CO-OP LTD,"61,277.00",WILLOWBROOK CO-OP,M&M ALLOWANCE CO-OPS,5902559677,11311402
09.01.2023,CUSTOMER EXPERIENCE HGF,ALLIED PUBLICITY SERVICES,"1,335.08",BLUE BADGES,MATERIALS,5902559888,1000082115
09.01.2023,CUSTOMER EXPERIENCE HGF,GUYS & ST THOMAS NHS FOUNDATION TRUST,"11,529.00",CORONER'S,OTHER CONTRACTORS,5902559886,1765536
09.01.2023,CUSTOMER EXPERIENCE HGF,VENN GROUP LTD,"11,550.00",IT MANAGEMENT,AGENCY STAFF,5902559767,1000033315
09.01.2023,DSG,HOLLAND PARK SCHOOL,"3,029.46",AC & FREE - MSTREAM,STATEMENTED FEES,2103608222,1000077628
09.01.2023,DSG,WANDLE LEARNING TRUST,"1,851.41",AC & FREE - MSTREAM,STATEMENTED FEES,2103608247,1000086596
09.01.2023,DSG,WANDLE LEARNING TRUST,"3,789.59",AC & FREE - MSTREAM,STATEMENTED FEES,2103608246,1000086596
09.01.2023,DSG,FUTURE ACADEMIES TRINITY ACADEMY,"1,495.50",AC & FREE - MSTREAM,STATEMENTED FEES,2103608235,1000088663
09.01.2023,DSG,FUTURE ACADEMIES TRINITY ACADEMY,"1,740.21",AC & FREE - MSTREAM,STATEMENTED FEES,2103608234,1000088663
09.01.2023,DSG,FUTURE ACADEMIES TRINITY ACADEMY,"1,740.21",AC & FREE - MSTREAM,STATEMENTED FEES,2103608236,1000088663
09.01.2023,DSG,FUTURE ACADEMIES TRINITY ACADEMY,"5,302.20",AC & FREE - MSTREAM,STATEMENTED FEES,2103608237,1000088663
09.01.2023,DSG,FUTURE ACADEMIES TRINITY ACADEMY,"5,302.20",AC & FREE - MSTREAM,STATEMENTED FEES,2103608238,1000088663
09.01.2023,DSG,ORGANISATION OF BLIND AFRICANS & CARIBBEANS,"1,800.00",AP & HOSPITAL SCHLS,STATEMENTED FEES,2103608196,1000002281
09.01.2023,DSG,ALBION PRIMARY SCHOOL,"7,701.75",COVID-19 SCHOOLS GRANTS,SCHOOLS CAPITATION,2103608103,5001000000
09.01.2023,DSG,ALFRED SALTER PRIMARY SCHOOL,"5,433.75",COVID-19 SCHOOLS GRANTS,SCHOOLS CAPITATION,2103608131,5001000005
09.01.2023,DSG,BELLENDEN PRIMARY SCHOOL,"3,449.25",COVID-19 SCHOOLS GRANTS,SCHOOLS CAPITATION,2103608104,5001000007
09.01.2023,DSG,BEORMUND PRIMARY SCHOOL,"3,331.13",COVID-19 SCHOOLS GRANTS,SCHOOLS CAPITATION,2103608165,5001000008
09.01.2023,DSG,BESSEMER GRANGE PRIMARY SCHOOL,"4,299.75",COVID-19 SCHOOLS GRANTS,SCHOOLS CAPITATION,2103608133,5001000009
09.01.2023,DSG,BETHLEM & MAUDSLEY HOSPITAL SCHOOL,987,COVID-19 SCHOOLS GRANTS,SCHOOLS CAPITATION,2103608170,5001000010
09.01.2023,DSG,BOUCHER C OF E PRIMARY SCHOOL,"3,118.50",COVID-19 SCHOOLS GRANTS,SCHOOLS CAPITATION,2103608135,5001000011
09.01.2023,DSG,BRUNSWICK PARK PRIMARY SCHOOL,"8,943.38",COVID-19 SCHOOLS GRANTS,SCHOOLS CAPITATION,2103608134,5001000013
09.01.2023,DSG,CAMELOT PRIMARY SCHOOL,"8,505.00",COVID-19 SCHOOLS GRANTS,SCHOOLS CAPITATION,2103608105,5001000014
09.01.2023,DSG,CHARLOTTE  SHARMAN PRIMARY SCHOOL,"3,732.75",COVID-19 SCHOOLS GRANTS,SCHOOLS CAPITATION,2103608160,5001000016
09.01.2023,DSG,ST JOSEPHS RC JUNIOR  SCHOOL,"4,677.75",COVID-19 SCHOOLS GRANTS,SCHOOLS CAPITATION,2103608157,5001000017
09.01.2023,DSG,ST JOSEPHS CATHOLIC INFANTS SCHOOL,"2,173.50",COVID-19 SCHOOLS GRANTS,SCHOOLS CAPITATION,2103608158,5001000018
09.01.2023,DSG,ST JUDES CHURCH OF ENGLAND PRIMARY,"1,748.25",COVID-19 SCHOOLS GRANTS,SCHOOLS CAPITATION,2103608147,5001000019
09.01.2023,DSG,CHERRY GARDEN SCHOOL,"4,811.63",COVID-19 SCHOOLS GRANTS,SCHOOLS CAPITATION,2103608167,5001000020
09.01.2023,DSG,COBOURG PRIMARY SCHOOL,"3,780.00",COVID-19 SCHOOLS GRANTS,SCHOOLS CAPITATION,2103608106,5001000021
09.01.2023,DSG,COMBER GROVE PRIMARY SCHOOL,"3,638.25",COVID-19 SCHOOLS GRANTS,SCHOOLS CAPITATION,2103608107,5001000022
09.01.2023,DSG,CRAMPTON PRIMARY SCHOOL,"2,646.00",COVID-19 SCHOOLS GRANTS,SCHOOLS CAPITATION,2103608108,5001000023
09.01.2023,DSG,CRAWFORD PRIMARY SCHOOL,"7,749.00",COVID-19 SCHOOLS GRANTS,SCHOOLS CAPITATION,2103608109,5001000024
09.01.2023,DSG,DOG KENNEL HILL PRIMARY SCHOOL,"4,252.50",COVID-19 SCHOOLS GRANTS,SCHOOLS CAPITATION,2103608110,5001000025
09.01.2023,DSG,DULWICH VILLAGE CE INFANTS SCHOOL,472.5,COVID-19 SCHOOLS GRANTS,SCHOOLS CAPITATION,2103608136,5001000027
09.01.2023,DSG,GOODRICH PRIMARY SCHOOL,"4,866.75",COVID-19 SCHOOLS GRANTS,SCHOOLS CAPITATION,2103608111,5001000028
09.01.2023,DSG,GRANGE PRIMARY SCHOOL,"7,512.75",COVID-19 SCHOOLS GRANTS,SCHOOLS CAPITATION,2103608112,5001000029
09.01.2023,DSG,ENGLISH MARTYRS RC PRIMARY SCHOOL,"5,481.00",COVID-19 SCHOOLS GRANTS,SCHOOLS CAPITATION,2103608137,5001000030
09.01.2023,DSG,EVELINA HOSPITAL SCHOOL,"1,357.13",COVID-19 SCHOOLS GRANTS,SCHOOLS CAPITATION,2103608169,5001000031
09.01.2023,DSG,PHOENIX PRIMARY SCHOOL,"9,166.50",COVID-19 SCHOOLS GRANTS,SCHOOLS CAPITATION,2103608129,5001000032
09.01.2023,DSG,FRIARS PRIMARY (FOUNDATION) SCHOOL,"3,307.50",COVID-19 SCHOOLS GRANTS,SCHOOLS CAPITATION,2103608159,5001000033
09.01.2023,DSG,HEBER PRIMARY SCHOOL,"2,598.75",COVID-19 SCHOOLS GRANTS,SCHOOLS CAPITATION,2103608113,5001000035
09.01.2023,DSG,HOLLYDALE PRIMARY SCHOOL,"3,402.00",COVID-19 SCHOOLS GRANTS,SCHOOLS CAPITATION,2103608114,5001000036
09.01.2023,DSG,ILDERTON PRIMARY SCHOOL,"4,725.00",COVID-19 SCHOOLS GRANTS,SCHOOLS CAPITATION,2103608115,5001000037
09.01.2023,DSG,IVYDALE PRIMARY SCHOOL,"3,213.00",COVID-19 SCHOOLS GRANTS,SCHOOLS CAPITATION,2103608116,5001000038
09.01.2023,DSG,JOHN RUSKIN PRIMARY SCHOOL,"10,051.13",COVID-19 SCHOOLS GRANTS,SCHOOLS CAPITATION,2103608117,5001000040
09.01.2023,DSG,KEYWORTH PRIMARY SCHOOL,"6,804.00",COVID-19 SCHOOLS GRANTS,SCHOOLS CAPITATION,2103608118,5001000041
09.01.2023,DSG,DULWICH WOOD PRIMARY SCHOOL,"4,772.25",COVID-19 SCHOOLS GRANTS,SCHOOLS CAPITATION,2103608119,5001000042
09.01.2023,DSG,HAYMERLE SCHOOL,"4,194.75",COVID-19 SCHOOLS GRANTS,SCHOOLS CAPITATION,2103608164,5001000045
09.01.2023,DSG,HIGHSHORE SCHOOL,"6,785.63",COVID-19 SCHOOLS GRANTS,SCHOOLS CAPITATION,2103608163,5001000046
09.01.2023,DSG,MICHAEL FARADAY PRIMARY SCHOOL,"5,670.00",COVID-19 SCHOOLS GRANTS,SCHOOLS CAPITATION,2103608120,5001000048
09.01.2023,DSG,NOTRE DAME RC GIRLS SCHOOL,"11,056.50",COVID-19 SCHOOLS GRANTS,SCHOOLS CAPITATION,2103608162,5001000050
09.01.2023,DSG,OLIVER GOLDSMITH PRIMARY SCHOOL,"7,512.75",COVID-19 SCHOOLS GRANTS,SCHOOLS CAPITATION,2103608132,5001000051
09.01.2023,DSG,PETER HILLS CE SCHOOL,"2,598.75",COVID-19 SCHOOLS GRANTS,SCHOOLS CAPITATION,2103608149,5001000053
09.01.2023,DSG,PILGRIM'S WAY PRIMARY SCHOOL,"4,016.25",COVID-19 SCHOOLS GRANTS,SCHOOLS CAPITATION,2103608130,5001000054
09.01.2023,DSG,RIVERSIDE PRIMARY SCHOOL,"5,244.75",COVID-19 SCHOOLS GRANTS,SCHOOLS CAPITATION,2103608121,5001000056
09.01.2023,DSG,ROBERT BROWNING PRIMARY SCHOOL,"3,591.00",COVID-19 SCHOOLS GRANTS,SCHOOLS CAPITATION,2103608122,5001000057
09.01.2023,DSG,ROTHERHITHE PRIMARY SCHOOL,"6,993.00",COVID-19 SCHOOLS GRANTS,SCHOOLS CAPITATION,2103608123,5001000058
09.01.2023,DSG,RYE OAK PRIMARY SCHOOL,"7,951.13",COVID-19 SCHOOLS GRANTS,SCHOOLS CAPITATION,2103608153,5001000059
09.01.2023,DSG,SNOWSFIELDS PRIMARY SCHOOL,"4,000.50",COVID-19 SCHOOLS GRANTS,SCHOOLS CAPITATION,2103608124,5001000061
09.01.2023,DSG,SOUTHWARK PARK PRIMARY SCHOOL,"7,985.25",COVID-19 SCHOOLS GRANTS,SCHOOLS CAPITATION,2103608125,5001000062
09.01.2023,DSG,ST ANTHONYS RC SCHOOL,"3,402.00",COVID-19 SCHOOLS GRANTS,SCHOOLS CAPITATION,2103608156,5001000064
09.01.2023,DSG,ST FRANCESCA CABRINI PRIMARY SCHOOL,"3,638.25",COVID-19 SCHOOLS GRANTS,SCHOOLS CAPITATION,2103608155,5001000065
09.01.2023,DSG,ST FRANCIS'S RC PRIMARY SCHOOL,"5,481.00",COVID-19 SCHOOLS GRANTS,SCHOOLS CAPITATION,2103608139,5001000067
09.01.2023,DSG,ST GEORGES RC SCHOOL,"2,220.75",COVID-19 SCHOOLS GRANTS,SCHOOLS CAPITATION,2103608141,5001000068
09.01.2023,DSG,ST GEORGES CE SCHOOL,"5,339.25",COVID-19 SCHOOLS GRANTS,SCHOOLS CAPITATION,2103608140,5001000069
09.01.2023,DSG,ST JAMES CE PRIMARY SCHOOL,"11,529.00",COVID-19 SCHOOLS GRANTS,SCHOOLS CAPITATION,2103608142,5001000070
09.01.2023,DSG,ST JAMES THE GREAT RC SCHOOL,"3,685.50",COVID-19 SCHOOLS GRANTS,SCHOOLS CAPITATION,2103608138,5001000071
09.01.2023,DSG,ST JOHNS & ST CLEMENTS CE SCHOOL,"3,394.13",COVID-19 SCHOOLS GRANTS,SCHOOLS CAPITATION,2103608143,5001000073
09.01.2023,DSG,THE ST THOMAS THE APOSTLE COLLEGE,"16,679.25",COVID-19 SCHOOLS GRANTS,SCHOOLS CAPITATION,2103608161,5001000074
09.01.2023,DSG,ST JOHNS RC PRIMARY SCHOOL,"3,307.50",COVID-19 SCHOOLS GRANTS,SCHOOLS CAPITATION,2103608152,5001000075
09.01.2023,DSG,ST JOSEPHS CATHOLIC SCHOOL,"3,024.00",COVID-19 SCHOOLS GRANTS,SCHOOLS CAPITATION,2103608146,5001000076
09.01.2023,DSG,ST JOSEPHS RC PRIMARY SCHOOL,"3,874.50",COVID-19 SCHOOLS GRANTS,SCHOOLS CAPITATION,2103608144,5001000077
09.01.2023,DSG,ST JOSEPHS CATHOLIC PRIMARY SCHOOL,"2,598.75",COVID-19 SCHOOLS GRANTS,SCHOOLS CAPITATION,2103608145,5001000078
09.01.2023,DSG,ST MARY MAGDALENE CE SCHOOL,"1,984.50",COVID-19 SCHOOLS GRANTS,SCHOOLS CAPITATION,2103608148,5001000080
09.01.2023,DSG,ST PETERS CE SCHOOL,"3,969.00",COVID-19 SCHOOLS GRANTS,SCHOOLS CAPITATION,2103608150,5001000083
09.01.2023,DSG,ST SAVIOURS & ST OLAVES SCHOOL,"12,804.75",COVID-19 SCHOOLS GRANTS,SCHOOLS CAPITATION,2103608154,5001000084
09.01.2023,DSG,CATHEDRAL SCHOOL OF ST SAVIOUR & MARY,"2,031.75",COVID-19 SCHOOLS GRANTS,SCHOOLS CAPITATION,2103608151,5001000088
09.01.2023,DSG,TOWER BRIDGE PRIMARY SCHOOL,"4,583.25",COVID-19 SCHOOLS GRANTS,SCHOOLS CAPITATION,2103608126,5001000095
09.01.2023,DSG,TOWNSEND PRIMARY SCHOOL,"3,260.25",COVID-19 SCHOOLS GRANTS,SCHOOLS CAPITATION,2103608127,5001000096
09.01.2023,DSG,TUKE SCHOOL,"5,551.88",COVID-19 SCHOOLS GRANTS,SCHOOLS CAPITATION,2103608166,5001000097
09.01.2023,DSG,VICTORY SCHOOL,"2,976.75",COVID-19 SCHOOLS GRANTS,SCHOOLS CAPITATION,2103608128,5001000098
09.01.2023,DSG,SOUTHWARK INCLUSIVE LEARNING SERVICE,"3,084.38",COVID-19 SCHOOLS GRANTS,SCHOOLS CAPITATION,2103608168,5001000105
09.01.2023,DSG,LAMBETH COLLEGE,393.55,FURTHER EDUCATION,STATEMENTED FEES,2103608189,1810111
09.01.2023,DSG,LAMBETH COLLEGE,"2,172.67",FURTHER EDUCATION,STATEMENTED FEES,2103608187,1810111
09.01.2023,DSG,LAMBETH COLLEGE,"2,172.67",FURTHER EDUCATION,STATEMENTED FEES,2103608188,1810111
09.01.2023,DSG,LAMBETH COLLEGE,"5,077.73",FURTHER EDUCATION,STATEMENTED FEES,2103608190,1810111
09.01.2023,DSG,LAMBETH COLLEGE,"12,444.19",FURTHER EDUCATION,STATEMENTED FEES,2103608186,1810111
09.01.2023,DSG,BROADLANDS HALL LIMITED,"2,740.00",INDEP MAINSTREAM,STATEMENTED FEES,2103608232,1000084303
09.01.2023,DSG,PULSE AND WATER LEARNING LTD,"2,509.50",INDEP MAINSTREAM,STATEMENTED FEES,2103608192,1000088000
09.01.2023,DSG,ESLAND NORTH LTD,"3,428.57",NMSS/ INDEP SPECIAL,STATEMENTED FEES,2103608239,1000084018
09.01.2023,DSG,KS EDUCATION LIMITED,"20,162.63",NMSS/ INDEP SPECIAL,STATEMENTED FEES,2103608195,1000087847
09.01.2023,DSG,HEADSTART EDUCATIONAL ADOLESCENT SERVICE LTD,"20,000.00",NMSS/ INDEP SPECIAL,STATEMENTED FEES,2103608220,1000089122
09.01.2023,DSG,HEADSTART EDUCATIONAL ADOLESCENT SERVICE LTD,"20,000.00",NMSS/ INDEP SPECIAL,STATEMENTED FEES,2103608221,1000089122
09.01.2023,DSG,WYVIL PRIMARY SCHOOL,"7,261.75",OTHER LA MAINSTREAM,STATEMENTED FEES,2103608194,1000038919
09.01.2023,DSG,WYVIL PRIMARY SCHOOL,"9,309.25",OTHER LA MAINSTREAM,STATEMENTED FEES,2103608193,1000038919
09.01.2023,DSG,PAXTON PRIMARY SCHOOL,"4,053.33",OTHER LA MAINSTREAM,STATEMENTED FEES,2103608185,1000079086
09.01.2023,DSG,PAXTON PRIMARY SCHOOL,"4,861.54",OTHER LA MAINSTREAM,STATEMENTED FEES,2103608184,1000079086
09.01.2023,DSG,BARNHAM BROOM CHURCH OF ENGLAND V A PRIMARY SCHOOL,"4,053.33",OTHER LA MAINSTREAM,STATEMENTED FEES,2103608245,1000087268
09.01.2023,DSG,BARNHAM BROOM CHURCH OF ENGLAND V A PRIMARY SCHOOL,"8,061.54",OTHER LA MAINSTREAM,STATEMENTED FEES,2103608244,1000087268
09.01.2023,DSG,THE JENNY HAMMOND PRIMARY SCHOOL,907.69,OTHER LA MAINSTREAM,STATEMENTED FEES,2103608249,1000089193
09.01.2023,DSG,ISLINGTON COUNCIL,"2,953.00",OTHER LA SPECIAL,STATEMENTED FEES,2103608230,11204697
09.01.2023,DSG,ISLINGTON COUNCIL,"8,671.00",OTHER LA SPECIAL,STATEMENTED FEES,2103608224,11204697
09.01.2023,DSG,ISLINGTON COUNCIL,"8,671.00",OTHER LA SPECIAL,STATEMENTED FEES,2103608226,11204697
09.01.2023,DSG,ISLINGTON COUNCIL,"8,671.00",OTHER LA SPECIAL,STATEMENTED FEES,2103608228,11204697
09.01.2023,DSG,ISLINGTON COUNCIL,"8,671.00",OTHER LA SPECIAL,STATEMENTED FEES,2103608229,11204697
09.01.2023,DSG,ISLINGTON COUNCIL,"8,671.00",OTHER LA SPECIAL,STATEMENTED FEES,2103608231,11204697
09.01.2023,DSG,ISLINGTON COUNCIL,"9,597.00",OTHER LA SPECIAL,STATEMENTED FEES,2103608225,11204697
09.01.2023,DSG,ISLINGTON COUNCIL,"9,597.00",OTHER LA SPECIAL,STATEMENTED FEES,2103608227,11204697
09.01.2023,DSG,LINDEN LODGE SCHOOL,"9,247.00",OTHER LA SPECIAL,STATEMENTED FEES,2103608242,1000070880
09.01.2023,DSG,LINDEN LODGE SCHOOL,"10,530.00",OTHER LA SPECIAL,STATEMENTED FEES,2103608240,1000070880
09.01.2023,DSG,LINDEN LODGE SCHOOL,"10,530.00",OTHER LA SPECIAL,STATEMENTED FEES,2103608241,1000070880
09.01.2023,DSG,LINDEN LODGE SCHOOL,"10,530.00",OTHER LA SPECIAL,STATEMENTED FEES,2103608243,1000070880
09.01.2023,DSG,TURNEY SCHOOL,"15,611.84",OTHER LA SPECIAL,STATEMENTED FEES,2103608248,1000072254
09.01.2023,DSG,ELM COURT SCHOOL,"3,282.05",OTHER LA SPECIAL,STATEMENTED FEES,2103608217,1000072260
09.01.2023,DSG,ELM COURT SCHOOL,"3,852.23",OTHER LA SPECIAL,STATEMENTED FEES,2103608208,1000072260
09.01.2023,DSG,ELM COURT SCHOOL,"4,402.54",OTHER LA SPECIAL,STATEMENTED FEES,2103608211,1000072260
09.01.2023,DSG,ELM COURT SCHOOL,"6,717.95",OTHER LA SPECIAL,STATEMENTED FEES,2103608219,1000072260
09.01.2023,DSG,ELM COURT SCHOOL,"7,207.71",OTHER LA SPECIAL,STATEMENTED FEES,2103608216,1000072260
09.01.2023,DSG,ELM COURT SCHOOL,"10,000.00",OTHER LA SPECIAL,STATEMENTED FEES,2103608205,1000072260
09.01.2023,DSG,ELM COURT SCHOOL,"10,000.00",OTHER LA SPECIAL,STATEMENTED FEES,2103608210,1000072260
09.01.2023,DSG,ELM COURT SCHOOL,"11,294.22",OTHER LA SPECIAL,STATEMENTED FEES,2103608214,1000072260
09.01.2023,DSG,ELM COURT SCHOOL,"13,414.00",OTHER LA SPECIAL,STATEMENTED FEES,2103608197,1000072260
09.01.2023,DSG,ELM COURT SCHOOL,"13,414.00",OTHER LA SPECIAL,STATEMENTED FEES,2103608198,1000072260
09.01.2023,DSG,ELM COURT SCHOOL,"13,414.00",OTHER LA SPECIAL,STATEMENTED FEES,2103608201,1000072260
09.01.2023,DSG,ELM COURT SCHOOL,"13,414.00",OTHER LA SPECIAL,STATEMENTED FEES,2103608202,1000072260
09.01.2023,DSG,ELM COURT SCHOOL,"13,414.00",OTHER LA SPECIAL,STATEMENTED FEES,2103608203,1000072260
09.01.2023,DSG,ELM COURT SCHOOL,"13,414.00",OTHER LA SPECIAL,STATEMENTED FEES,2103608207,1000072260
09.01.2023,DSG,ELM COURT SCHOOL,"14,753.29",OTHER LA SPECIAL,STATEMENTED FEES,2103608218,1000072260
09.01.2023,DSG,ELM COURT SCHOOL,"16,812.00",OTHER LA SPECIAL,STATEMENTED FEES,2103608200,1000072260
09.01.2023,DSG,ELM COURT SCHOOL,"16,812.00",OTHER LA SPECIAL,STATEMENTED FEES,2103608204,1000072260
09.01.2023,DSG,ELM COURT SCHOOL,"16,812.00",OTHER LA SPECIAL,STATEMENTED FEES,2103608206,1000072260
09.01.2023,DSG,ELM COURT SCHOOL,"16,812.00",OTHER LA SPECIAL,STATEMENTED FEES,2103608212,1000072260
09.01.2023,DSG,ELM COURT SCHOOL,"18,248.63",OTHER LA SPECIAL,STATEMENTED FEES,2103608215,1000072260
09.01.2023,DSG,ELM COURT SCHOOL,"18,248.64",OTHER LA SPECIAL,STATEMENTED FEES,2103608213,1000072260
09.01.2023,DSG,ELM COURT SCHOOL,"21,961.00",OTHER LA SPECIAL,STATEMENTED FEES,2103608199,1000072260
09.01.2023,DSG,ELM COURT SCHOOL,"21,961.00",OTHER LA SPECIAL,STATEMENTED FEES,2103608209,1000072260
09.01.2023,DSG,SEN TRUST SOUTHEND,"2,302.54",OTHER LA SPECIAL,STATEMENTED FEES,2103608178,1000086611
09.01.2023,DSG,ORCHARD HILL COLLEGE,789.26,SPECIALIST POST-16,STATEMENTED FEES,2103608180,1000070978
09.01.2023,DSG,ORCHARD HILL COLLEGE,"1,578.52",SPECIALIST POST-16,STATEMENTED FEES,2103608182,1000070978
09.01.2023,DSG,ORCHARD HILL COLLEGE,"2,754.28",SPECIALIST POST-16,STATEMENTED FEES,2103608179,1000070978
09.01.2023,DSG,ORCHARD HILL COLLEGE,"5,508.58",SPECIALIST POST-16,STATEMENTED FEES,2103608181,1000070978
09.01.2023,DSG,ORCHARD HILL COLLEGE,"13,331.27",SPECIALIST POST-16,STATEMENTED FEES,2103608183,1000070978
09.01.2023,DSG,ASPRIS CHILDREN'S SERVICES LIMITED,"39,027.00",SPECIALIST POST-16,STATEMENTED FEES,2103608223,1000088936
09.01.2023,DSG,POWER2 LTD,"6,000.00",VIRTUAL SCHOOL PP,EXTERNAL AGENCIES AND BODIES,5902559737,1000089217
09.01.2023,EDUCATION,MIME CONSULTING LTD,"8,333.33",ALC MANAGEMENT AND SUPPORT,PROFESSIONAL FEES,5902559818,1000057079
09.01.2023,EDUCATION,LEON GLENISTER,"2,000.00",CENTRAL COSTS - SEN,LEGAL FEES & COURT COSTS,2103608080,1000072929
09.01.2023,EDUCATION,DAVID LAWSON,"2,875.00",CENTRAL COSTS - SEN,LEGAL FEES & COURT COSTS,2103608069,1000074102
09.01.2023,EDUCATION,PULSE HEALTHCARE LTD,317.2,SCH TRANS � TRAVEL,AGENCY STAFF,5902559880,1000035063
09.01.2023,ENVIRONMENT AND LEISURE,DRAIN SCAN (LONDON) LIMITED,350,CAPITAL PS (LEISURE),CONSTR'N SUB CONTRACT - NON CERTIFICATED,5902559762,1908746
09.01.2023,ENVIRONMENT AND LEISURE,METIS CONSULTANTS LIMITED,"5,981.92",CAPITAL PS (LEISURE),CONSTRUCTION FEES  - EXTERNAL,5902559796,1000086330
09.01.2023,ENVIRONMENT AND LEISURE,METIS CONSULTANTS LIMITED,"1,674.20",CAPITAL PS (LEISURE),CONSTRUCTION FEES - ENGINEER,5902559785,1000086330
09.01.2023,ENVIRONMENT AND LEISURE,LOUIE LOUIE LTD,510,CAPITAL PS (LEISURE),"PLANT, MACHINERY & EQUIPMENT ACQUISITION",5902559899,1000084284
09.01.2023,ENVIRONMENT AND LEISURE,CROWN OIL LTD,"1,460.34",SANDGATE STREET,VEHICLE FUEL,5902559841,1000081749
09.01.2023,ENVIRONMENT DIRECTORATE,THE T P PARTNERSHIP,445,ESTATE CLEANING-GENERAL,OTHER CONTRACTORS,5902559761,1000045906
09.01.2023,ENVIRONMENT DIRECTORATE,METIS CONSULTANTS LIMITED,"4,105.00",FLOOD RISK MANAGEMENT,HIGHWAYS TERM CONTRACT,5902559554,1000086330
09.01.2023,ENVIRONMENT DIRECTORATE,METIS CONSULTANTS LIMITED,"4,105.00",FLOOD RISK MANAGEMENT,HIGHWAYS TERM CONTRACT,5902559878,1000086330
09.01.2023,ENVIRONMENT DIRECTORATE,LANDSCAPE SUPPLY COMPANY,774.46,GROUNDS MAINTENANCE - GENERAL,EQUIPMENT PURCHASE & REPAIR,5902559759,1000051937
09.01.2023,ENVIRONMENT DIRECTORATE,SPALDINGS (UK) LTD,418.45,GROUNDS MAINTENANCE - GENERAL,MATERIALS,5902559897,1907384
09.01.2023,ENVIRONMENT DIRECTORATE,FAROL LTD,603.89,ICC SPECIAL TEAMS,EQUIPMENT PURCHASE & REPAIR,5902559872,1000078940
09.01.2023,ENVIRONMENT DIRECTORATE,FAROL LTD,723.64,ICC SPECIAL TEAMS,EQUIPMENT PURCHASE & REPAIR,5902559870,1000078940
09.01.2023,ENVIRONMENT DIRECTORATE,VEOLIA ES SOUTHWARK LTD,"56,828.77",WASTE PFI,VEHICLE FUEL,5902559728,1000056979
09.01.2023,F & C S EXCLUDING CORPORATE BUDGETS,BSI ASSURANCE UK LIMITED,"1,420.00",ADMINISTRATIVE SUPPORT,EQUIPMENT PURCHASE & REPAIR,5902559865,1000001195
09.01.2023,F & C S EXCLUDING CORPORATE BUDGETS,GREENCROFT CONSULTING,"9,865.25",ADMINISTRATIVE SUPPORT,OTHER CONTRACTORS,5902559740,1000078147
09.01.2023,F & C S EXCLUDING CORPORATE BUDGETS,DSI BILLING SERVICES LTD,"1,541.00",ADMINISTRATIVE SUPPORT,POSTAGES,5902559801,1000058640
09.01.2023,F & C S EXCLUDING CORPORATE BUDGETS,WHITELEYS OFFICE SUPPLIES LTD,307.33,CHILDREN'S SERVICES FINANCE TEAM,OFFICE EXPENSES,5902559795,1000083121
09.01.2023,F & C S EXCLUDING CORPORATE BUDGETS,POST OFFICE LTD,"1,782.69",DISCRETIONARY RATES REBATE,MISCELLANEOUS EXPENSES,5902559871,1000069858
09.01.2023,HOUSING GENERAL FUND,PEABODY TRUST,"4,712.00",CAPITAL PS (HOUSING GF),CAPITAL GRANTS,5902559793,1000051027
09.01.2023,HOUSING GENERAL FUND,GARTNER UK LTD,"124,900.00",CAPITAL PS (STRAT SERV),ICT ACQUISITION,5902559815,1000072331
09.01.2023,HOUSING GENERAL FUND,HITACHI SOLUTIONS EUROPE LIMITED,"15,000.00",CAPITAL PS (STRAT SERV),ICT ACQUISITION,5902559846,1000084180
09.01.2023,HOUSING HRA,BDL CONSULTING (SOUTHERN) LTD,"3,000.00",CAPITAL PS (HRA),CONSTRUCTION,5902559768,1000089275
09.01.2023,HOUSING HRA,VPS (UK) LTD,319.12,CAPITAL PS (HRA),CONSTRUCTION FEES  - EXTERNAL,5902559894,1000040614
09.01.2023,HOUSING HRA,VPS (UK) LTD,398.9,CAPITAL PS (HRA),CONSTRUCTION FEES  - EXTERNAL,5902559892,1000040614
09.01.2023,HOUSING HRA,VPS (UK) LTD,600.16,CAPITAL PS (HRA),CONSTRUCTION FEES  - EXTERNAL,5902559805,1000040614
09.01.2023,HOUSING HRA,VPS (UK) LTD,"1,083.06",CAPITAL PS (HRA),CONSTRUCTION FEES  - EXTERNAL,5902559807,1000040614
09.01.2023,HOUSING HRA,VPS (UK) LTD,"1,204.94",CAPITAL PS (HRA),CONSTRUCTION FEES  - EXTERNAL,5902559805,1000040614
09.01.2023,HOUSING HRA,VPS (UK) LTD,"1,444.08",CAPITAL PS (HRA),CONSTRUCTION FEES  - EXTERNAL,5902559802,1000040614
09.01.2023,HOUSING HRA,VPS (UK) LTD,"1,444.08",CAPITAL PS (HRA),CONSTRUCTION FEES  - EXTERNAL,5902559804,1000040614
09.01.2023,HOUSING HRA,B B UK STUDIO LIMITED,"2,095.50",CAPITAL PS (HRA),CONSTRUCTION FEES - ARCHITECT,5902559782,1000085809
09.01.2023,HOUSING HRA,BAILY  GARNER LLP,"3,162.26",CAPITAL PS (HRA),CONSTRUCTION FEES - EMPLOYERS AGENT,5902559727,1000663
09.01.2023,HOUSING HRA,BAILY  GARNER LLP,"3,224.85",CAPITAL PS (HRA),CONSTRUCTION FEES - EMPLOYERS AGENT,5902559729,1000663
09.01.2023,HOUSING HRA,EQUANS REGENERATION (APOLLO) LTD,"510,634.61",CAPITAL PS (HRA),CONSTRUCTION MAIN CONTRACT -CERTIFICATED,2103607387,4000449
09.01.2023,HOUSING HRA,HILL PARTNERSHIP LTD,"162,630.12",CAPITAL PS (HRA),CONSTRUCTION MAIN CONTRACT -CERTIFICATED,2103608251,3000002185
09.01.2023,LEISURE DIRECTORATE,REDACTED PERSONAL DATA,500,ARTS PROJECT,CONSULTANTS SERVICES,REDACTED,REDACTED
09.01.2023,LEISURE DIRECTORATE,BOYD SPORT & PLAY LTD,317,BURGESS SPORTS CENTRE,EQUIPMENT PURCHASE & REPAIR,5902559864,1000043590
09.01.2023,LEISURE DIRECTORATE,E.ON HEAT,986.9,HERITAGE CENTRE & WALWORTH LIBRARY,GAS,5902559798,1000080948
09.01.2023,LEISURE DIRECTORATE,E.ON HEAT,"4,877.20",HERITAGE CENTRE & WALWORTH LIBRARY,GAS,5902559800,1000080948
09.01.2023,LEISURE DIRECTORATE,FOUNTAINS & FEATURES LTD,470,PARKS SERVICES DEVELOPMENT,PROFESSIONAL FEES,5902559764,1000082729
09.01.2023,LEISURE DIRECTORATE,NPOWER LTD,"1,091.44",SDM BUDGET,ELECTRICITY,5902559746,1000078994
09.01.2023,LEISURE DIRECTORATE,BEW ELECTRICAL DISTRIBUTORS LTD,412.29,SDM BUDGET,MATERIALS,5902559742,1000045371
09.01.2023,LEISURE DIRECTORATE,SOUTHERN CRANES & ACCESS LTD,"3,575.00",SDM BUDGET,OP LEASE/HIRE CHARGES:PLANT/EQUIP/FURNIT,5902559758,1000088668
09.01.2023,LEISURE DIRECTORATE,PHS GROUP PLC,329.53,SDM BUDGET,PREMISES CLEANING,5902559750,1851993
09.01.2023,LEISURE DIRECTORATE,REGENT OFFICE CARE LTD,"4,727.09",SDM BUDGET,PREMISES CLEANING,5902559760,1000063340
09.01.2023,LEISURE DIRECTORATE,SMART PLATFORM RENTAL LTD,625,TREES � IN-HOUSE TEAM,HIRED VEHICLES,5902559621,1000082961
09.01.2023,NEW BUILD,RICS,"1,135.00",DEVELOPMENT DELIVERY,TRAINING,5902559860,1000015523
09.01.2023,PUBLIC HEALTH,EVERYONE HEALTH LTD,"12,500.00",HEALTH INTERVENTIONS,EXTERNAL AGENCIES AND BODIES,5902559842,1000084159
09.01.2023,PUBLIC HEALTH,KETRA,"2,184.00",HOLIDAY ACTIVITIES & FOOD,EXTERNAL AGENCIES AND BODIES,5902559784,1770066
09.01.2023,RESIDENT SERVICES,LONDON UNDERGROUND LTD,580,OPERATIONS/OFFICES ACCOMMODATION,PUBLIC TRANSPORT,5902559831,1000059727
09.01.2023,RESIDENT SERVICES,PARTNERSHIP MEDIA GROUP,445,OPERATIONS/OFFICES ACCOMMODATION,TRAINING,5902559904,1000050132
09.01.2023,RESIDENT SERVICES,SCARLET TAYLOR-WALLER,475,TA HOSTELS,LEGAL FEES & COURT COSTS,2103608093,1000089209
09.01.2023,RESIDENT SERVICES,RS REAL ESTATE LTD,"3,900.00",TA PLACEMENTS,EXTERNAL AGENCIES AND BODIES,5902559730,1000072485
09.01.2023,RESIDENT SERVICES,RS REAL ESTATE LTD,"4,030.00",TA PLACEMENTS,EXTERNAL AGENCIES AND BODIES,5902559733,1000072485
09.01.2023,RESIDENT SERVICES HGF,HYDE HOUSING ASSOCIATION LTD,"1,903.87",HOUSING OPTIONS,EXTERNAL AGENCIES AND BODIES,5902559830,1000013980
09.01.2023,RESIDENT SERVICES HGF,PARTNERSHIP MEDIA GROUP,395,HOUSING OPTIONS,TRAINING,5902559820,1000050132
09.01.2023,RESIDENT SERVICES HGF,KINDLY PROPERTIES LTD,"-1,225.00",NIGHTLY TA (NSC),EXTERNAL AGENCIES AND BODIES,5902559887,1000060734
09.01.2023,RESIDENT SERVICES HGF,KINDLY PROPERTIES LTD,"32,742.25",NIGHTLY TA (NSC),EXTERNAL AGENCIES AND BODIES,5902559885,1000060734
09.01.2023,RESIDENT SERVICES HGF,EASYMOVE EA LIMITED,"32,198.09",PSL PLACEMENTS,EXTERNAL AGENCIES AND BODIES,5902559787,1000066859
09.01.2023,RESIDENT SERVICES HGF,BETHEL ROCK LTD,"22,770.32",PSL PLACEMENTS,EXTERNAL AGENCIES AND BODIES,5902559817,1000080864
09.01.2023,RESIDENT SERVICES HGF,WENTWORTH HOUSING LTD,"64,910.31",PSL PLACEMENTS,EXTERNAL AGENCIES AND BODIES,5902559739,1000083640
09.01.2023,RESIDENT SERVICES HGF,STAR PEOPLE LTD,"1,128.71",PSL PLACEMENTS,EXTERNAL AGENCIES AND BODIES,5902559862,1000088790
09.01.2023,SBS SUPPORT,LONDON TOOLS LIMITED,590,R & M OVERHEADS,MATERIALS,5902559708,1000003017
09.01.2023,SBS SUPPORT,ABTAC LTD,358.8,R & M OVERHEADS,MEDICAL / HEALTH & SAFETY SERVICES,5902559822,1000074360
09.01.2023,SBS SUPPORT,ABTAC LTD,598,R & M OVERHEADS,MEDICAL / HEALTH & SAFETY SERVICES,5902559756,1000074360
09.01.2023,SBS SUPPORT,ABTAC LTD,598,R & M OVERHEADS,MEDICAL / HEALTH & SAFETY SERVICES,5902559757,1000074360
09.01.2023,SBS SUPPORT,ABTAC LTD,598,R & M OVERHEADS,MEDICAL / HEALTH & SAFETY SERVICES,5902559819,1000074360
09.01.2023,SBS SUPPORT,ABTAC LTD,598,R & M OVERHEADS,MEDICAL / HEALTH & SAFETY SERVICES,5902559824,1000074360
09.01.2023,SBS SUPPORT,ABTAC LTD,"1,196.00",R & M OVERHEADS,MEDICAL / HEALTH & SAFETY SERVICES,5902559826,1000074360
09.01.2023,STRATEGIC FINANCING BUDGETS,ACCESS INDEPENDENT LTD,"2,436.00",FREEDOM PASS,PROFESSIONAL FEES,5902559741,1000059141
10.01.2023,ADULT SOCIAL CARE,REDACTED PERSONAL DATA,488,APPOINTEESHIPS,OTHER PAYMENTS FOR CLIENTS,REDACTED,REDACTED
10.01.2023,ADULT SOCIAL CARE,JUDGE AND PRIESTLEY SOLICITORS,509.78,DIR OF ASC,PAYMENTS FOR LEGAL SERVICES,5902559962,1472217
10.01.2023,ADULT SOCIAL CARE,NATIONAL FOSTERING AGENCY LTD,"6,009.35",DISABILITIES LAC,EXTERNAL AGENCIES AND BODIES,2103608461,1000038868
10.01.2023,ADULT SOCIAL CARE,TV LICENSING,795,EXTRA CARE CONTRACT,OFFICE EXPENSES,5902559949,1000077908
10.01.2023,ADULT SOCIAL CARE,KENT HARRIER PROPERTY MANAGEMENT,"1,446.00",LD LTS 18-64,EXTERNAL AGENCIES AND BODIES,2103608502,1000078130
10.01.2023,ADULT SOCIAL CARE,KENT HARRIER PROPERTY MANAGEMENT,"1,550.00",LD LTS 18-64,EXTERNAL AGENCIES AND BODIES,2103608503,1000078130
10.01.2023,ADULT SOCIAL CARE,CARE OUTLOOK LTD,603.24,LD LTS 18-64,HOMECARE - C&V,2103608482,1000064508
10.01.2023,ADULT SOCIAL CARE,CHOICE SUPPORT,330.66,LD LTS 18-64,SUPPORTED LIVING,2103608389,1104183
10.01.2023,ADULT SOCIAL CARE,CHOICE SUPPORT,367.4,LD LTS 18-64,SUPPORTED LIVING,2103608505,1104183
10.01.2023,ADULT SOCIAL CARE,CHOICE SUPPORT,440.88,LD LTS 18-64,SUPPORTED LIVING,2103608508,1104183
10.01.2023,ADULT SOCIAL CARE,CHOICE SUPPORT,587.84,LD LTS 18-64,SUPPORTED LIVING,2103608398,1104183
10.01.2023,ADULT SOCIAL CARE,CHOICE SUPPORT,661.32,LD LTS 18-64,SUPPORTED LIVING,2103608504,1104183
10.01.2023,ADULT SOCIAL CARE,OLUMBA CARE LIMITED,304,LD LTS 18-64,SUPPORTED LIVING,2103608497,1000087828
10.01.2023,ADULT SOCIAL CARE,OLUMBA CARE LIMITED,640,LD LTS 18-64,SUPPORTED LIVING,2103608496,1000087828
10.01.2023,ADULT SOCIAL CARE,OLUMBA CARE LIMITED,988,LD LTS 18-64,SUPPORTED LIVING,2103608499,1000087828
10.01.2023,ADULT SOCIAL CARE,CHOICE SUPPORT,514.36,LD LTS 65+,SUPPORTED LIVING,2103608394,1104183
10.01.2023,ADULT SOCIAL CARE,CARE OUTLOOK LTD,996.26,MH LTS 18-64,HOMECARE - C&V,2103608477,1000064508
10.01.2023,ADULT SOCIAL CARE,OLUMBA CARE LIMITED,456,MH LTS 18-64,SUPPORTED LIVING,2103608495,1000087828
10.01.2023,ADULT SOCIAL CARE,CHOICE SUPPORT,440.88,MH LTS 65+,SUPPORTED LIVING,2103608507,1104183
10.01.2023,ADULT SOCIAL CARE,CARE OUTLOOK LTD,425.01,PHY LTS 18-64,HOMECARE - C&V,2103608469,1000064508
10.01.2023,ADULT SOCIAL CARE,CARE OUTLOOK LTD,662.65,PHY LTS 18-64,HOMECARE - C&V,2103608487,1000064508
10.01.2023,ADULT SOCIAL CARE,CARE OUTLOOK LTD,968.84,PHY LTS 18-64,HOMECARE - C&V,2103608466,1000064508
10.01.2023,ADULT SOCIAL CARE,CARE OUTLOOK LTD,"1,150.12",PHY LTS 18-64,HOMECARE - C&V,2103608488,1000064508
10.01.2023,ADULT SOCIAL CARE,CARE OUTLOOK LTD,"1,535.52",PHY LTS 18-64,HOMECARE - C&V,2103608475,1000064508
10.01.2023,ADULT SOCIAL CARE,CARE OUTLOOK LTD,"2,787.70",PHY LTS 18-64,HOMECARE - C&V,2103608473,1000064508
10.01.2023,ADULT SOCIAL CARE,CARE OUTLOOK LTD,"3,747.40",PHY LTS 18-64,HOMECARE - C&V,2103608470,1000064508
10.01.2023,ADULT SOCIAL CARE,CARE OUTLOOK LTD,466.14,PHY LTS 65+,HOMECARE - C&V,2103608480,1000064508
10.01.2023,ADULT SOCIAL CARE,CARE OUTLOOK LTD,484.42,PHY LTS 65+,HOMECARE - C&V,2103608464,1000064508
10.01.2023,ADULT SOCIAL CARE,CARE OUTLOOK LTD,530.12,PHY LTS 65+,HOMECARE - C&V,2103608465,1000064508
10.01.2023,ADULT SOCIAL CARE,CARE OUTLOOK LTD,580.39,PHY LTS 65+,HOMECARE - C&V,2103608474,1000064508
10.01.2023,ADULT SOCIAL CARE,CARE OUTLOOK LTD,584.96,PHY LTS 65+,HOMECARE - C&V,2103608479,1000064508
10.01.2023,ADULT SOCIAL CARE,CARE OUTLOOK LTD,630.66,PHY LTS 65+,HOMECARE - C&V,2103608468,1000064508
10.01.2023,ADULT SOCIAL CARE,CARE OUTLOOK LTD,749.48,PHY LTS 65+,HOMECARE - C&V,2103608486,1000064508
10.01.2023,ADULT SOCIAL CARE,CARE OUTLOOK LTD,786.04,PHY LTS 65+,HOMECARE - C&V,2103608485,1000064508
10.01.2023,ADULT SOCIAL CARE,CARE OUTLOOK LTD,895.72,PHY LTS 65+,HOMECARE - C&V,2103608471,1000064508
10.01.2023,ADULT SOCIAL CARE,CARE OUTLOOK LTD,"1,078.52",PHY LTS 65+,HOMECARE - C&V,2103608476,1000064508
10.01.2023,ADULT SOCIAL CARE,CARE OUTLOOK LTD,"1,087.66",PHY LTS 65+,HOMECARE - C&V,2103608472,1000064508
10.01.2023,ADULT SOCIAL CARE,CARE OUTLOOK LTD,"1,887.41",PHY LTS 65+,HOMECARE - C&V,2103608481,1000064508
10.01.2023,ADULT SOCIAL CARE,CARE OUTLOOK LTD,"2,454.09",PHY LTS 65+,HOMECARE - C&V,2103608484,1000064508
10.01.2023,ADULT SOCIAL CARE,OLUMBA CARE LIMITED,332.5,PHY LTS 65+,HOMECARE - SPOT,2103608500,1000087828
10.01.2023,ADULT SOCIAL CARE,OLUMBA CARE LIMITED,"2,014.00",PHY LTS 65+,HOMECARE - SPOT,2103608498,1000087828
10.01.2023,ADULT SOCIAL CARE,OLUMBA CARE LIMITED,"2,774.00",PHY LTS 65+,HOMECARE - SPOT,2103608501,1000087828
10.01.2023,ADULT SOCIAL CARE,OLUMBA CARE LIMITED,"1,311.30",PHY LTS 65+,SUPPORTED LIVING,2103608494,1000087828
10.01.2023,ADULT SOCIAL CARE,CHOICE SUPPORT,367.4,SOCIAL ISOLATION,SUPPORTED LIVING,2103608390,1104183
10.01.2023,ADULT SOCIAL CARE,BRITISH RED CROSS SOCIETY,"1,065.00",SOUTHWARK RESOURCE CENTRE,TRAINING,5902559955,1000038088
10.01.2023,ADULT SOCIAL CARE,SUPREME CARE SERVICES LTD,288,SPECIALIST CARE,SECTION 17 PAYMENTS TO AGENCIES/CARERS,2103608432,1000059416
10.01.2023,ADULT SOCIAL CARE,SUPREME CARE SERVICES LTD,288,SPECIALIST CARE,SECTION 17 PAYMENTS TO AGENCIES/CARERS,2103608433,1000059416
10.01.2023,ADULT SOCIAL CARE,SUPREME CARE SERVICES LTD,288,SPECIALIST CARE,SECTION 17 PAYMENTS TO AGENCIES/CARERS,2103608435,1000059416
10.01.2023,ADULT SOCIAL CARE,SUPREME CARE SERVICES LTD,288,SPECIALIST CARE,SECTION 17 PAYMENTS TO AGENCIES/CARERS,2103608437,1000059416
10.01.2023,ADULT SOCIAL CARE,SUPREME CARE SERVICES LTD,288,SPECIALIST CARE,SECTION 17 PAYMENTS TO AGENCIES/CARERS,2103608440,1000059416
10.01.2023,ADULT SOCIAL CARE,SUPREME CARE SERVICES LTD,288,SPECIALIST CARE,SECTION 17 PAYMENTS TO AGENCIES/CARERS,2103608441,1000059416
10.01.2023,ADULT SOCIAL CARE,SUPREME CARE SERVICES LTD,288,SPECIALIST CARE,SECTION 17 PAYMENTS TO AGENCIES/CARERS,2103608444,1000059416
10.01.2023,ADULT SOCIAL CARE,SUPREME CARE SERVICES LTD,288,SPECIALIST CARE,SECTION 17 PAYMENTS TO AGENCIES/CARERS,2103608445,1000059416
10.01.2023,ADULT SOCIAL CARE,SUPREME CARE SERVICES LTD,288,SPECIALIST CARE,SECTION 17 PAYMENTS TO AGENCIES/CARERS,2103608448,1000059416
10.01.2023,ADULT SOCIAL CARE,SUPREME CARE SERVICES LTD,288,SPECIALIST CARE,SECTION 17 PAYMENTS TO AGENCIES/CARERS,2103608451,1000059416
10.01.2023,ADULT SOCIAL CARE,SUPREME CARE SERVICES LTD,324,SPECIALIST CARE,SECTION 17 PAYMENTS TO AGENCIES/CARERS,2103608436,1000059416
10.01.2023,ADULT SOCIAL CARE,SUPREME CARE SERVICES LTD,360,SPECIALIST CARE,SECTION 17 PAYMENTS TO AGENCIES/CARERS,2103608431,1000059416
10.01.2023,ADULT SOCIAL CARE,SUPREME CARE SERVICES LTD,360,SPECIALIST CARE,SECTION 17 PAYMENTS TO AGENCIES/CARERS,2103608449,1000059416
10.01.2023,ADULT SOCIAL CARE,SUPREME CARE SERVICES LTD,432,SPECIALIST CARE,SECTION 17 PAYMENTS TO AGENCIES/CARERS,2103608438,1000059416
10.01.2023,ADULT SOCIAL CARE,SUPREME CARE SERVICES LTD,432,SPECIALIST CARE,SECTION 17 PAYMENTS TO AGENCIES/CARERS,2103608439,1000059416
10.01.2023,ADULT SOCIAL CARE,SUPREME CARE SERVICES LTD,432,SPECIALIST CARE,SECTION 17 PAYMENTS TO AGENCIES/CARERS,2103608443,1000059416
10.01.2023,ADULT SOCIAL CARE,SUPREME CARE SERVICES LTD,432,SPECIALIST CARE,SECTION 17 PAYMENTS TO AGENCIES/CARERS,2103608450,1000059416
10.01.2023,ADULT SOCIAL CARE,SUPREME CARE SERVICES LTD,504,SPECIALIST CARE,SECTION 17 PAYMENTS TO AGENCIES/CARERS,2103608446,1000059416
10.01.2023,ADULT SOCIAL CARE,SUPREME CARE SERVICES LTD,720,SPECIALIST CARE,SECTION 17 PAYMENTS TO AGENCIES/CARERS,2103608447,1000059416
10.01.2023,ADULT SOCIAL CARE,SUPREME CARE SERVICES LTD,864,SPECIALIST CARE,SECTION 17 PAYMENTS TO AGENCIES/CARERS,2103608430,1000059416
10.01.2023,ADULT SOCIAL CARE,LONDON COUNCILS,"32,804.00",TAXICARD SCHEME,EXTERNAL AGENCIES AND BODIES,5902559925,11237079
10.01.2023,ASSET MANAGEMENT,PARITY PROJECTS LIMITED,"2,850.00",DIRECTOR OF ASSET MANAGEMENT,PROFESSIONAL FEES,5902559972,1000086269
10.01.2023,ASSET MANAGEMENT,PARITY PROJECTS LIMITED,"2,906.25",DIRECTOR OF ASSET MANAGEMENT,PROFESSIONAL FEES,5902559970,1000086269
10.01.2023,ASSET MANAGEMENT,JUDGE AND PRIESTLEY SOLICITORS,676.25,DISREPAIR,BUILDING R&M,5902560314,1472217
10.01.2023,ASSET MANAGEMENT,JUDGE AND PRIESTLEY SOLICITORS,975,DISREPAIR,BUILDING R&M,5902560338,1472217
10.01.2023,ASSET MANAGEMENT,JUDGE AND PRIESTLEY SOLICITORS,"1,406.00",DISREPAIR,BUILDING R&M,5902560338,1472217
10.01.2023,ASSET MANAGEMENT,JUDGE AND PRIESTLEY SOLICITORS,"2,922.20",DISREPAIR,BUILDING R&M,5902560314,1472217
10.01.2023,ASSET MANAGEMENT,JUDGE AND PRIESTLEY SOLICITORS,"37,050.00",DISREPAIR,BUILDING R&M,5902560314,1472217
10.01.2023,ASSET MANAGEMENT,JUDGE AND PRIESTLEY SOLICITORS,"60,150.00",DISREPAIR,BUILDING R&M,5902560338,1472217
10.01.2023,ASSET MANAGEMENT,PROPERTY FACILITIES GROUP LTD,820.11,DISREPAIR,BUILDING R&M,5902559852,1000063713
10.01.2023,ASSET MANAGEMENT,PROPERTY FACILITIES GROUP LTD,880.59,DISREPAIR,BUILDING R&M,5902559855,1000063713
10.01.2023,ASSET MANAGEMENT,PROPERTY FACILITIES GROUP LTD,"1,365.73",DISREPAIR,BUILDING R&M,5902559851,1000063713
10.01.2023,ASSET MANAGEMENT,ANTONY HODARI  SOLICITORS,283.82,DISREPAIR,PAYMENTS FOR LEGAL SERVICES,2103608272,1000031040
10.01.2023,ASSET MANAGEMENT,ANTONY HODARI  SOLICITORS,416.67,DISREPAIR,PAYMENTS FOR LEGAL SERVICES,2103608273,1000031040
10.01.2023,ASSET MANAGEMENT,ASHFORDS LLP,911.02,DISREPAIR,PAYMENTS FOR LEGAL SERVICES,2103608265,1000055865
10.01.2023,ASSET MANAGEMENT,PROGRESS LAW SOLICITORS,"5,208.33",DISREPAIR,PAYMENTS FOR LEGAL SERVICES,2103608264,1000082154
10.01.2023,ASSET MANAGEMENT,DRISCOLL KINGSTON SOLICITORS,416.67,DISREPAIR,PAYMENTS FOR LEGAL SERVICES,2103608275,1000082357
10.01.2023,ASSET MANAGEMENT,DRISCOLL KINGSTON SOLICITORS,"2,583.33",DISREPAIR,PAYMENTS FOR LEGAL SERVICES,2103608271,1000082357
10.01.2023,ASSET MANAGEMENT,ALPINE LAW LTD,"3,833.33",DISREPAIR,PAYMENTS FOR LEGAL SERVICES,2103608267,1000083126
10.01.2023,ASSET MANAGEMENT,QUINN NOBLE SOLICITORS,"3,541.67",DISREPAIR,PAYMENTS FOR LEGAL SERVICES,2103608274,1000083954
10.01.2023,ASSET MANAGEMENT,BOND TURNER  SOLICITORS,"1,041.67",DISREPAIR,PAYMENTS FOR LEGAL SERVICES,2103608276,1000085362
10.01.2023,ASSET MANAGEMENT,SATCHELL MORAN SOLICITORS LTD,"1,250.00",DISREPAIR,PAYMENTS FOR LEGAL SERVICES,2103608266,1000087281
10.01.2023,ASSET MANAGEMENT,RESOLUTE  LEGAL,"2,916.67",DISREPAIR,PAYMENTS FOR LEGAL SERVICES,2103608263,1000087819
10.01.2023,ASSET MANAGEMENT,COYNE LEARMONTH (CROSBY) LIMITED,916.67,DISREPAIR,PAYMENTS FOR LEGAL SERVICES,2103608277,1000088221
10.01.2023,ASSET MANAGEMENT,HIGH STREET  SOLICITORS,416.67,DISREPAIR,PAYMENTS FOR LEGAL SERVICES,2103608268,1000088784
10.01.2023,ASSET MANAGEMENT,HIGH STREET  SOLICITORS,841.67,DISREPAIR,PAYMENTS FOR LEGAL SERVICES,2103608269,1000088784
10.01.2023,ASSET MANAGEMENT,VERSUS LAW  SOLICITORS,"3,333.33",DISREPAIR,PAYMENTS FOR LEGAL SERVICES,2103608270,1000088872
